Workbook

Sheet Main
B10: 2022-08-08
B12: Sheet No. | C12: Template Name | D12: Summary
B13: 1 | C13: Future Intra | D13: For Intraday trading in F&O segment
B14: 2 | C14: Cash Intra | D14: For Intraday trading in cash market segment
B15: 3 | C15: Mid-cap Intra | D15: For Intraday trading in Mid-cap stocks
B16: 4 | C16: Bulk Deals | D16: Reveals Bulk Deals carried on NSE & BSE
B17: 5 | C17: Call Tracker
K27: `

Sheet Future Intra
M5: Back to Main Page
A6: FOR INTRA DAY TRADING | L6: =Main!B10 -> 2022-08-08
A9: Sr.no | B9: Sector | C9: Scrip | D9: Expiry Date | E9: CLOSE RATE | F9: Pivot Point | G9: Supports | J9: Resistances
E10: Point | F10: Point | G10: S1 | H10: S2 | I10: S3 | J10: R1 | K10: R2 | L10: R3 | M10: HIGH | N10: LOW | O10: OI | P10: % Change in OI
A11: 1 | B11: Index | C11: NIFTY | D11: 2022-08-25 | E11: 17416.15 | F11: 17431.45 | G11: 17348.55 | H11: 17280.95 | I11: 17198.05 | J11: 17499.05 | K11: 17581.95 | L11: 17649.55 | M11: 17514.35 | N11: 17363.85 | O11: 12111250 | P11: 2.00%
A12: 2 | B12: Index | C12: BANKNIFTY | D12: 2022-08-25 | E12: 37959.45 | F12: 37983.22 | G12: 37780.73 | H12: 37602.02 | I12: 37399.53 | J12: 38161.93 | K12: 38364.42 | L12: 38543.13 | M12: 38185.7 | N12: 37804.5 | O12: 2718575 | P12: 3.84%
A13: 3 | B13: Index | C13: FINNIFTY | D13: 2022-08-30 | E13: 17558.05 | F13: 17560.92 | G13: 17462.18 | H13: 17366.32 | I13: 17267.58 | J13: 17656.78 | K13: 17755.52 | L13: 17851.38 | M13: 17659.65 | N13: 17465.05 | O13: 5760 | P13: 45.45%
A14: 4 | B14: Index | C14: MIDCPNIFTY | D14: 2022-08-30 | E14: 7444.25 | F14: 7306.22 | G14: 7168.18 | H14: 6892.12 | I14: 6754.08 | J14: 7582.28 | K14: 7720.32 | L14: 7996.38 | M14: 7444.25 | N14: 7030.15 | O14: 225 | P14: 0.00%
A15: 5 | B15: Chemical | C15: AARTIIND | D15: 2022-08-25 | E15: 818.05 | F15: 819.35 | G15: 811.80 | H15: 805.55 | I15: 798.00 | J15: 825.60 | K15: 833.15 | L15: 839.40 | M15: 826.9 | N15: 813.1 | O15: 3293750 | P15: -0.36%
A16: 6 | B16: Capital_Goods | C16: ABB | D16: 2022-08-25 | E16: 2698.75 | F16: 2712.92 | G16: 2668.88 | H16: 2639.02 | I16: 2594.98 | J16: 2742.78 | K16: 2786.82 | L16: 2816.68 | M16: 2756.95 | N16: 2683.05 | O16: 801750 | P16: -2.58%
A17: 7 | B17: Pharma | C17: ABBOTINDIA | D17: 2022-08-25 | E17: 20550.45 | F17: 20523.88 | G17: 20397.87 | H17: 20245.28 | I17: 20119.27 | J17: 20676.47 | K17: 20802.48 | L17: 20955.07 | M17: 20649.9 | N17: 20371.3 | O17: 38680 | P17: -1.43%
A18: 8 | B18: Others | C18: ABCAPITAL | D18: 2022-08-25 | E18: 105.70 | F18: 105.87 | G18: 104.88 | H18: 104.07 | I18: 103.08 | J18: 106.68 | K18: 107.67 | L18: 108.48 | M18: 106.85 | N18: 105.05 | O18: 22021200 | P18: -2.88%
A19: 9 | B19: Textile | C19: ABFRL | D19: 2022-08-25 | E19: 278.95 | F19: 278.27 | G19: 273.88 | H19: 268.82 | I19: 264.43 | J19: 283.33 | K19: 287.72 | L19: 292.78 | M19: 282.65 | N19: 273.2 | O19: 12771200 | P19: 2.50%
A20: 10 | B20: Cement | C20: ACC | D20: 2022-08-25 | E20: 2266.35 | F20: 2253.82 | G20: 2236.38 | H20: 2206.42 | I20: 2188.98 | J20: 2283.78 | K20: 2301.22 | L20: 2331.18 | M20: 2271.25 | N20: 2223.85 | O20: 2352000 | P20: -1.22%
A21: 11 | B21: Others | C21: ADANIENT | D21: 2022-08-25 | E21: 2703.55 | F21: 2721.40 | G21: 2672.90 | H21: 2642.25 | I21: 2593.75 | J21: 2752.05 | K21: 2800.55 | L21: 2831.20 | M21: 2769.9 | N21: 2690.75 | O21: 19962500 | P21: 0.64%
A22: 12 | B22: Others | C22: ADANIPORTS | D22: 2022-08-25 | E22: 812.15 | F22: 813.27 | G22: 806.23 | H22: 800.32 | I22: 793.28 | J22: 819.18 | K22: 826.22 | L22: 832.13 | M22: 820.3 | N22: 807.35 | O22: 75132500 | P22: -1.00%
A23: 13 | B23: Pharma | C23: ALKEM | D23: 2022-08-25 | E23: 3125.70 | F23: 3145.97 | G23: 3069.73 | H23: 3013.77 | I23: 2937.53 | J23: 3201.93 | K23: 3278.17 | L23: 3334.13 | M23: 3222.2 | N23: 3090 | O23: 424000 | P23: -6.03%
A24: 14 | B24: Automobile | C24: AMARAJABAT | D24: 2022-08-25 | E24: 505.95 | F24: 506.95 | G24: 503.20 | H24: 500.45 | I24: 496.70 | J24: 509.70 | K24: 513.45 | L24: 516.20 | M24: 510.7 | N24: 504.2 | O24: 6319000 | P24: -0.82%
A25: 15 | B25: Cement | C25: AMBUJACEM | D25: 2022-08-25 | E25: 384.65 | F25: 384.02 | G25: 382.73 | H25: 380.82 | I25: 379.53 | J25: 385.93 | K25: 387.22 | L25: 389.13 | M25: 385.3 | N25: 382.1 | O25: 50711400 | P25: 1.67%
A26: 16 | B26: Others | C26: APOLLOHOSP | D26: 2022-08-25 | E26: 4373.25 | F26: 4383.85 | G26: 4332.45 | H26: 4291.65 | I26: 4240.25 | J26: 4424.65 | K26: 4476.05 | L26: 4516.85 | M26: 4435.25 | N26: 4343.05 | O26: 1775875 | P26: -0.98%
A27: 17 | B27: Automobile | C27: APOLLOTYRE | D27: 2022-08-25 | E27: 230.80 | F27: 230.97 | G27: 228.18 | H27: 225.57 | I27: 222.78 | J27: 233.58 | K27: 236.37 | L27: 238.98 | M27: 233.75 | N27: 228.35 | O27: 12659500 | P27: -2.56%
A28: 18 | B28: Automobile | C28: ASHOKLEY | D28: 2022-08-25 | E28: 145.45 | F28: 146.28 | G28: 144.27 | H28: 143.08 | I28: 141.07 | J28: 147.47 | K28: 149.48 | L28: 150.67 | M28: 148.3 | N28: 145.1 | O28: 41870000 | P28: -0.08%
A29: 19 | B29: FMCG | C29: ASIANPAINT | D29: 2022-08-25 | E29: 3484.80 | F29: 3484.45 | G29: 3464.35 | H29: 3443.90 | I29: 3423.80 | J29: 3504.90 | K29: 3525.00 | L29: 3545.45 | M29: 3504.55 | N29: 3464 | O29: 5942200 | P29: 1.86%
A30: 20 | B30: Others | C30: ASTRAL | D30: 2022-08-25 | E30: 1997.65 | F30: 1989.35 | G30: 1969.95 | H30: 1942.25 | I30: 1922.85 | J30: 2017.05 | K30: 2036.45 | L30: 2064.15 | M30: 2008.75 | N30: 1961.65 | O30: 658900 | P30: -7.13%
A31: 21 | B31: Others | C31: ATUL | D31: 2022-08-25 | E31: 9438.05 | F31: 9434.13 | G31: 9354.12 | H31: 9270.18 | I31: 9190.17 | J31: 9518.07 | K31: 9598.08 | L31: 9682.02 | M31: 9514.15 | N31: 9350.2 | O31: 114000 | P31: 2.56%
A32: 22 | B32: Banking | C32: AUBANK | D32: 2022-08-25 | E32: 646.30 | F32: 641.52 | G32: 632.08 | H32: 617.87 | I32: 608.43 | J32: 655.73 | K32: 665.17 | L32: 679.38 | M32: 650.95 | N32: 627.3 | O32: 6360000 | P32: -1.55%
A33: 23 | B33: Pharma | C33: AUROPHARMA | D33: 2022-08-25 | E33: 571.70 | F33: 577.08 | G33: 563.82 | H33: 555.93 | I33: 542.67 | J33: 584.97 | K33: 598.23 | L33: 606.12 | M33: 590.35 | N33: 569.2 | O33: 13101000 | P33: 1.60%
A34: 24 | B34: Banking | C34: AXISBANK | D34: 2022-08-25 | E34: 731.50 | F34: 729.85 | G34: 725.75 | H34: 720.00 | I34: 715.90 | J34: 735.60 | K34: 739.70 | L34: 745.45 | M34: 733.95 | N34: 724.1 | O34: 50206800 | P34: -0.24%
A35: 25 | B35: Automobile | C35: BAJAJ-AUTO | D35: 2022-08-25 | E35: 4001.65 | F35: 4003.25 | G35: 3979.25 | H35: 3956.85 | I35: 3932.85 | J35: 4025.65 | K35: 4049.65 | L35: 4072.05 | M35: 4027.25 | N35: 3980.85 | O35: 1948750 | P35: -0.89%
A36: 26 | B36: Finance | C36: BAJAJFINSV | D36: 2022-08-25 | E36: 15138.80 | F36: 15177.88 | G36: 15058.27 | H36: 14977.73 | I36: 14858.12 | J36: 15258.42 | K36: 15378.03 | L36: 15458.57 | M36: 15297.5 | N36: 15097.35 | O36: 730700 | P36: -2.33%
A37: 27 | B37: Finance | C37: BAJFINANCE | D37: 2022-08-25 | E37: 7341.40 | F37: 7351.07 | G37: 7298.38 | H37: 7255.37 | I37: 7202.68 | J37: 7394.08 | K37: 7446.77 | L37: 7489.78 | M37: 7403.75 | N37: 7308.05 | O37: 4615500 | P37: -0.39%
A38: 28 | B38: Automobile | C38: BALKRISIND | D38: 2022-08-25 | E38: 2161.75 | F38: 2191.77 | G38: 2102.53 | H38: 2043.32 | I38: 1954.08 | J38: 2250.98 | K38: 2340.22 | L38: 2399.43 | M38: 2281 | N38: 2132.55 | O38: 1855500 | P38: 25.69%
A39: 29 | B39: Others | C39: BALRAMCHIN | D39: 2022-08-25 | E39: 351.55 | F39: 356.38 | G39: 343.77 | H39: 335.98 | I39: 323.37 | J39: 364.17 | K39: 376.78 | L39: 384.57 | M39: 369 | N39: 348.6 | O39: 10673600 | P39: 31.14%
A40: 30 | B40: Banking | C40: BANDHANBNK | D40: 2022-08-25 | E40: 275.40 | F40: 277.12 | G40: 272.83 | H40: 270.27 | I40: 265.98 | J40: 279.68 | K40: 283.97 | L40: 286.53 | M40: 281.4 | N40: 274.55 | O40: 31015800 | P40: 2.47%
A41: 31 | B41: Banking | C41: BANKBARODA | D41: 2022-08-25 | E41: 118.40 | F41: 119.10 | G41: 117.25 | H41: 116.10 | I41: 114.25 | J41: 120.25 | K41: 122.10 | L41: 123.25 | M41: 120.95 | N41: 117.95 | O41: 100111050 | P41: 0.87%
A42: 32 | B42: FMCG | C42: BATAINDIA | D42: 2022-08-25 | E42: 1908.75 | F42: 1915.58 | G42: 1894.92 | H42: 1881.08 | I42: 1860.42 | J42: 1929.42 | K42: 1950.08 | L42: 1963.92 | M42: 1936.25 | N42: 1901.75 | O42: 2093575 | P42: -0.55%
A43: 33 | B43: Capital_Goods | C43: BEL | D43: 2022-08-25 | E43: 274.75 | F43: 274.72 | G43: 266.03 | H43: 257.32 | I43: 248.63 | J43: 283.43 | K43: 292.12 | L43: 300.83 | M43: 283.4 | N43: 266 | O43: 26421400 | P43: -10.34%
A44: 34 | B44: FMCG | C44: BERGEPAINT | D44: 2022-08-25 | E44: 672.10 | F44: 671.80 | G44: 661.95 | H44: 651.80 | I44: 641.95 | J44: 681.95 | K44: 691.80 | L44: 701.95 | M44: 681.65 | N44: 661.65 | O44: 7451400 | P44: 1.71%
A45: 35 | B45: Automobile | C45: BHARATFORG | D45: 2022-08-25 | E45: 708.30 | F45: 710.55 | G45: 702.65 | H45: 697.00 | I45: 689.10 | J45: 716.20 | K45: 724.10 | L45: 729.75 | M45: 718.45 | N45: 704.9 | O45: 7323000 | P45: 1.16%
A46: 36 | B46: Telecom | C46: BHARTIARTL | D46: 2022-08-25 | E46: 705.50 | F46: 705.52 | G46: 698.43 | H46: 691.37 | I46: 684.28 | J46: 712.58 | K46: 719.67 | L46: 726.73 | M46: 712.6 | N46: 698.45 | O46: 51983050 | P46: -2.83%
A47: 37 | B47: Capital_Goods | C47: BHEL | D47: 2022-08-25 | E47: 51.70 | F47: 52.02 | G47: 51.18 | H47: 50.67 | I47: 49.83 | J47: 52.53 | K47: 53.37 | L47: 53.88 | M47: 52.85 | N47: 51.5 | O47: 96579000 | P47: -2.47%
A48: 38 | B48: Pharma | C48: BIOCON | D48: 2022-08-25 | E48: 314.40 | F48: 314.98 | G48: 312.17 | H48: 309.93 | I48: 307.12 | J48: 317.22 | K48: 320.03 | L48: 322.27 | M48: 317.8 | N48: 312.75 | O48: 17289100 | P48: -0.84%
A49: 39 | B49: Automobile | C49: BOSCHLTD | D49: 2022-08-25 | E49: 17431.10 | F49: 17488.78 | G49: 17142.57 | H49: 16854.03 | I49: 16507.82 | J49: 17777.32 | K49: 18123.53 | L49: 18412.07 | M49: 17835 | N49: 17200.25 | O49: 165000 | P49: -4.71%
A50: 40 | B50: Oil_Gas | C50: BPCL | D50: 2022-08-25 | E50: 331.85 | F50: 330.82 | G50: 328.98 | H50: 326.12 | I50: 324.28 | J50: 333.68 | K50: 335.52 | L50: 338.38 | M50: 332.65 | N50: 327.95 | O50: 14788800 | P50: 3.03%
A51: 41 | B51: FMCG | C51: BRITANNIA | D51: 2022-08-25 | E51: 3706.45 | F51: 3750.43 | G51: 3652.57 | H51: 3598.68 | I51: 3500.82 | J51: 3804.32 | K51: 3902.18 | L51: 3956.07 | M51: 3848.3 | N51: 3696.55 | O51: 1789400 | P51: -2.35%
A52: 42 | B52: Technology | C52: BSOFT | D52: 2022-08-25 | E52: 347.65 | F52: 349.63 | G52: 344.57 | H52: 341.48 | I52: 336.42 | J52: 352.72 | K52: 357.78 | L52: 360.87 | M52: 354.7 | N52: 346.55 | O52: 5262400 | P52: 0.22%
A53: 43 | B53: Banking | C53: CANBK | D53: 2022-08-25 | E53: 222.45 | F53: 224.53 | G53: 219.62 | H53: 216.78 | I53: 211.87 | J53: 227.37 | K53: 232.28 | L53: 235.12 | M53: 229.45 | N53: 221.7 | O53: 42425100 | P53: 3.81%
A54: 44 | B54: Finance | C54: CANFINHOME | D54: 2022-08-25 | E54: 590.10 | F54: 590.45 | G54: 582.00 | H54: 573.90 | I54: 565.45 | J54: 598.55 | K54: 607.00 | L54: 615.10 | M54: 598.9 | N54: 582.35 | O54: 2748525 | P54: 4.80%
A55: 45 | B55: Others | C55: CHAMBLFERT | D55: 2022-08-25 | E55: 322.40 | F55: 323.53 | G55: 318.92 | H55: 315.43 | I55: 310.82 | J55: 327.02 | K55: 331.63 | L55: 335.12 | M55: 328.15 | N55: 320.05 | O55: 8299500 | P55: -1.27%
A56: 46 | B56: Finance | C56: CHOLAFIN | D56: 2022-08-25 | E56: 774.00 | F56: 775.58 | G56: 762.27 | H56: 750.53 | I56: 737.22 | J56: 787.32 | K56: 800.63 | L56: 812.37 | M56: 788.9 | N56: 763.85 | O56: 7691250 | P56: 1.03%
A57: 47 | B57: Pharma | C57: CIPLA | D57: 2022-08-25 | E57: 1034.45 | F57: 1037.15 | G57: 1029.70 | H57: 1024.95 | I57: 1017.50 | J57: 1041.90 | K57: 1049.35 | L57: 1054.10 | M57: 1044.6 | N57: 1032.4 | O57: 8823750 | P57: -0.45%
A58: 48 | B58: Others | C58: COALINDIA | D58: 2022-08-25 | E58: 205.60 | F58: 205.58 | G58: 203.32 | H58: 201.03 | I58: 198.77 | J58: 207.87 | K58: 210.13 | L58: 212.42 | M58: 207.85 | N58: 203.3 | O58: 34036800 | P58: 0.09%
A59: 49 | B59: Technology | C59: COFORGE | D59: 2022-08-25 | E59: 3933.35 | F59: 3934.02 | G59: 3889.03 | H59: 3844.72 | I59: 3799.73 | J59: 3978.33 | K59: 4023.32 | L59: 4067.63 | M59: 3979 | N59: 3889.7 | O59: 797250 | P59: -0.26%
A60: 50 | B60: FMCG | C60: COLPAL | D60: 2022-08-25 | E60: 1618.05 | F60: 1614.55 | G60: 1603.50 | H60: 1588.95 | I60: 1577.90 | J60: 1629.10 | K60: 1640.15 | L60: 1654.70 | M60: 1625.6 | N60: 1600 | O60: 2919700 | P60: -0.31%
A61: 51 | B61: Others | C61: CONCOR | D61: 2022-08-25 | E61: 687.15 | F61: 691.63 | G61: 680.62 | H61: 674.08 | I61: 663.07 | J61: 698.17 | K61: 709.18 | L61: 715.72 | M61: 702.65 | N61: 685.1 | O61: 4655000 | P61: 7.33%
A62: 52 | B62: Others | C62: COROMANDEL | D62: 2022-08-25 | E62: 1052.60 | F62: 1054.65 | G62: 1043.50 | H62: 1034.40 | I62: 1023.25 | J62: 1063.75 | K62: 1074.90 | L62: 1084.00 | M62: 1065.8 | N62: 1045.55 | O62: 1253700 | P62: -0.72%
A63: 53 | B63: Capital_Goods | C63: CROMPTON | D63: 2022-08-25 | E63: 375.70 | F63: 374.55 | G63: 368.10 | H63: 360.50 | I63: 354.05 | J63: 382.15 | K63: 388.60 | L63: 396.20 | M63: 381 | N63: 366.95 | O63: 3784500 | P63: 28.99%
A64: 54 | B64: Banking | C64: CUB | D64: 2022-08-25 | E64: 160.70 | F64: 161.17 | G64: 159.33 | H64: 157.97 | I64: 156.13 | J64: 162.53 | K64: 164.37 | L64: 165.73 | M64: 163 | N64: 159.8 | O64: 5235000 | P64: -0.38%
A65: 55 | B65: Capital_Goods | C65: CUMMINSIND | D65: 2022-08-25 | E65: 1178.65 | F65: 1183.55 | G65: 1169.10 | H65: 1159.55 | I65: 1145.10 | J65: 1193.10 | K65: 1207.55 | L65: 1217.10 | M65: 1198 | N65: 1174 | O65: 3241200 | P65: 2.50%
A66: 56 | B66: FMCG | C66: DABUR | D66: 2022-08-25 | E66: 581.25 | F66: 580.58 | G66: 576.77 | H66: 572.28 | I66: 568.47 | J66: 585.07 | K66: 588.88 | L66: 593.37 | M66: 584.4 | N66: 576.1 | O66: 11313750 | P66: -1.19%
A67: 57 | B67: Cement | C67: DALBHARAT | D67: 2022-08-25 | E67: 1622.65 | F67: 1605.55 | G67: 1575.10 | H67: 1527.55 | I67: 1497.10 | J67: 1653.10 | K67: 1683.55 | L67: 1731.10 | M67: 1636 | N67: 1558 | O67: 1371000 | P67: 5.42%
A68: 58 | B68: Chemical | C68: DEEPAKNTR | D68: 2022-08-25 | E68: 2029.30 | F68: 2036.62 | G68: 2008.68 | H68: 1988.07 | I68: 1960.13 | J68: 2057.23 | K68: 2085.17 | L68: 2105.78 | M68: 2064.55 | N68: 2016 | O68: 2567000 | P68: 0.20%
A69: 59 | B69: Others | C69: DELTACORP | D69: 2022-08-25 | E69: 195.05 | F69: 197.85 | G69: 191.50 | H69: 187.95 | I69: 181.60 | J69: 201.40 | K69: 207.75 | L69: 211.30 | M69: 204.2 | N69: 194.3 | O69: 20219300 | P69: 16.47%
A70: 60 | B70: Pharma | C70: DIVISLAB | D70: 2022-08-25 | E70: 3891.80 | F70: 3902.83 | G70: 3872.42 | H70: 3853.03 | I70: 3822.62 | J70: 3922.22 | K70: 3952.63 | L70: 3972.02 | M70: 3933.25 | N70: 3883.45 | O70: 2538900 | P70: -0.15%
A71: 61 | B71: Others | C71: DIXON | D71: 2022-08-25 | E71: 3812.35 | F71: 3822.85 | G71: 3792.40 | H71: 3772.45 | I71: 3742.00 | J71: 3842.80 | K71: 3873.25 | L71: 3893.20 | M71: 3853.3 | N71: 3802.9 | O71: 625375 | P71: 0.20%
A72: 62 | B72: Realty | C72: DLF | D72: 2022-08-25 | E72: 368.70 | F72: 370.32 | G72: 365.88 | H72: 363.07 | I72: 358.63 | J72: 373.13 | K72: 377.57 | L72: 380.38 | M72: 374.75 | N72: 367.5 | O72: 39845850 | P72: -0.39%
A73: 63 | B73: Pharma | C73: DRREDDY | D73: 2022-08-25 | E73: 4177.55 | F73: 4184.12 | G73: 4153.38 | H73: 4129.22 | I73: 4098.48 | J73: 4208.28 | K73: 4239.02 | L73: 4263.18 | M73: 4214.85 | N73: 4159.95 | O73: 2514875 | P73: -2.96%
A74: 64 | B74: Automobile | C74: EICHERMOT | D74: 2022-08-25 | E74: 3077.50 | F74: 3102.42 | G74: 3033.83 | H74: 2990.17 | I74: 2921.58 | J74: 3146.08 | K74: 3214.67 | L74: 3258.33 | M74: 3171 | N74: 3058.75 | O74: 4063150 | P74: 2.93%
A75: 65 | B75: Automobile | C75: ESCORTS | D75: 2022-08-25 | E75: 1612.35 | F75: 1610.75 | G75: 1606.50 | H75: 1600.65 | I75: 1596.40 | J75: 1616.60 | K75: 1620.85 | L75: 1626.70 | M75: 1615 | N75: 1604.9 | O75: 2818750 | P75: -2.44%
A76: 66 | B76: Automobile | C76: EXIDEIND | D76: 2022-08-25 | E76: 156.90 | F76: 157.43 | G76: 155.92 | H76: 154.93 | I76: 153.42 | J76: 158.42 | K76: 159.93 | L76: 160.92 | M76: 158.95 | N76: 156.45 | O76: 24584400 | P76: -1.53%
A77: 67 | B77: Banking | C77: FEDERALBNK | D77: 2022-08-25 | E77: 109.55 | F77: 109.50 | G77: 107.90 | H77: 106.25 | I77: 104.65 | J77: 111.15 | K77: 112.75 | L77: 114.40 | M77: 111.1 | N77: 107.85 | O77: 90280000 | P77: 4.60%
A78: 68 | B78: Technology | C78: FSL | D78: 2022-08-25 | E78: 105.55 | F78: 106.17 | G78: 104.08 | H78: 102.62 | I78: 100.53 | J78: 107.63 | K78: 109.72 | L78: 111.18 | M78: 108.25 | N78: 104.7 | O78: 19172400 | P78: -4.38%
A79: 69 | B79: Oil_Gas | C79: GAIL | D79: 2022-08-25 | E79: 132.80 | F79: 134.35 | G79: 128.85 | H79: 124.90 | I79: 119.40 | J79: 138.30 | K79: 143.80 | L79: 147.75 | M79: 139.85 | N79: 130.4 | O79: 45865900 | P79: 43.99%
A80: 70 | B80: Pharma | C80: GLENMARK | D80: 2022-08-25 | E80: 380.00 | F80: 381.02 | G80: 376.03 | H80: 372.07 | I80: 367.08 | J80: 384.98 | K80: 389.97 | L80: 393.93 | M80: 386 | N80: 377.05 | O80: 7262250 | P80: 3.85%
A81: 71 | B81: Infrastructure | C81: GMRINFRA | D81: 2022-08-25 | E81: 34.70 | F81: 34.83 | G81: 34.47 | H81: 34.23 | I81: 33.87 | J81: 35.07 | K81: 35.43 | L81: 35.67 | M81: 35.2 | N81: 34.6 | O81: 115605000 | P81: 1.66%
A82: 72 | B82: Others | C82: GNFC | D82: 2022-08-25 | E82: 765.65 | F82: 766.62 | G82: 758.03 | H82: 750.42 | I82: 741.83 | J82: 774.23 | K82: 782.82 | L82: 790.43 | M82: 775.2 | N82: 759 | O82: 4543500 | P82: 1.81%
A83: 73 | B83: FMCG | C83: GODREJCP | D83: 2022-08-25 | E83: 875.90 | F83: 874.97 | G83: 860.93 | H83: 845.97 | I83: 831.93 | J83: 889.93 | K83: 903.97 | L83: 918.93 | M83: 889 | N83: 860 | O83: 6725000 | P83: 7.79%
A84: 74 | B84: Realty | C84: GODREJPROP | D84: 2022-08-25 | E84: 1380.45 | F84: 1389.12 | G84: 1368.83 | H84: 1357.22 | I84: 1336.93 | J84: 1400.73 | K84: 1421.02 | L84: 1432.63 | M84: 1409.4 | N84: 1377.5 | O84: 3859700 | P84: 2.19%
A85: 75 | B85: Pharma | C85: GRANULES | D85: 2022-08-25 | E85: 311.80 | F85: 313.07 | G85: 309.63 | H85: 307.47 | I85: 304.03 | J85: 315.23 | K85: 318.67 | L85: 320.83 | M85: 316.5 | N85: 310.9 | O85: 13830000 | P85: -1.87%
A86: 76 | B86: Cement | C86: GRASIM | D86: 2022-08-25 | E86: 1592.60 | F86: 1593.32 | G86: 1576.63 | H86: 1560.67 | I86: 1543.98 | J86: 1609.28 | K86: 1625.97 | L86: 1641.93 | M86: 1610 | N86: 1577.35 | O86: 10967275 | P86: -1.97%
A87: 77 | B87: Oil_Gas | C87: GSPL | D87: 2022-08-25 | E87: 235.80 | F87: 238.08 | G87: 231.67 | H87: 227.53 | I87: 221.12 | J87: 242.22 | K87: 248.63 | L87: 252.77 | M87: 244.5 | N87: 233.95 | O87: 3282500 | P87: 3.79%
A88: 78 | B88: Oil_Gas | C88: GUJGASLTD | D88: 2022-08-25 | E88: 434.60 | F88: 436.05 | G88: 429.70 | H88: 424.80 | I88: 418.45 | J88: 440.95 | K88: 447.30 | L88: 452.20 | M88: 442.4 | N88: 431.15 | O88: 5566250 | P88: -4.11%
A89: 79 | B89: Others | C89: HAL | D89: 2022-08-25 | E89: 1997.00 | F89: 1995.00 | G89: 1977.00 | H89: 1957.00 | I89: 1939.00 | J89: 2015.00 | K89: 2033.00 | L89: 2053.00 | M89: 2013 | N89: 1975 | O89: 2489475 | P89: 2.70%
A90: 80 | B90: Capital_Goods | C90: HAVELLS | D90: 2022-08-25 | E90: 1291.60 | F90: 1300.63 | G90: 1276.97 | H90: 1262.33 | I90: 1238.67 | J90: 1315.27 | K90: 1338.93 | L90: 1353.57 | M90: 1324.3 | N90: 1286 | O90: 5373000 | P90: -2.76%
A91: 81 | B91: Technology | C91: HCLTECH | D91: 2022-08-25 | E91: 960.90 | F91: 962.40 | G91: 957.00 | H91: 953.10 | I91: 947.70 | J91: 966.30 | K91: 971.70 | L91: 975.60 | M91: 967.8 | N91: 958.5 | O91: 21422100 | P91: -1.47%
A92: 82 | B92: Finance | C92: HDFC | D92: 2022-08-25 | E92: 2364.20 | F92: 2362.15 | G92: 2349.55 | H92: 2334.90 | I92: 2322.30 | J92: 2376.80 | K92: 2389.40 | L92: 2404.05 | M92: 2374.75 | N92: 2347.5 | O92: 21641700 | P92: 0.26%
A93: 83 | B93: Finance | C93: HDFCAMC | D93: 2022-08-25 | E93: 2009.45 | F93: 2003.05 | G93: 1992.30 | H93: 1975.15 | I93: 1964.40 | J93: 2020.20 | K93: 2030.95 | L93: 2048.10 | M93: 2013.8 | N93: 1985.9 | O93: 2662500 | P93: 0.21%
A94: 84 | B94: Banking | C94: HDFCBANK | D94: 2022-08-25 | E94: 1434.50 | F94: 1435.40 | G94: 1427.25 | H94: 1420.00 | I94: 1411.85 | J94: 1442.65 | K94: 1450.80 | L94: 1458.05 | M94: 1443.55 | N94: 1428.15 | O94: 62061450 | P94: 1.62%
A95: 85 | B95: Finance | C95: HDFCLIFE | D95: 2022-08-25 | E95: 540.55 | F95: 542.22 | G95: 536.78 | H95: 533.02 | I95: 527.58 | J95: 545.98 | K95: 551.42 | L95: 555.18 | M95: 547.65 | N95: 538.45 | O95: 32633700 | P95: -1.67%
A96: 86 | B96: Automobile | C96: HEROMOTOCO | D96: 2022-08-25 | E96: 2776.75 | F96: 2783.78 | G96: 2759.87 | H96: 2742.98 | I96: 2719.07 | J96: 2800.67 | K96: 2824.58 | L96: 2841.47 | M96: 2807.7 | N96: 2766.9 | O96: 3740700 | P96: 2.21%
A97: 87 | B97: Metals | C97: HINDALCO | D97: 2022-08-25 | E97: 408.85 | F97: 413.23 | G97: 402.57 | H97: 396.28 | I97: 385.62 | J97: 419.52 | K97: 430.18 | L97: 436.47 | M97: 423.9 | N97: 406.95 | O97: 26978200 | P97: -1.29%
A98: 88 | B98: Metals | C98: HINDCOPPER | D98: 2022-08-25 | E98: 104.65 | F98: 105.10 | G98: 103.90 | H98: 103.15 | I98: 101.95 | J98: 105.85 | K98: 107.05 | L98: 107.80 | M98: 106.3 | N98: 104.35 | O98: 11803500 | P98: 0.51%
A99: 89 | B99: Oil_Gas | C99: HINDPETRO | D99: 2022-08-25 | E99: 251.30 | F99: 248.68 | G99: 245.17 | H99: 239.03 | I99: 235.52 | J99: 254.82 | K99: 258.33 | L99: 264.47 | M99: 252.2 | N99: 242.55 | O99: 23419800 | P99: 2.24%
A100: 90 | B100: FMCG | C100: HINDUNILVR | D100: 2022-08-25 | E100: 2651.20 | F100: 2650.57 | G100: 2634.13 | H100: 2617.07 | I100: 2600.63 | J100: 2667.63 | K100: 2684.07 | L100: 2701.13 | M100: 2667 | N100: 2633.5 | O100: 10347900 | P100: 0.43%
A101: 91 | B101: Others | C101: HONAUT | D101: 2022-08-25 | E101: 40465.95 | F101: 40735.70 | G101: 39981.25 | H101: 39496.55 | I101: 38742.10 | J101: 41220.40 | K101: 41974.85 | L101: 42459.55 | M101: 41490.15 | N101: 40251 | O101: 15495 | P101: -0.58%
A102: 92 | B102: Finance | C102: IBULHSGFIN | D102: 2022-08-25 | E102: 124.45 | F102: 124.27 | G102: 121.53 | H102: 118.62 | I102: 115.88 | J102: 127.18 | K102: 129.92 | L102: 132.83 | M102: 127 | N102: 121.35 | O102: 29976000 | P102: 1.42%
A103: 93 | B103: Banking | C103: ICICIBANK | D103: 2022-08-25 | E103: 835.20 | F103: 831.25 | G103: 824.55 | H103: 813.90 | I103: 807.20 | J103: 841.90 | K103: 848.60 | L103: 859.25 | M103: 837.95 | N103: 820.6 | O103: 64418750 | P103: 0.22%
A104: 94 | B104: Finance | C104: ICICIGI | D104: 2022-08-25 | E104: 1205.55 | F104: 1209.63 | G104: 1196.02 | H104: 1186.48 | I104: 1172.87 | J104: 1219.17 | K104: 1232.78 | L104: 1242.32 | M104: 1223.25 | N104: 1200.1 | O104: 3673275 | P104: 3.10%
A105: 95 | B105: Finance | C105: ICICIPRULI | D105: 2022-08-25 | E105: 577.95 | F105: 575.33 | G105: 565.62 | H105: 553.28 | I105: 543.57 | J105: 587.67 | K105: 597.38 | L105: 609.72 | M105: 585.05 | N105: 563 | O105: 8062500 | P105: 20.71%
A106: 96 | B106: Telecom | C106: IDEA | D106: 2022-08-25 | E106: 8.75 | F106: 8.78 | G106: 8.62 | H106: 8.48 | I106: 8.32 | J106: 8.92 | K106: 9.08 | L106: 9.22 | M106: 8.95 | N106: 8.65 | O106: 602630000 | P106: -0.30%
A107: 97 | B107: Finance | C107: IDFC | D107: 2022-08-25 | E107: 60.85 | F107: 60.48 | G107: 59.72 | H107: 58.58 | I107: 57.82 | J107: 61.62 | K107: 62.38 | L107: 63.52 | M107: 61.25 | N107: 59.35 | O107: 109090000 | P107: 3.74%
A108: 98 | B108: Banking | C108: IDFCFIRSTB | D108: 2022-08-25 | E108: 43.55 | F108: 43.67 | G108: 42.88 | H108: 42.22 | I108: 41.43 | J108: 44.33 | K108: 45.12 | L108: 45.78 | M108: 44.45 | N108: 43 | O108: 241170000 | P108: -0.83%
A109: 99 | B109: Others | C109: IEX | D109: 2022-08-25 | E109: 165.40 | F109: 165.55 | G109: 162.75 | H109: 160.10 | I109: 157.30 | J109: 168.20 | K109: 171.00 | L109: 173.65 | M109: 168.35 | N109: 162.9 | O109: 58312500 | P109: -1.41%
A110: 100 | B110: Oil_Gas | C110: IGL | D110: 2022-08-25 | E110: 354.70 | F110: 355.20 | G110: 348.80 | H110: 342.90 | I110: 336.50 | J110: 361.10 | K110: 367.50 | L110: 373.40 | M110: 361.6 | N110: 349.3 | O110: 14907750 | P110: 5.04%
A111: 101 | B111: Infrastructure | C111: INDHOTEL | D111: 2022-08-25 | E111: 270.60 | F111: 271.55 | G111: 268.10 | H111: 265.60 | I111: 262.15 | J111: 274.05 | K111: 277.50 | L111: 280.00 | M111: 275 | N111: 269.05 | O111: 25435128 | P111: -2.72%
A112: 102 | B112: Cement | C112: INDIACEM | D112: 2022-08-25 | E112: 191.05 | F112: 191.07 | G112: 189.38 | H112: 187.72 | I112: 186.03 | J112: 192.73 | K112: 194.42 | L112: 196.08 | M112: 192.75 | N112: 189.4 | O112: 10109400 | P112: 0.55%
A113: 103 | B113: Others | C113: INDIAMART | D113: 2022-08-25 | E113: 4583.05 | F113: 4553.35 | G113: 4481.75 | H113: 4380.45 | I113: 4308.85 | J113: 4654.65 | K113: 4726.25 | L113: 4827.55 | M113: 4624.95 | N113: 4452.05 | O113: 288150 | P113: -1.39%
A114: 104 | B114: Others | C114: INDIGO | D114: 2022-08-25 | E114: 2091.30 | F114: 2066.93 | G114: 2018.22 | H114: 1945.13 | I114: 1896.42 | J114: 2140.02 | K114: 2188.73 | L114: 2261.82 | M114: 2115.65 | N114: 1993.85 | O114: 2620500 | P114: 6.43%
A115: 105 | B115: Banking | C115: INDUSINDBK | D115: 2022-08-25 | E115: 1033.40 | F115: 1038.90 | G115: 1024.90 | H115: 1016.40 | I115: 1002.40 | J115: 1047.40 | K115: 1061.40 | L115: 1069.90 | M115: 1052.9 | N115: 1030.4 | O115: 26365500 | P115: 0.85%
A116: 106 | B116: Telecom | C116: INDUSTOWER | D116: 2022-08-25 | E116: 200.25 | F116: 201.17 | G116: 198.83 | H116: 197.42 | I116: 195.08 | J116: 202.58 | K116: 204.92 | L116: 206.33 | M116: 203.5 | N116: 199.75 | O116: 19628000 | P116: -1.41%
A117: 107 | B117: Technology | C117: INFY | D117: 2022-08-25 | E117: 1621.15 | F117: 1618.50 | G117: 1607.10 | H117: 1593.05 | I117: 1581.65 | J117: 1632.55 | K117: 1643.95 | L117: 1658.00 | M117: 1629.9 | N117: 1604.45 | O117: 35874300 | P117: -1.95%
A118: 108 | B118: Technology | C118: INTELLECT | D118: 2022-08-25 | E118: 613.75 | F118: 618.17 | G118: 607.13 | H118: 600.52 | I118: 589.48 | J118: 624.78 | K118: 635.82 | L118: 642.43 | M118: 629.2 | N118: 611.55 | O118: 1878750 | P118: 6.05%
A119: 109 | B119: Oil_Gas | C119: IOC | D119: 2022-08-25 | E119: 70.85 | F119: 70.20 | G119: 69.45 | H119: 68.05 | I119: 67.30 | J119: 71.60 | K119: 72.35 | L119: 73.75 | M119: 70.95 | N119: 68.8 | O119: 77814750 | P119: -4.86%
A120: 110 | B120: Pharma | C120: IPCALAB | D120: 2022-08-25 | E120: 1013.45 | F120: 1014.58 | G120: 996.17 | H120: 978.88 | I120: 960.47 | J120: 1031.87 | K120: 1050.28 | L120: 1067.57 | M120: 1033 | N120: 997.3 | O120: 829400 | P120: -4.35%
A121: 111 | B121: Others | C121: IRCTC | D121: 2022-08-25 | E121: 640.10 | F121: 640.03 | G121: 635.57 | H121: 631.03 | I121: 626.57 | J121: 644.57 | K121: 649.03 | L121: 653.57 | M121: 644.5 | N121: 635.5 | O121: 13222125 | P121: -0.28%
A122: 112 | B122: FMCG | C122: ITC | D122: 2022-08-25 | E122: 311.50 | F122: 311.57 | G122: 310.28 | H122: 309.07 | I122: 307.78 | J122: 312.78 | K122: 314.07 | L122: 315.28 | M122: 312.85 | N122: 310.35 | O122: 78352000 | P122: -3.52%
A123: 113 | B123: Metals | C123: JINDALSTEL | D123: 2022-08-25 | E123: 393.50 | F123: 392.13 | G123: 387.42 | H123: 381.33 | I123: 376.62 | J123: 398.22 | K123: 402.93 | L123: 409.02 | M123: 396.85 | N123: 386.05 | O123: 34032500 | P123: -1.90%
A124: 114 | B124: Cement | C124: JKCEMENT | D124: 2022-08-25 | E124: 2633.45 | F124: 2618.22 | G124: 2565.53 | H124: 2497.62 | I124: 2444.93 | J124: 2686.13 | K124: 2738.82 | L124: 2806.73 | M124: 2670.9 | N124: 2550.3 | O124: 463000 | P124: 13.76%
A125: 115 | B125: Metals | C125: JSWSTEEL | D125: 2022-08-25 | E125: 669.95 | F125: 671.20 | G125: 665.50 | H125: 661.05 | I125: 655.35 | J125: 675.65 | K125: 681.35 | L125: 685.80 | M125: 676.9 | N125: 666.75 | O125: 44571600 | P125: -2.28%
A126: 116 | B126: Others | C126: JUBLFOOD | D126: 2022-08-25 | E126: 578.55 | F126: 578.27 | G126: 573.53 | H126: 568.52 | I126: 563.78 | J126: 583.28 | K126: 588.02 | L126: 593.03 | M126: 583 | N126: 573.25 | O126: 10321250 | P126: -4.77%
A127: 117 | B127: Banking | C127: KOTAKBANK | D127: 2022-08-25 | E127: 1840.65 | F127: 1842.38 | G127: 1828.67 | H127: 1816.68 | I127: 1802.97 | J127: 1854.37 | K127: 1868.08 | L127: 1880.07 | M127: 1856.1 | N127: 1830.4 | O127: 15748000 | P127: -0.41%
A128: 118 | B128: Finance | C128: L&TFH | D128: 2022-08-25 | E128: 75.20 | F128: 75.33 | G128: 74.57 | H128: 73.93 | I128: 73.17 | J128: 75.97 | K128: 76.73 | L128: 77.37 | M128: 76.1 | N128: 74.7 | O128: 52419576 | P128: -0.32%
A129: 119 | B129: Others | C129: LALPATHLAB | D129: 2022-08-25 | E129: 2399.65 | F129: 2371.60 | G129: 2328.70 | H129: 2257.75 | I129: 2214.85 | J129: 2442.55 | K129: 2485.45 | L129: 2556.40 | M129: 2414.5 | N129: 2300.65 | O129: 1177250 | P129: 1.03%
A130: 120 | B130: Pharma | C130: LAURUSLABS | D130: 2022-08-25 | E130: 547.85 | F130: 550.45 | G130: 543.45 | H130: 539.05 | I130: 532.05 | J130: 554.85 | K130: 561.85 | L130: 566.25 | M130: 557.45 | N130: 546.05 | O130: 5882400 | P130: -4.79%
A131: 121 | B131: Finance | C131: LICHSGFIN | D131: 2022-08-25 | E131: 380.85 | F131: 383.27 | G131: 374.63 | H131: 368.42 | I131: 359.78 | J131: 389.48 | K131: 398.12 | L131: 404.33 | M131: 391.9 | N131: 377.05 | O131: 14642000 | P131: -3.78%
A132: 122 | B132: Capital_Goods | C132: LT | D132: 2022-08-25 | E132: 1794.50 | F132: 1796.53 | G132: 1780.17 | H132: 1765.83 | I132: 1749.47 | J132: 1810.87 | K132: 1827.23 | L132: 1841.57 | M132: 1812.9 | N132: 1782.2 | O132: 9646200 | P132: 1.39%
A133: 123 | B133: Technology | C133: LTI | D133: 2022-08-25 | E133: 4947.50 | F133: 4941.65 | G133: 4913.85 | H133: 4880.20 | I133: 4852.40 | J133: 4975.30 | K133: 5003.10 | L133: 5036.75 | M133: 4969.45 | N133: 4908 | O133: 1411500 | P133: 2.97%
A134: 124 | B134: Technology | C134: LTTS | D134: 2022-08-25 | E134: 3575.70 | F134: 3570.12 | G134: 3537.58 | H134: 3499.47 | I134: 3466.93 | J134: 3608.23 | K134: 3640.77 | L134: 3678.88 | M134: 3602.65 | N134: 3532 | O134: 1174400 | P134: -1.26%
A135: 125 | B135: Pharma | C135: LUPIN | D135: 2022-08-25 | E135: 671.20 | F135: 667.15 | G135: 661.10 | H135: 651.00 | I135: 644.95 | J135: 677.25 | K135: 683.30 | L135: 693.40 | M135: 673.2 | N135: 657.05 | O135: 10421850 | P135: -2.76%
A136: 126 | B136: Automobile | C136: M&M | D136: 2022-08-25 | E136: 1236.50 | F136: 1249.38 | G136: 1219.82 | H136: 1203.13 | I136: 1173.57 | J136: 1266.07 | K136: 1295.63 | L136: 1312.32 | M136: 1278.95 | N136: 1232.7 | O136: 12300400 | P136: 3.67%
A137: 127 | B137: Finance | C137: M&MFIN | D137: 2022-08-25 | E137: 196.15 | F137: 197.45 | G137: 194.45 | H137: 192.75 | I137: 189.75 | J137: 199.15 | K137: 202.15 | L137: 203.85 | M137: 200.45 | N137: 195.75 | O137: 28512000 | P137: -0.10%
A138: 128 | B138: Finance | C138: MANAPPURAM | D138: 2022-08-25 | E138: 108.05 | F138: 105.88 | G138: 101.12 | H138: 94.18 | I138: 89.42 | J138: 112.82 | K138: 117.58 | L138: 124.52 | M138: 110.65 | N138: 98.95 | O138: 29460000 | P138: 0.80%
A139: 129 | B139: FMCG | C139: MARICO | D139: 2022-08-25 | E139: 522.05 | F139: 527.15 | G139: 515.20 | H139: 508.35 | I139: 496.40 | J139: 534.00 | K139: 545.95 | L139: 552.80 | M139: 539.1 | N139: 520.3 | O139: 9927600 | P139: 3.39%
A140: 130 | B140: Automobile | C140: MARUTI | D140: 2022-08-25 | E140: 8879.15 | F140: 8916.45 | G140: 8816.95 | H140: 8754.75 | I140: 8655.25 | J140: 8978.65 | K140: 9078.15 | L140: 9140.35 | M140: 9015.95 | N140: 8854.25 | O140: 3943800 | P140: -0.40%
A141: 131 | B141: FMCG | C141: MCDOWELL-N | D141: 2022-08-25 | E141: 789.30 | F141: 792.67 | G141: 783.43 | H141: 777.57 | I141: 768.33 | J141: 798.53 | K141: 807.77 | L141: 813.63 | M141: 801.9 | N141: 786.8 | O141: 15439375 | P141: -1.71%
A142: 132 | B142: Others | C142: MCX | D142: 2022-08-25 | E142: 1277.85 | F142: 1288.62 | G142: 1263.23 | H142: 1248.62 | I142: 1223.23 | J142: 1303.23 | K142: 1328.62 | L142: 1343.23 | M142: 1314 | N142: 1274 | O142: 3080000 | P142: 1.74%
A143: 133 | B143: Pharma | C143: METROPOLIS | D143: 2022-08-25 | E143: 1559.40 | F143: 1569.67 | G143: 1544.73 | H143: 1530.07 | I143: 1505.13 | J143: 1584.33 | K143: 1609.27 | L143: 1623.93 | M143: 1594.6 | N143: 1555 | O143: 798900 | P143: 2.90%
A144: 134 | B144: Finance | C144: MFSL | D144: 2022-08-25 | E144: 823.55 | F144: 824.87 | G144: 816.88 | H144: 810.22 | I144: 802.23 | J144: 831.53 | K144: 839.52 | L144: 846.18 | M144: 832.85 | N144: 818.2 | O144: 1589900 | P144: 5.39%
A145: 135 | B145: Oil_Gas | C145: MGL | D145: 2022-08-25 | E145: 776.90 | F145: 773.42 | G145: 763.48 | H145: 750.07 | I145: 740.13 | J145: 786.83 | K145: 796.77 | L145: 810.18 | M145: 783.35 | N145: 760 | O145: 3391200 | P145: 2.74%
A146: 136 | B146: Technology | C146: MINDTREE | D146: 2022-08-25 | E146: 3574.65 | F146: 3565.28 | G146: 3543.62 | H146: 3512.58 | I146: 3490.92 | J146: 3596.32 | K146: 3617.98 | L146: 3649.02 | M146: 3586.95 | N146: 3534.25 | O146: 2756600 | P146: 0.53%
A147: 137 | B147: Automobile | C147: MOTHERSON | D147: 2022-08-25 | E147: 130.45 | F147: 130.48 | G147: 128.47 | H147: 126.48 | I147: 124.47 | J147: 132.47 | K147: 134.48 | L147: 136.47 | M147: 132.5 | N147: 128.5 | O147: 46863000 | P147: 2.59%
A148: 138 | B148: Technology | C148: MPHASIS | D148: 2022-08-25 | E148: 2406.70 | F148: 2399.38 | G148: 2374.77 | H148: 2342.83 | I148: 2318.22 | J148: 2431.32 | K148: 2455.93 | L148: 2487.87 | M148: 2424 | N148: 2367.45 | O148: 2259775 | P148: -1.99%
A149: 139 | B149: Automobile | C149: MRF | D149: 2022-08-25 | E149: 88871.95 | F149: 88616.17 | G149: 88060.78 | H149: 87249.62 | I149: 86694.23 | J149: 89427.33 | K149: 89982.72 | L149: 90793.88 | M149: 89171.55 | N149: 87805 | O149: 70820 | P149: 0.73%
A150: 140 | B150: Finance | C150: MUTHOOTFIN | D150: 2022-08-25 | E150: 1147.85 | F150: 1138.97 | G150: 1119.03 | H150: 1090.22 | I150: 1070.28 | J150: 1167.78 | K150: 1187.72 | L150: 1216.53 | M150: 1158.9 | N150: 1110.15 | O150: 4564125 | P150: -7.02%
A151: 141 | B151: Others | C151: NAM-INDIA | D151: 2022-08-25 | E151: 300.45 | F151: 300.92 | G151: 297.08 | H151: 293.72 | I151: 289.88 | J151: 304.28 | K151: 308.12 | L151: 311.48 | M151: 304.75 | N151: 297.55 | O151: 2505600 | P151: -8.26%
A152: 142 | B152: Metals | C152: NATIONALUM | D152: 2022-08-25 | E152: 77.65 | F152: 78.03 | G152: 77.02 | H152: 76.38 | I152: 75.37 | J152: 78.67 | K152: 79.68 | L152: 80.32 | M152: 79.05 | N152: 77.4 | O152: 62368750 | P152: -1.28%
A153: 143 | B153: Others | C153: NAUKRI | D153: 2022-08-25 | E153: 4311.00 | F153: 4309.45 | G153: 4277.90 | H153: 4244.80 | I153: 4213.25 | J153: 4342.55 | K153: 4374.10 | L153: 4407.20 | M153: 4341 | N153: 4276.35 | O153: 1565500 | P153: 0.37%
A154: 144 | B154: Chemical | C154: NAVINFLUOR | D154: 2022-08-25 | E154: 4493.30 | F154: 4467.10 | G154: 4362.30 | H154: 4231.30 | I154: 4126.50 | J154: 4598.10 | K154: 4702.90 | L154: 4833.90 | M154: 4571.9 | N154: 4336.1 | O154: 596925 | P154: 5.36%
A155: 145 | B155: FMCG | C155: NESTLEIND | D155: 2022-08-25 | E155: 19954.10 | F155: 19941.30 | G155: 19809.05 | H155: 19664.00 | I155: 19531.75 | J155: 20086.35 | K155: 20218.60 | L155: 20363.65 | M155: 20073.55 | N155: 19796.25 | O155: 391000 | P155: -0.48%
A156: 146 | B156: Metals | C156: NMDC | D156: 2022-08-25 | E156: 111.70 | F156: 110.77 | G156: 108.63 | H156: 105.57 | I156: 103.43 | J156: 113.83 | K156: 115.97 | L156: 119.03 | M156: 112.9 | N156: 107.7 | O156: 88543850 | P156: -3.60%
A157: 147 | B157: Power | C157: NTPC | D157: 2022-08-25 | E157: 153.50 | F157: 153.25 | G157: 152.00 | H157: 150.50 | I157: 149.25 | J157: 154.75 | K157: 156.00 | L157: 157.50 | M157: 154.5 | N157: 151.75 | O157: 66427800 | P157: 6.61%
A158: 148 | B158: Realty | C158: OBEROIRLTY | D158: 2022-08-25 | E158: 898.70 | F158: 900.13 | G158: 891.72 | H158: 884.73 | I158: 876.32 | J158: 907.12 | K158: 915.53 | L158: 922.52 | M158: 908.55 | N158: 893.15 | O158: 4865000 | P158: -1.39%
A159: 149 | B159: Technology | C159: OFSS | D159: 2022-08-25 | E159: 3385.75 | F159: 3375.28 | G159: 3315.57 | H159: 3245.38 | I159: 3185.67 | J159: 3445.47 | K159: 3505.18 | L159: 3575.37 | M159: 3435 | N159: 3305.1 | O159: 414800 | P159: 1.77%
A160: 150 | B160: Oil_Gas | C160: ONGC | D160: 2022-08-25 | E160: 133.30 | F160: 132.88 | G160: 130.87 | H160: 128.43 | I160: 126.42 | J160: 135.32 | K160: 137.33 | L160: 139.77 | M160: 134.9 | N160: 130.45 | O160: 49657300 | P160: 4.00%
A161: 151 | B161: Textile | C161: PAGEIND | D161: 2022-08-25 | E161: 48370.90 | F161: 48603.62 | G161: 47967.28 | H161: 47563.67 | I161: 46927.33 | J161: 49007.23 | K161: 49643.57 | L161: 50047.18 | M161: 49239.95 | N161: 48200 | O161: 103410 | P161: 1.97%
A162: 152 | B162: Pharma | C162: PEL | D162: 2022-08-25 | E162: 1736.65 | F162: 1746.60 | G162: 1711.05 | H162: 1685.45 | I162: 1649.90 | J162: 1772.20 | K162: 1807.75 | L162: 1833.35 | M162: 1782.15 | N162: 1721 | O162: 4791600 | P162: 8.18%
A163: 153 | B163: Technology | C163: PERSISTENT | D163: 2022-08-25 | E163: 3810.75 | F163: 3818.98 | G163: 3768.77 | H163: 3726.78 | I163: 3676.57 | J163: 3860.97 | K163: 3911.18 | L163: 3953.17 | M163: 3869.2 | N163: 3777 | O163: 554550 | P163: -1.33%
A164: 154 | B164: Oil_Gas | C164: PETRONET | D164: 2022-08-25 | E164: 216.85 | F164: 215.78 | G164: 214.22 | H164: 211.58 | I164: 210.02 | J164: 218.42 | K164: 219.98 | L164: 222.62 | M164: 217.35 | N164: 213.15 | O164: 14145000 | P164: -0.72%
A165: 155 | B165: Finance | C165: PFC | D165: 2022-08-25 | E165: 119.35 | F165: 119.48 | G165: 118.97 | H165: 118.58 | I165: 118.07 | J165: 119.87 | K165: 120.38 | L165: 120.77 | M165: 120 | N165: 119.1 | O165: 29617400 | P165: 2.42%
A166: 156 | B166: FMCG | C166: PIDILITIND | D166: 2022-08-25 | E166: 2643.60 | F166: 2622.18 | G166: 2594.37 | H166: 2545.13 | I166: 2517.32 | J166: 2671.42 | K166: 2699.23 | L166: 2748.47 | M166: 2650 | N166: 2572.95 | O166: 2810000 | P166: 1.84%
A167: 157 | B167: Chemical | C167: PIIND | D167: 2022-08-25 | E167: 3254.75 | F167: 3216.95 | G167: 3153.90 | H167: 3053.05 | I167: 2990.00 | J167: 3317.80 | K167: 3380.85 | L167: 3481.70 | M167: 3280 | N167: 3116.1 | O167: 1783250 | P167: -3.80%
A168: 158 | B168: Banking | C168: PNB | D168: 2022-08-25 | E168: 33.60 | F168: 33.63 | G168: 33.27 | H168: 32.93 | I168: 32.57 | J168: 33.97 | K168: 34.33 | L168: 34.67 | M168: 34 | N168: 33.3 | O168: 199136000 | P168: -2.45%
A169: 159 | B169: Others | C169: POLYCAB | D169: 2022-08-25 | E169: 2364.15 | F169: 2370.98 | G169: 2348.02 | H169: 2331.88 | I169: 2308.92 | J169: 2387.12 | K169: 2410.08 | L169: 2426.22 | M169: 2393.95 | N169: 2354.85 | O169: 999000 | P169: -1.07%
A170: 160 | B170: Power | C170: POWERGRID | D170: 2022-08-25 | E170: 221.70 | F170: 220.68 | G170: 218.87 | H170: 216.03 | I170: 214.22 | J170: 223.52 | K170: 225.33 | L170: 228.17 | M170: 222.5 | N170: 217.85 | O170: 42282000 | P170: -4.03%
A171: 161 | B171: Media | C171: PVR | D171: 2022-08-25 | E171: 2121.20 | F171: 2137.67 | G171: 2100.33 | H171: 2079.47 | I171: 2042.13 | J171: 2158.53 | K171: 2195.87 | L171: 2216.73 | M171: 2175 | N171: 2116.8 | O171: 2641430 | P171: -2.60%
A172: 162 | B172: Others | C172: RAIN | D172: 2022-08-25 | E172: 190.05 | F172: 191.35 | G172: 187.35 | H172: 184.65 | I172: 180.65 | J172: 194.05 | K172: 198.05 | L172: 200.75 | M172: 195.35 | N172: 188.65 | O172: 10857000 | P172: 1.01%
A173: 163 | B173: Cement | C173: RAMCOCEM | D173: 2022-08-25 | E173: 752.90 | F173: 745.32 | G173: 735.58 | H173: 718.27 | I173: 708.53 | J173: 762.63 | K173: 772.37 | L173: 789.68 | M173: 755.05 | N173: 728 | O173: 5458700 | P173: 6.39%
A174: 164 | B174: Banking | C174: RBLBANK | D174: 2022-08-25 | E174: 96.70 | F174: 97.12 | G174: 95.48 | H174: 94.27 | I174: 92.63 | J174: 98.33 | K174: 99.97 | L174: 101.18 | M174: 98.75 | N174: 95.9 | O174: 45030000 | P174: -3.82%
A175: 165 | B175: Power | C175: RECLTD | D175: 2022-08-25 | E175: 134.20 | F175: 134.02 | G175: 133.03 | H175: 131.87 | I175: 130.88 | J175: 135.18 | K175: 136.17 | L175: 137.33 | M175: 135 | N175: 132.85 | O175: 22926000 | P175: 2.69%
A176: 166 | B176: Oil_Gas | C176: RELIANCE | D176: 2022-08-25 | E176: 2540.00 | F176: 2551.02 | G176: 2522.08 | H176: 2504.17 | I176: 2475.23 | J176: 2568.93 | K176: 2597.87 | L176: 2615.78 | M176: 2579.95 | N176: 2533.1 | O176: 33174250 | P176: 0.58%
A177: 167 | B177: Metals | C177: SAIL | D177: 2022-08-25 | E177: 78.00 | F177: 78.13 | G177: 77.37 | H177: 76.73 | I177: 75.97 | J177: 78.77 | K177: 79.53 | L177: 80.17 | M177: 78.9 | N177: 77.5 | O177: 107802000 | P177: -0.64%
A178: 168 | B178: Banking | C178: SBICARD | D178: 2022-08-25 | E178: 938.90 | F178: 940.43 | G178: 931.32 | H178: 923.73 | I178: 914.62 | J178: 948.02 | K178: 957.13 | L178: 964.72 | M178: 949.55 | N178: 932.85 | O178: 6028800 | P178: 0.48%
A179: 169 | B179: Finance | C179: SBILIFE | D179: 2022-08-25 | E179: 1271.30 | F179: 1277.12 | G179: 1261.88 | H179: 1252.47 | I179: 1237.23 | J179: 1286.53 | K179: 1301.77 | L179: 1311.18 | M179: 1292.35 | N179: 1267.7 | O179: 6696750 | P179: -1.52%
A180: 170 | B180: Banking | C180: SBIN | D180: 2022-08-25 | E180: 530.40 | F180: 534.10 | G180: 524.10 | H180: 517.80 | I180: 507.80 | J180: 540.40 | K180: 550.40 | L180: 556.70 | M180: 544.1 | N180: 527.8 | O180: 55219500 | P180: 6.05%
A181: 171 | B181: Cement | C181: SHREECEM | D181: 2022-08-25 | E181: 21115.20 | F181: 20955.97 | G181: 20732.03 | H181: 20348.87 | I181: 20124.93 | J181: 21339.13 | K181: 21563.07 | L181: 21946.23 | M181: 21179.9 | N181: 20572.8 | O181: 324125 | P181: 1.10%
A182: 172 | B182: Capital_Goods | C182: SIEMENS | D182: 2022-08-25 | E182: 2699.00 | F182: 2694.12 | G182: 2664.28 | H182: 2629.57 | I182: 2599.73 | J182: 2728.83 | K182: 2758.67 | L182: 2793.38 | M182: 2723.95 | N182: 2659.4 | O182: 1822975 | P182: -2.21%
A183: 173 | B183: Textile | C183: SRF | D183: 2022-08-25 | E183: 2505.85 | F183: 2492.97 | G183: 2459.93 | H183: 2414.02 | I183: 2380.98 | J183: 2538.88 | K183: 2571.92 | L183: 2617.83 | M183: 2526 | N183: 2447.05 | O183: 3725625 | P183: 2.11%
A184: 174 | B184: Finance | C184: SRTRANSFIN | D184: 2022-08-25 | E184: 1361.30 | F184: 1365.38 | G184: 1350.82 | H184: 1340.33 | I184: 1325.77 | J184: 1375.87 | K184: 1390.43 | L184: 1400.92 | M184: 1379.95 | N184: 1354.9 | O184: 3981600 | P184: -2.40%
A185: 175 | B185: Pharma | C185: SUNPHARMA | D185: 2022-08-25 | E185: 915.15 | F185: 918.12 | G185: 908.23 | H185: 901.32 | I185: 891.43 | J185: 925.03 | K185: 934.92 | L185: 941.83 | M185: 928 | N185: 911.2 | O185: 20529600 | P185: -3.91%
A186: 176 | B186: Media | C186: SUNTV | D186: 2022-08-25 | E186: 470.60 | F186: 471.28 | G186: 466.72 | H186: 462.83 | I186: 458.27 | J186: 475.17 | K186: 479.73 | L186: 483.62 | M186: 475.85 | N186: 467.4 | O186: 9882000 | P186: 1.49%
A187: 177 | B187: Pharma | C187: SYNGENE | D187: 2022-08-25 | E187: 564.00 | F187: 566.07 | G187: 558.93 | H187: 553.87 | I187: 546.73 | J187: 571.13 | K187: 578.27 | L187: 583.33 | M187: 573.2 | N187: 561 | O187: 2651000 | P187: 2.79%
A188: 178 | B188: Chemical | C188: TATACHEM | D188: 2022-08-25 | E188: 953.60 | F188: 954.42 | G188: 946.28 | H188: 938.97 | I188: 930.83 | J188: 961.73 | K188: 969.87 | L188: 977.18 | M188: 962.55 | N188: 947.1 | O188: 4954000 | P188: -3.30%
A189: 179 | B189: Telecom | C189: TATACOMM | D189: 2022-08-25 | E189: 1105.25 | F189: 1090.67 | G189: 1066.98 | H189: 1028.72 | I189: 1005.03 | J189: 1128.93 | K189: 1152.62 | L189: 1190.88 | M189: 1114.35 | N189: 1052.4 | O189: 3060000 | P189: -1.78%
A190: 180 | B190: FMCG | C190: TATACONSUM | D190: 2022-08-25 | E190: 788.60 | F190: 790.80 | G190: 784.00 | H190: 779.40 | I190: 772.60 | J190: 795.40 | K190: 802.20 | L190: 806.80 | M190: 797.6 | N190: 786.2 | O190: 9034200 | P190: 2.08%
A191: 181 | B191: Automobile | C191: TATAMOTORS | D191: 2022-08-25 | E191: 466.60 | F191: 468.73 | G191: 463.42 | H191: 460.23 | I191: 454.92 | J191: 471.92 | K191: 477.23 | L191: 480.42 | M191: 474.05 | N191: 465.55 | O191: 67540725 | P191: -0.95%
A192: 182 | B192: Power | C192: TATAPOWER | D192: 2022-08-25 | E192: 232.70 | F192: 231.62 | G192: 229.58 | H192: 226.47 | I192: 224.43 | J192: 234.73 | K192: 236.77 | L192: 239.88 | M192: 233.65 | N192: 228.5 | O192: 90902250 | P192: 0.06%
A193: 183 | B193: Metals | C193: TATASTEEL | D193: 2022-08-25 | E193: 107.90 | F193: 108.42 | G193: 107.13 | H193: 106.37 | I193: 105.08 | J193: 109.18 | K193: 110.47 | L193: 111.23 | M193: 109.7 | N193: 107.65 | O193: 241676250 | P193: -0.01%
A194: 184 | B194: Technology | C194: TCS | D194: 2022-08-25 | E194: 3376.40 | F194: 3378.40 | G194: 3363.10 | H194: 3349.80 | I194: 3334.50 | J194: 3391.70 | K194: 3407.00 | L194: 3420.30 | M194: 3393.7 | N194: 3365.1 | O194: 12326550 | P194: -1.58%
A195: 185 | B195: Technology | C195: TECHM | D195: 2022-08-25 | E195: 1061.20 | F195: 1062.95 | G195: 1052.60 | H195: 1044.00 | I195: 1033.65 | J195: 1071.55 | K195: 1081.90 | L195: 1090.50 | M195: 1073.3 | N195: 1054.35 | O195: 22992600 | P195: 0.06%
A196: 186 | B196: FMCG | C196: TITAN | D196: 2022-08-25 | E196: 2444.90 | F196: 2450.58 | G196: 2419.22 | H196: 2393.53 | I196: 2362.17 | J196: 2476.27 | K196: 2507.63 | L196: 2533.32 | M196: 2481.95 | N196: 2424.9 | O196: 5749125 | P196: 3.02%
A197: 187 | B197: Pharma | C197: TORNTPHARM | D197: 2022-08-25 | E197: 1562.95 | F197: 1565.28 | G197: 1550.82 | H197: 1538.68 | I197: 1524.22 | J197: 1577.42 | K197: 1591.88 | L197: 1604.02 | M197: 1579.75 | N197: 1553.15 | O197: 1601500 | P197: -0.31%
A198: 188 | B198: Power | C198: TORNTPOWER | D198: 2022-08-25 | E198: 539.10 | F198: 537.33 | G198: 530.72 | H198: 522.33 | I198: 515.72 | J198: 545.72 | K198: 552.33 | L198: 560.72 | M198: 543.95 | N198: 528.95 | O198: 3180000 | P198: 0.43%
A199: 189 | B199: Others | C199: TRENT | D199: 2022-08-25 | E199: 1320.65 | F199: 1318.73 | G199: 1311.17 | H199: 1301.68 | I199: 1294.12 | J199: 1328.22 | K199: 1335.78 | L199: 1345.27 | M199: 1326.3 | N199: 1309.25 | O199: 4974225 | P199: 0.38%
A200: 190 | B200: Automobile | C200: TVSMOTOR | D200: 2022-08-25 | E200: 944.40 | F200: 942.27 | G200: 936.38 | H200: 928.37 | I200: 922.48 | J200: 950.28 | K200: 956.17 | L200: 964.18 | M200: 948.15 | N200: 934.25 | O200: 8771000 | P200: 0.13%
A201: 191 | B201: FMCG | C201: UBL | D201: 2022-08-25 | E201: 1611.00 | F201: 1614.80 | G201: 1601.20 | H201: 1591.40 | I201: 1577.80 | J201: 1624.60 | K201: 1638.20 | L201: 1648.00 | M201: 1628.4 | N201: 1605 | O201: 1129200 | P201: -2.96%
A202: 192 | B202: Cement | C202: ULTRACEMCO | D202: 2022-08-25 | E202: 6794.65 | F202: 6731.88 | G202: 6654.12 | H202: 6513.58 | I202: 6435.82 | J202: 6872.42 | K202: 6950.18 | L202: 7090.72 | M202: 6809.65 | N202: 6591.35 | O202: 2044300 | P202: 1.44%
A203: 193 | B203: Chemical | C203: UPL | D203: 2022-08-25 | E203: 746.15 | F203: 744.42 | G203: 736.08 | H203: 726.02 | I203: 717.68 | J203: 754.48 | K203: 762.82 | L203: 772.88 | M203: 752.75 | N203: 734.35 | O203: 22791600 | P203: -2.17%
A204: 194 | B204: Metals | C204: VEDL | D204: 2022-08-25 | E204: 254.60 | F204: 255.02 | G204: 251.73 | H204: 248.87 | I204: 245.58 | J204: 257.88 | K204: 261.17 | L204: 264.03 | M204: 258.3 | N204: 252.15 | O204: 43637150 | P204: 1.82%
A205: 195 | B205: Capital_Goods | C205: VOLTAS | D205: 2022-08-25 | E205: 970.85 | F205: 983.30 | G205: 956.60 | H205: 942.35 | I205: 915.65 | J205: 997.55 | K205: 1024.25 | L205: 1038.50 | M205: 1010 | N205: 969.05 | O205: 4252500 | P205: 5.36%
A206: 196 | B206: Capital_Goods | C206: WHIRLPOOL | D206: 2022-08-25 | E206: 1793.55 | F206: 1796.07 | G206: 1769.78 | H206: 1746.02 | I206: 1719.73 | J206: 1819.83 | K206: 1846.12 | L206: 1869.88 | M206: 1822.35 | N206: 1772.3 | O206: 520800 | P206: -3.06%
... 18 more rows

Sheet Cash Intra
M5: Back to Main Page
A6: FOR INTRA DAY TRADING | K6: =Main!B10 -> 2022-08-08
A8: Sr.no | C8: CLOSE RATE | D8: Pivot Point | E8: Supports | H8: Resistances
E9: S1 | F9: S2 | G9: S3 | H9: R1 | I9: R2 | J9: R3 | K9: HIGH | L9: LOW | M9: Total Trade Quanity in Lakhs
A10: 1 | B10: Nifty 50 | C10: 17397.5 | D10: 17406.88 | E10: 17339.37 | F10: 17281.23 | G10: 17213.72 | H10: 17465.02 | I10: 17532.53 | J10: 17590.67 | K10: 17474.4 | L10: 17348.75
A11: 2 | B11: Nifty Bank | C11: 37920.6 | D11: 37950.32 | E11: 37750.18 | F11: 37579.77 | G11: 37379.63 | H11: 38120.73 | I11: 38320.87 | J11: 38491.28 | K11: 38150.45 | L11: 37779.9
A12: 3 | B12: Nifty CPSE | C12: 2579.65 | D12: 2573.63 | E12: 2553.57 | F12: 2527.48 | G12: 2507.42 | H12: 2599.72 | I12: 2619.78 | J12: 2645.87 | K12: 2593.7 | L12: 2547.55
A13: 4 | B13: Nifty Infra | C13: 4950.65 | D13: 4947.55 | E13: 4933.95 | F13: 4917.25 | G13: 4903.65 | H13: 4964.25 | I13: 4977.85 | J13: 4994.55 | K13: 4961.15 | L13: 4930.85
A14: 5 | B14: Nifty IT | C14: 29973.55 | D14: 29950.98 | E14: 29821.77 | F14: 29669.98 | G14: 29540.77 | H14: 30102.77 | I14: 30231.98 | J14: 30383.77 | K14: 30080.2 | L14: 29799.2
A15: 6 | B15: Nifty PSE | C15: 4052.15 | D15: 4045.60 | E15: 4026.25 | F15: 4000.35 | G15: 3981.00 | H15: 4071.50 | I15: 4090.85 | J15: 4116.75 | K15: 4064.95 | L15: 4019.7
A16: 7 | B16: Nifty Midcap 50 | C16: 8225.9 | D16: 8226.47 | E16: 8199.48 | F16: 8173.07 | G16: 8146.08 | H16: 8252.88 | I16: 8279.87 | J16: 8306.28 | K16: 8253.45 | L16: 8200.05
A17: 8 | B17: ABB | C17: 2688.2 | D17: 2701.85 | E17: 2661.70 | F17: 2635.20 | G17: 2595.05 | H17: 2728.35 | I17: 2768.50 | J17: 2795.00 | K17: 2742 | L17: 2675.35 | M17: 2.72399
A18: 9 | B18: ACC | C18: 2254.8 | D18: 2244.13 | E18: 2229.27 | F18: 2203.73 | G18: 2188.87 | H18: 2269.67 | I18: 2284.53 | J18: 2310.07 | K18: 2259 | L18: 2218.6 | M18: 2.91021
A19: 10 | B19: AUBANK | C19: 648 | D19: 642.20 | E19: 634.30 | F19: 620.60 | G19: 612.70 | H19: 655.90 | I19: 663.80 | J19: 677.50 | K19: 650.1 | L19: 628.5 | M19: 18.38153
A20: 11 | B20: ABBOTINDIA | C20: 20426.25 | D20: 20426.08 | E20: 20252.17 | F20: 20078.08 | G20: 19904.17 | H20: 20600.17 | I20: 20774.08 | J20: 20948.17 | K20: 20600 | L20: 20252 | M20: 0.11848
A21: 12 | B21: ADANIENT | C21: 2698.4 | D21: 2717.02 | E21: 2666.38 | F21: 2634.37 | G21: 2583.73 | H21: 2749.03 | I21: 2799.67 | J21: 2831.68 | K21: 2767.65 | L21: 2685 | M21: 16.39981
A22: 13 | B22: ADANIGREEN | C22: 2106.2 | D22: 2128.68 | E22: 2047.52 | F22: 1988.83 | G22: 1907.67 | H22: 2187.37 | I22: 2268.53 | J22: 2327.22 | K22: 2209.85 | L22: 2070 | M22: 17.19376
A23: 14 | B23: ADANIPORTS | C23: 810.25 | D23: 811.48 | E23: 804.27 | F23: 798.28 | G23: 791.07 | H23: 817.47 | I23: 824.68 | J23: 830.67 | K23: 818.7 | L23: 805.5 | M23: 28.07602
A24: 15 | B24: ATGL | C24: 3347.4 | D24: 3342.92 | E24: 3307.03 | F24: 3266.67 | G24: 3230.78 | H24: 3383.28 | I24: 3419.17 | J24: 3459.53 | K24: 3378.8 | L24: 3302.55 | M24: 5.0262
A25: 16 | B25: ADANITRANS | C25: 3313.55 | D25: 3348.45 | E25: 3147.90 | F25: 2982.25 | G25: 2781.70 | H25: 3514.10 | I25: 3714.65 | J25: 3880.30 | K25: 3549 | L25: 3182.8 | M25: 6.95816
A26: 17 | B26: ABCAPITAL | C26: 105.15 | D26: 105.33 | E26: 104.42 | F26: 103.68 | G26: 102.77 | H26: 106.07 | I26: 106.98 | J26: 107.72 | K26: 106.25 | L26: 104.6 | M26: 21.26415
A27: 18 | B27: ABFRL | C27: 277.9 | D27: 277.55 | E27: 273.10 | F27: 268.30 | G27: 263.85 | H27: 282.35 | I27: 286.80 | J27: 291.60 | K27: 282 | L27: 272.75 | M27: 61.15112
A28: 19 | B28: APLLTD | C28: 672.65 | D28: 677.37 | E28: 665.38 | F28: 658.12 | G28: 646.13 | H28: 684.63 | I28: 696.62 | J28: 703.88 | K28: 689.35 | L28: 670.1 | M28: 4.29802
A29: 20 | B29: ALKEM | C29: 3112.8 | D29: 3144.27 | E29: 3063.53 | F29: 3014.27 | G29: 2933.53 | H29: 3193.53 | I29: 3274.27 | J29: 3323.53 | K29: 3225 | L29: 3095 | M29: 6.62081
A30: 21 | B30: AMBUJACEM | C30: 382.65 | D30: 381.92 | E30: 380.78 | F30: 378.92 | G30: 377.78 | H30: 383.78 | I30: 384.92 | J30: 386.78 | K30: 383.05 | L30: 380.05 | M30: 50.63415
A31: 22 | B31: APOLLOHOSP | C31: 4374.1 | D31: 4377.03 | E31: 4332.07 | F31: 4290.03 | G31: 4245.07 | H31: 4419.07 | I31: 4464.03 | J31: 4506.07 | K31: 4422 | L31: 4335 | M31: 2.0751
A32: 23 | B32: APOLLOTYRE | C32: 230 | D32: 230.50 | E32: 227.55 | F32: 225.10 | G32: 222.15 | H32: 232.95 | I32: 235.90 | J32: 238.35 | K32: 233.45 | L32: 228.05 | M32: 21.46494
A33: 24 | B33: ASHOKLEY | C33: 144.95 | D33: 145.68 | E33: 143.82 | F33: 142.68 | G33: 140.82 | H33: 146.82 | I33: 148.68 | J33: 149.82 | K33: 147.55 | L33: 144.55 | M33: 88.1493
A34: 25 | B34: ASIANPAINT | C34: 3473.9 | D34: 3472.47 | E34: 3452.98 | F34: 3432.07 | G34: 3412.58 | H34: 3493.38 | I34: 3512.87 | J34: 3533.78 | K34: 3491.95 | L34: 3451.55 | M34: 7.92478
A35: 26 | B35: ASTRAL | C35: 1994.2 | D35: 1984.78 | E35: 1967.62 | F35: 1941.03 | G35: 1923.87 | H35: 2011.37 | I35: 2028.53 | J35: 2055.12 | K35: 2001.95 | L35: 1958.2 | M35: 3.15181
A36: 27 | B36: AUROPHARMA | C36: 568.65 | D36: 574.03 | E36: 561.12 | F36: 553.58 | G36: 540.67 | H36: 581.57 | I36: 594.48 | J36: 602.02 | K36: 586.95 | L36: 566.5 | M36: 20.86017
A37: 28 | B37: DMART | C37: 4232.25 | D37: 4238.13 | E37: 4181.27 | F37: 4130.28 | G37: 4073.42 | H37: 4289.12 | I37: 4345.98 | J37: 4396.97 | K37: 4295 | L37: 4187.15 | M37: 5.28876
A38: 29 | B38: AXISBANK | C38: 728.5 | D38: 726.97 | E38: 722.73 | F38: 716.97 | G38: 712.73 | H38: 732.73 | I38: 736.97 | J38: 742.73 | K38: 731.2 | L38: 721.2 | M38: 45.83196
A39: 30 | B39: BAJAJ-AUTO | C39: 4013.1 | D39: 4014.80 | E39: 3991.35 | F39: 3969.60 | G39: 3946.15 | H39: 4036.55 | I39: 4060.00 | J39: 4081.75 | K39: 4038.25 | L39: 3993.05 | M39: 2.87542
A40: 31 | B40: BAJFINANCE | C40: 7304.7 | D40: 7316.23 | E40: 7264.52 | F40: 7224.33 | G40: 7172.62 | H40: 7356.42 | I40: 7408.13 | J40: 7448.32 | K40: 7367.95 | L40: 7276.05 | M40: 7.58078
A41: 32 | B41: BAJAJFINSV | C41: 15085.85 | D41: 15120.08 | E41: 14989.17 | F41: 14892.48 | G41: 14761.57 | H41: 15216.77 | I41: 15347.68 | J41: 15444.37 | K41: 15251 | L41: 15023.4 | M41: 2.07847
A42: 33 | B42: BAJAJHLDNG | C42: 5257.7 | D42: 5259.88 | E42: 5128.87 | F42: 5000.03 | G42: 4869.02 | H42: 5388.72 | I42: 5519.73 | J42: 5648.57 | K42: 5390.9 | L42: 5131.05 | M42: 0.91652
A43: 34 | B43: BALKRISIND | C43: 2162.8 | D43: 2187.78 | E43: 2105.62 | F43: 2048.43 | G43: 1966.27 | H43: 2244.97 | I43: 2327.13 | J43: 2384.32 | K43: 2269.95 | L43: 2130.6 | M43: 25.52684
A44: 35 | B44: BANDHANBNK | C44: 274.1 | D44: 276.18 | E44: 271.42 | F44: 268.73 | G44: 263.97 | H44: 278.87 | I44: 283.63 | J44: 286.32 | K44: 280.95 | L44: 273.5 | M44: 55.10679
A45: 36 | B45: BANKBARODA | C45: 117.9 | D45: 118.65 | E45: 116.80 | F45: 115.70 | G45: 113.85 | H45: 119.75 | I45: 121.60 | J45: 122.70 | K45: 120.5 | L45: 117.55 | M45: 339.06201
A46: 37 | B46: BANKINDIA | C46: 48.75 | D46: 48.85 | E46: 48.20 | F46: 47.65 | G46: 47.00 | H46: 49.40 | I46: 50.05 | J46: 50.60 | K46: 49.5 | L46: 48.3 | M46: 25.95425
A47: 38 | B47: BATAINDIA | C47: 1901.5 | D47: 1908.95 | E47: 1887.10 | F47: 1872.70 | G47: 1850.85 | H47: 1923.35 | I47: 1945.20 | J47: 1959.60 | K47: 1930.8 | L47: 1894.55 | M47: 1.76656
A48: 39 | B48: BERGEPAINT | C48: 673.75 | D48: 673.83 | E48: 662.67 | F48: 651.58 | G48: 640.42 | H48: 684.92 | I48: 696.08 | J48: 707.17 | K48: 685 | L48: 662.75 | M48: 39.51984
A49: 40 | B49: BEL | C49: 276.15 | D49: 276.13 | E49: 267.27 | F49: 258.38 | G49: 249.52 | H49: 285.02 | I49: 293.88 | J49: 302.77 | K49: 285 | L49: 267.25 | M49: 267.87928
A50: 41 | B50: BHARATFORG | C50: 706.4 | D50: 708.80 | E50: 701.10 | F50: 695.80 | G50: 688.10 | H50: 714.10 | I50: 721.80 | J50: 727.10 | K50: 716.5 | L50: 703.5 | M50: 9.40681
A51: 42 | B51: BHEL | C51: 51.65 | D51: 51.97 | E51: 51.18 | F51: 50.72 | G51: 49.93 | H51: 52.43 | I51: 53.22 | J51: 53.68 | K51: 52.75 | L51: 51.5 | M51: 185.74304
A52: 43 | B52: BPCL | C52: 336.4 | D52: 335.28 | E52: 333.32 | F52: 330.23 | G52: 328.27 | H52: 338.37 | I52: 340.33 | J52: 343.42 | K52: 337.25 | L52: 332.2 | M52: 25.57623
A53: 44 | B53: BHARTIARTL | C53: 703.65 | D53: 703.33 | E53: 696.67 | F53: 689.68 | G53: 683.02 | H53: 710.32 | I53: 716.98 | J53: 723.97 | K53: 710 | L53: 696.35 | M53: 58.11092
A54: 45 | B54: BIOCON | C54: 313.3 | D54: 313.80 | E54: 311.25 | F54: 309.20 | G54: 306.65 | H54: 315.85 | I54: 318.40 | J54: 320.45 | K54: 316.35 | L54: 311.75 | M54: 14.1321
A55: 46 | B55: BOSCHLTD | C55: 17399.85 | D55: 17439.17 | E55: 17063.33 | F55: 16726.82 | G55: 16350.98 | H55: 17775.68 | I55: 18151.52 | J55: 18488.03 | K55: 17815 | L55: 17102.65 | M55: 0.70018
A56: 47 | B56: BRITANNIA | C56: 3688.1 | D56: 3734.28 | E56: 3632.67 | F56: 3577.23 | G56: 3475.62 | H56: 3789.72 | I56: 3891.33 | J56: 3946.77 | K56: 3835.9 | L56: 3678.85 | M56: 7.9885
A57: 48 | B57: CANBK | C57: 221.25 | D57: 223.43 | E57: 218.27 | F57: 215.28 | G57: 210.12 | H57: 226.42 | I57: 231.58 | J57: 234.57 | K57: 228.6 | L57: 220.45 | M57: 115.90985
A58: 49 | B58: CHOLAFIN | C58: 771.2 | D58: 774.23 | E58: 760.97 | F58: 750.73 | G58: 737.47 | H58: 784.47 | I58: 797.73 | J58: 807.97 | K58: 787.5 | L58: 764 | M58: 30.09385
A59: 50 | B59: CIPLA | C59: 1034.2 | D59: 1037.38 | E59: 1028.82 | F59: 1023.43 | G59: 1014.87 | H59: 1042.77 | I59: 1051.33 | J59: 1056.72 | K59: 1045.95 | L59: 1032 | M59: 15.61405
A60: 51 | B60: CLEAN | C60: 1633.85 | D60: 1640.40 | E60: 1618.80 | F60: 1603.75 | G60: 1582.15 | H60: 1655.45 | I60: 1677.05 | J60: 1692.10 | K60: 1662 | L60: 1625.35 | M60: 0.7244
A61: 52 | B61: COALINDIA | C61: 208.45 | D61: 208.15 | E61: 206.05 | F61: 203.65 | G61: 201.55 | H61: 210.55 | I61: 212.65 | J61: 215.05 | K61: 210.25 | L61: 205.75 | M61: 319.9904
A62: 53 | B62: COFORGE | C62: 3934.5 | D62: 3936.08 | E62: 3893.37 | F62: 3852.23 | G62: 3809.52 | H62: 3977.22 | I62: 4019.93 | J62: 4061.07 | K62: 3978.8 | L62: 3894.95 | M62: 2.35333
A63: 54 | B63: COLPAL | C63: 1614.1 | D63: 1609.63 | E63: 1599.27 | F63: 1584.43 | G63: 1574.07 | H63: 1624.47 | I63: 1634.83 | J63: 1649.67 | K63: 1620 | L63: 1594.8 | M63: 3.11701
A64: 55 | B64: CONCOR | C64: 685.9 | D64: 690.37 | E64: 679.53 | F64: 673.17 | G64: 662.33 | H64: 696.73 | I64: 707.57 | J64: 713.93 | K64: 701.2 | L64: 684 | M64: 23.85753
A65: 56 | B65: COROMANDEL | C65: 1049.25 | D65: 1049.88 | E65: 1037.77 | F65: 1026.28 | G65: 1014.17 | H65: 1061.37 | I65: 1073.48 | J65: 1084.97 | K65: 1062 | L65: 1038.4 | M65: 6.08959
A66: 57 | B66: CROMPTON | C66: 373.85 | D66: 374.58 | E66: 368.52 | F66: 363.18 | G66: 357.12 | H66: 379.92 | I66: 385.98 | J66: 391.32 | K66: 380.65 | L66: 369.25 | M66: 295.5623
A67: 58 | B67: CUMMINSIND | C67: 1172.4 | D67: 1177.98 | E67: 1162.47 | F67: 1152.53 | G67: 1137.02 | H67: 1187.92 | I67: 1203.43 | J67: 1213.37 | K67: 1193.5 | L67: 1168.05 | M67: 3.08759
A68: 59 | B68: DLF | C68: 367.8 | D68: 368.98 | E68: 365.12 | F68: 362.43 | G68: 358.57 | H68: 371.67 | I68: 375.53 | J68: 378.22 | K68: 372.85 | L68: 366.3 | M68: 41.86137
A69: 60 | B69: DABUR | C69: 579.15 | D69: 578.23 | E69: 573.92 | F69: 568.68 | G69: 564.37 | H69: 583.47 | I69: 587.78 | J69: 593.02 | K69: 582.55 | L69: 573 | M69: 14.55945
A70: 61 | B70: DALBHARAT | C70: 1616.3 | D70: 1598.18 | E70: 1568.12 | F70: 1519.93 | G70: 1489.87 | H70: 1646.37 | I70: 1676.43 | J70: 1724.62 | K70: 1628.25 | L70: 1550 | M70: 4.12824
A71: 62 | B71: DEEPAKNTR | C71: 2025.1 | D71: 2032.07 | E71: 2004.13 | F71: 1983.17 | G71: 1955.23 | H71: 2053.03 | I71: 2080.97 | J71: 2101.93 | K71: 2060 | L71: 2011.1 | M71: 15.01808
A72: 63 | B72: DIVISLAB | C72: 3912.2 | D72: 3920.63 | E72: 3891.57 | F72: 3870.93 | G72: 3841.87 | H72: 3941.27 | I72: 3970.33 | J72: 3990.97 | K72: 3949.7 | L72: 3900 | M72: 3.74417
A73: 64 | B73: DIXON | C73: 3827.3 | D73: 3835.10 | E73: 3810.20 | F73: 3793.10 | G73: 3768.20 | H73: 3852.20 | I73: 3877.10 | J73: 3894.20 | K73: 3860 | L73: 3818 | M73: 2.1158
A74: 65 | B74: LALPATHLAB | C74: 2427 | D74: 2385.00 | E74: 2320.00 | F74: 2213.00 | G74: 2148.00 | H74: 2492.00 | I74: 2557.00 | J74: 2664.00 | K74: 2450 | L74: 2278 | M74: 2.08101
A75: 66 | B75: DRREDDY | C75: 4156.85 | D75: 4164.83 | E75: 4135.87 | F75: 4114.88 | G75: 4085.92 | H75: 4185.82 | I75: 4214.78 | J75: 4235.77 | K75: 4193.8 | L75: 4143.85 | M75: 4.15079
A76: 67 | B76: EICHERMOT | C76: 3089.6 | D76: 3111.80 | E76: 3043.80 | F76: 2998.00 | G76: 2930.00 | H76: 3157.60 | I76: 3225.60 | J76: 3271.40 | K76: 3179.8 | L76: 3066 | M76: 5.18285
A77: 68 | B77: EMAMILTD | C77: 459 | D77: 461.65 | E77: 450.55 | F77: 442.10 | G77: 431.00 | H77: 470.10 | I77: 481.20 | J77: 489.65 | K77: 472.75 | L77: 453.2 | M77: 1.83679
A78: 69 | B78: ESCORTS | C78: 1642.6 | D78: 1642.50 | E78: 1632.20 | F78: 1621.80 | G78: 1611.50 | H78: 1652.90 | I78: 1663.20 | J78: 1673.60 | K78: 1652.8 | L78: 1632.1 | M78: 1.72093
A79: 70 | B79: EXIDEIND | C79: 156.4 | D79: 156.88 | E79: 155.57 | F79: 154.73 | G79: 153.42 | H79: 157.72 | I79: 159.03 | J79: 159.87 | K79: 158.2 | L79: 156.05 | M79: 13.54483
A80: 71 | B80: NYKAA | C80: 1411.25 | D80: 1420.75 | E80: 1393.50 | F80: 1375.75 | G80: 1348.50 | H80: 1438.50 | I80: 1465.75 | J80: 1483.50 | K80: 1448 | L80: 1403 | M80: 4.7152
A81: 72 | B81: FEDERALBNK | C81: 108.95 | D81: 109.05 | E81: 107.45 | F81: 105.95 | G81: 104.35 | H81: 110.55 | I81: 112.15 | J81: 113.65 | K81: 110.65 | L81: 107.55 | M81: 112.9244
A82: 73 | B82: FORTIS | C82: 264.4 | D82: 265.93 | E82: 261.47 | F82: 258.53 | G82: 254.07 | H82: 268.87 | I82: 273.33 | J82: 276.27 | K82: 270.4 | L82: 263 | M82: 3.0082
A83: 74 | B83: GAIL | C83: 132.9 | D83: 135.10 | E83: 130.30 | F83: 127.70 | G83: 122.90 | H83: 137.70 | I83: 142.50 | J83: 145.10 | K83: 139.9 | L83: 132.5 | M83: 436.86433
A84: 75 | B84: GLAND | C84: 2264.05 | D84: 2281.40 | E84: 2232.75 | F84: 2201.45 | G84: 2152.80 | H84: 2312.70 | I84: 2361.35 | J84: 2392.65 | K84: 2330.05 | L84: 2250.1 | M84: 3.21491
A85: 76 | B85: GLENMARK | C85: 378.25 | D85: 379.08 | E85: 374.17 | F85: 370.08 | G85: 365.17 | H85: 383.17 | I85: 388.08 | J85: 392.17 | K85: 384 | L85: 375 | M85: 11.34812
A86: 77 | B86: GODREJCP | C86: 873.1 | D86: 870.77 | E86: 857.53 | F86: 841.97 | G86: 828.73 | H86: 886.33 | I86: 899.57 | J86: 915.13 | K86: 884 | L86: 855.2 | M86: 17.92596
A87: 78 | B87: GODREJPROP | C87: 1373.85 | D87: 1382.92 | E87: 1361.48 | F87: 1349.12 | G87: 1327.68 | H87: 1395.28 | I87: 1416.72 | J87: 1429.08 | K87: 1404.35 | L87: 1370.55 | M87: 6.7106
A88: 79 | B88: GRASIM | C88: 1598.3 | D88: 1598.77 | E88: 1581.63 | F88: 1564.97 | G88: 1547.83 | H88: 1615.43 | I88: 1632.57 | J88: 1649.23 | K88: 1615.9 | L88: 1582.1 | M88: 9.47343
A89: 80 | B89: GUJGASLTD | C89: 437.75 | D89: 439.05 | E89: 428.40 | F89: 419.05 | G89: 408.40 | H89: 448.40 | I89: 459.05 | J89: 468.40 | K89: 449.7 | L89: 429.7 | M89: 14.92696
A90: 81 | B90: GSPL | C90: 235.55 | D90: 238.33 | E90: 231.17 | F90: 226.78 | G90: 219.62 | H90: 242.72 | I90: 249.88 | J90: 254.27 | K90: 245.5 | L90: 233.95 | M90: 14.50592
A91: 82 | B91: HCLTECH | C91: 957.75 | D91: 959.23 | E91: 953.52 | F91: 949.28 | G91: 943.57 | H91: 963.47 | I91: 969.18 | J91: 973.42 | K91: 964.95 | L91: 955 | M91: 25.65683
A92: 83 | B92: HDFCAMC | C92: 2002.05 | D92: 1995.48 | E92: 1982.17 | F92: 1962.28 | G92: 1948.97 | H92: 2015.37 | I92: 2028.68 | J92: 2048.57 | K92: 2008.8 | L92: 1975.6 | M92: 1.9158
A93: 84 | B93: HDFCBANK | C93: 1427.05 | D93: 1428.38 | E93: 1419.82 | F93: 1412.58 | G93: 1404.02 | H93: 1435.62 | I93: 1444.18 | J93: 1451.42 | K93: 1436.95 | L93: 1421.15 | M93: 46.34491
A94: 85 | B94: HDFCLIFE | C94: 539.25 | D94: 540.45 | E94: 535.35 | F94: 531.45 | G94: 526.35 | H94: 544.35 | I94: 549.45 | J94: 553.35 | K94: 545.55 | L94: 536.55 | M94: 54.66554
A95: 86 | B95: HAVELLS | C95: 1289.4 | D95: 1297.80 | E95: 1274.60 | F95: 1259.80 | G95: 1236.60 | H95: 1312.60 | I95: 1335.80 | J95: 1350.60 | K95: 1321 | L95: 1283 | M95: 10.78846
A96: 87 | B96: HEROMOTOCO | C96: 2770.7 | D96: 2780.53 | E96: 2751.17 | F96: 2731.63 | G96: 2702.27 | H96: 2800.07 | I96: 2829.43 | J96: 2848.97 | K96: 2809.9 | L96: 2761 | M96: 5.12072
A97: 88 | B97: HINDALCO | C97: 410.8 | D97: 415.45 | E97: 404.40 | F97: 398.00 | G97: 386.95 | H97: 421.85 | I97: 432.90 | J97: 439.30 | K97: 426.5 | L97: 409.05 | M97: 122.17436
A98: 89 | B98: HAL | C98: 1997.3 | D98: 1995.68 | E98: 1977.37 | F98: 1957.43 | G98: 1939.12 | H98: 2015.62 | I98: 2033.93 | J98: 2053.87 | K98: 2014 | L98: 1975.75 | M98: 7.01632
A99: 90 | B99: HINDPETRO | C99: 250.7 | D99: 248.23 | E99: 244.67 | F99: 238.63 | G99: 235.07 | H99: 254.27 | I99: 257.83 | J99: 263.87 | K99: 251.8 | L99: 242.2 | M99: 66.94048
A100: 91 | B100: HINDUNILVR | C100: 2645.4 | D100: 2643.53 | E100: 2629.42 | F100: 2613.43 | G100: 2599.32 | H100: 2659.52 | I100: 2673.63 | J100: 2689.62 | K100: 2657.65 | L100: 2627.55 | M100: 11.76666
A101: 92 | B101: HINDZINC | C101: 271.9 | D101: 272.73 | E101: 269.17 | F101: 266.43 | G101: 262.87 | H101: 275.47 | I101: 279.03 | J101: 281.77 | K101: 276.3 | L101: 270 | M101: 6.90443
A102: 93 | B102: HONAUT | C102: 40463.45 | D102: 40761.83 | E102: 39851.62 | F102: 39239.78 | G102: 38329.57 | H102: 41373.67 | I102: 42283.88 | J102: 42895.72 | K102: 41672.05 | L102: 40150 | M102: 0.03264
A103: 94 | B103: HDFC | C103: 2355.2 | D103: 2351.75 | E103: 2339.55 | F103: 2323.90 | G103: 2311.70 | H103: 2367.40 | I103: 2379.60 | J103: 2395.25 | K103: 2363.95 | L103: 2336.1 | M103: 18.02793
A104: 95 | B104: ICICIBANK | C104: 838.2 | D104: 834.07 | E104: 827.23 | F104: 816.27 | G104: 809.43 | H104: 845.03 | I104: 851.87 | J104: 862.83 | K104: 840.9 | L104: 823.1 | M104: 160.56522
A105: 96 | B105: ICICIGI | C105: 1199.85 | D105: 1203.80 | E105: 1190.60 | F105: 1181.35 | G105: 1168.15 | H105: 1213.05 | I105: 1226.25 | J105: 1235.50 | K105: 1217 | L105: 1194.55 | M105: 5.52645
A106: 97 | B106: ICICIPRULI | C106: 582.1 | D106: 577.60 | E106: 568.20 | F106: 554.30 | G106: 544.90 | H106: 591.50 | I106: 600.90 | J106: 614.80 | K106: 587 | L106: 563.7 | M106: 53.34618
A107: 98 | B107: ISEC | C107: 488.8 | D107: 490.93 | E107: 483.87 | F107: 478.93 | G107: 471.87 | H107: 495.87 | I107: 502.93 | J107: 507.87 | K107: 498 | L107: 486 | M107: 1.61376
A108: 99 | B108: IDBI | C108: 40.75 | D108: 40.97 | E108: 40.23 | F108: 39.72 | G108: 38.98 | H108: 41.48 | I108: 42.22 | J108: 42.73 | K108: 41.7 | L108: 40.45 | M108: 112.17393
A109: 100 | B109: IDFCFIRSTB | C109: 43.4 | D109: 43.53 | E109: 42.87 | F109: 42.33 | G109: 41.67 | H109: 44.07 | I109: 44.73 | J109: 45.27 | K109: 44.2 | L109: 43 | M109: 424.15761
A110: 101 | B110: ITC | C110: 310.85 | D110: 310.58 | E110: 309.37 | F110: 307.88 | G110: 306.67 | H110: 312.07 | I110: 313.28 | J110: 314.77 | K110: 311.8 | L110: 309.1 | M110: 100.88723
A111: 102 | B111: INDIAMART | C111: 4573.6 | D111: 4537.83 | E111: 4475.12 | F111: 4376.63 | G111: 4313.92 | H111: 4636.32 | I111: 4699.03 | J111: 4797.52 | K111: 4600.55 | L111: 4439.35 | M111: 1.67497
A112: 103 | B112: INDIANB | C112: 174.55 | D112: 175.23 | E112: 172.57 | F112: 170.58 | G112: 167.92 | H112: 177.22 | I112: 179.88 | J112: 181.87 | K112: 177.9 | L112: 173.25 | M112: 9.59765
A113: 104 | B113: IEX | C113: 165.5 | D113: 165.77 | E113: 163.03 | F113: 160.57 | G113: 157.83 | H113: 168.23 | I113: 170.97 | J113: 173.43 | K113: 168.5 | L113: 163.3 | M113: 78.22836
A114: 105 | B114: INDHOTEL | C114: 269.8 | D114: 270.47 | E114: 267.03 | F114: 264.27 | G114: 260.83 | H114: 273.23 | I114: 276.67 | J114: 279.43 | K114: 273.9 | L114: 267.7 | M114: 55.42385
A115: 106 | B115: IOC | C115: 73.1 | D115: 72.43 | E115: 71.57 | F115: 70.03 | G115: 69.17 | H115: 73.97 | I115: 74.83 | J115: 76.37 | K115: 73.3 | L115: 70.9 | M115: 489.3583
A116: 107 | B116: IRCTC | C116: 642.35 | D116: 642.45 | E116: 637.70 | F116: 633.05 | G116: 628.30 | H116: 647.10 | I116: 651.85 | J116: 656.50 | K116: 647.2 | L116: 637.8 | M116: 12.25071
A117: 108 | B117: IGL | C117: 353.15 | D117: 354.05 | E117: 348.10 | F117: 343.05 | G117: 337.10 | H117: 359.10 | I117: 365.05 | J117: 370.10 | K117: 360 | L117: 349 | M117: 32.67873
A118: 109 | B118: INDUSTOWER | C118: 200.2 | D118: 201.55 | E118: 198.40 | F118: 196.60 | G118: 193.45 | H118: 203.35 | I118: 206.50 | J118: 208.30 | K118: 204.7 | L118: 199.75 | M118: 45.64145
A119: 110 | B119: INDUSINDBK | C119: 1036.3 | D119: 1042.53 | E119: 1027.32 | F119: 1018.33 | G119: 1003.12 | H119: 1051.52 | I119: 1066.73 | J119: 1075.72 | K119: 1057.75 | L119: 1033.55 | M119: 23.8202
A120: 111 | B120: NAUKRI | C120: 4310.05 | D120: 4298.40 | E120: 4267.20 | F120: 4224.35 | G120: 4193.15 | H120: 4341.25 | I120: 4372.45 | J120: 4415.30 | K120: 4329.6 | L120: 4255.55 | M120: 3.23901
A121: 112 | B121: INFY | C121: 1616.65 | D121: 1614.88 | E121: 1604.07 | F121: 1591.48 | G121: 1580.67 | H121: 1627.47 | I121: 1638.28 | J121: 1650.87 | K121: 1625.7 | L121: 1602.3 | M121: 53.61971
A122: 113 | B122: INDIGO | C122: 2080.9 | D122: 2056.68 | E122: 2009.42 | F122: 1937.93 | G122: 1890.67 | H122: 2128.17 | I122: 2175.43 | J122: 2246.92 | K122: 2103.95 | L122: 1985.2 | M122: 21.9462
A123: 114 | B123: IPCALAB | C123: 1012.45 | D123: 1015.00 | E123: 995.70 | F123: 978.95 | G123: 959.65 | H123: 1031.75 | I123: 1051.05 | J123: 1067.80 | K123: 1034.3 | L123: 998.25 | M123: 5.94365
A124: 115 | B124: JSWENERGY | C124: 285.8 | D124: 281.40 | E124: 274.40 | F124: 263.00 | G124: 256.00 | H124: 292.80 | I124: 299.80 | J124: 311.20 | K124: 288.4 | L124: 270 | M124: 35.33874
A125: 116 | B125: JSWSTEEL | C125: 667.15 | D125: 668.72 | E125: 663.43 | F125: 659.72 | G125: 654.43 | H125: 672.43 | I125: 677.72 | J125: 681.43 | K125: 674 | L125: 665 | M125: 24.55459
A126: 117 | B126: JINDALSTEL | C126: 392.8 | D126: 390.98 | E126: 386.97 | F126: 381.13 | G126: 377.12 | H126: 396.82 | I126: 400.83 | J126: 406.67 | K126: 395 | L126: 385.15 | M126: 45.5712
A127: 118 | B127: JUBLFOOD | C127: 575.65 | D127: 575.35 | E127: 570.90 | F127: 566.15 | G127: 561.70 | H127: 580.10 | I127: 584.55 | J127: 589.30 | K127: 579.8 | L127: 570.6 | M127: 30.43077
A128: 119 | B128: KOTAKBANK | C128: 1833.9 | D128: 1835.52 | E128: 1821.03 | F128: 1808.17 | G128: 1793.68 | H128: 1848.38 | I128: 1862.87 | J128: 1875.73 | K128: 1850 | L128: 1822.65 | M128: 16.64571
A129: 120 | B129: L&TFH | C129: 74.75 | D129: 74.95 | E129: 74.20 | F129: 73.65 | G129: 72.90 | H129: 75.50 | I129: 76.25 | J129: 76.80 | K129: 75.7 | L129: 74.4 | M129: 36.06572
A130: 121 | B130: LTTS | C130: 3563.05 | D130: 3556.02 | E130: 3527.03 | F130: 3491.02 | G130: 3462.03 | H130: 3592.03 | I130: 3621.02 | J130: 3657.03 | K130: 3585 | L130: 3520 | M130: 3.2562
A131: 122 | B131: LICHSGFIN | C131: 379.2 | D131: 382.13 | E131: 373.62 | F131: 368.03 | G131: 359.52 | H131: 387.72 | I131: 396.23 | J131: 401.82 | K131: 390.65 | L131: 376.55 | M131: 73.78636
A132: 123 | B132: LTI | C132: 4925.35 | D132: 4926.50 | E132: 4894.35 | F132: 4863.35 | G132: 4831.20 | H132: 4957.50 | I132: 4989.65 | J132: 5020.65 | K132: 4958.65 | L132: 4895.5 | M132: 3.0617
A133: 124 | B133: LT | C133: 1787.45 | D133: 1789.92 | E133: 1772.83 | F133: 1758.22 | G133: 1741.13 | H133: 1804.53 | I133: 1821.62 | J133: 1836.23 | K133: 1807 | L133: 1775.3 | M133: 14.30542
A134: 125 | B134: LAURUSLABS | C134: 545.1 | D134: 547.70 | E134: 539.50 | F134: 533.90 | G134: 525.70 | H134: 553.30 | I134: 561.50 | J134: 567.10 | K134: 555.9 | L134: 542.1 | M134: 21.31692
A135: 126 | B135: LUPIN | C135: 668.1 | D135: 664.02 | E135: 658.03 | F135: 647.97 | G135: 641.98 | H135: 674.08 | I135: 680.07 | J135: 690.13 | K135: 670 | L135: 653.95 | M135: 29.86757
A136: 127 | B136: MRF | C136: 88895.45 | D136: 88633.80 | E136: 88117.60 | F136: 87339.75 | G136: 86823.55 | H136: 89411.65 | I136: 89927.85 | J136: 90705.70 | K136: 89150 | L136: 87855.95 | M136: 0.09228
A137: 128 | B137: M&MFIN | C137: 195.5 | D137: 196.52 | E137: 193.68 | F137: 191.87 | G137: 189.03 | H137: 198.33 | I137: 201.17 | J137: 202.98 | K137: 199.35 | L137: 194.7 | M137: 46.67071
A138: 129 | B138: M&M | C138: 1235.9 | D138: 1248.55 | E138: 1218.60 | F138: 1201.30 | G138: 1171.35 | H138: 1265.85 | I138: 1295.80 | J138: 1313.10 | K138: 1278.5 | L138: 1231.25 | M138: 57.66297
A139: 130 | B139: MANAPPURAM | C139: 108.15 | D139: 106.08 | E139: 101.27 | F139: 94.38 | G139: 89.57 | H139: 112.97 | I139: 117.78 | J139: 124.67 | K139: 110.9 | L139: 99.2 | M139: 362.99356
A140: 131 | B140: MARICO | C140: 519.7 | D140: 524.97 | E140: 512.78 | F140: 505.87 | G140: 493.68 | H140: 531.88 | I140: 544.07 | J140: 550.98 | K140: 537.15 | L140: 518.05 | M140: 20.69247
A141: 132 | B141: MARUTI | C141: 8841.2 | D141: 8878.80 | E141: 8772.40 | F141: 8703.60 | G141: 8597.20 | H141: 8947.60 | I141: 9054.00 | J141: 9122.80 | K141: 8985.2 | L141: 8810 | M141: 5.58385
A142: 133 | B142: MFSL | C142: 820.7 | D142: 821.73 | E142: 814.47 | F142: 808.23 | G142: 800.97 | H142: 827.97 | I142: 835.23 | J142: 841.47 | K142: 829 | L142: 815.5 | M142: 9.33024
A143: 134 | B143: MAXHEALTH | C143: 375.65 | D143: 375.93 | E143: 370.97 | F143: 366.28 | G143: 361.32 | H143: 380.62 | I143: 385.58 | J143: 390.27 | K143: 380.9 | L143: 371.25 | M143: 6.53062
A144: 135 | B144: METROPOLIS | C144: 1555.05 | D144: 1564.40 | E144: 1540.65 | F144: 1526.25 | G144: 1502.50 | H144: 1578.80 | I144: 1602.55 | J144: 1616.95 | K144: 1588.15 | L144: 1550 | M144: 1.53307
A145: 136 | B145: MINDTREE | C145: 3565.65 | D145: 3556.37 | E145: 3534.28 | F145: 3502.92 | G145: 3480.83 | H145: 3587.73 | I145: 3609.82 | J145: 3641.18 | K145: 3578.45 | L145: 3525 | M145: 7.00893
A146: 137 | B146: MPHASIS | C146: 2394.85 | D146: 2389.95 | E146: 2369.90 | F146: 2344.95 | G146: 2324.90 | H146: 2414.90 | I146: 2434.95 | J146: 2459.90 | K146: 2410 | L146: 2365 | M146: 4.51844
A147: 138 | B147: MUTHOOTFIN | C147: 1144.4 | D147: 1133.82 | E147: 1115.63 | F147: 1086.87 | G147: 1068.68 | H147: 1162.58 | I147: 1180.77 | J147: 1209.53 | K147: 1152 | L147: 1105.05 | M147: 18.00984
A148: 139 | B148: NMDC | C148: 110.9 | D148: 110.35 | E148: 108.30 | F148: 105.70 | G148: 103.65 | H148: 112.95 | I148: 115.00 | J148: 117.60 | K148: 112.4 | L148: 107.75 | M148: 1473.90192
A149: 140 | B149: NTPC | C149: 155.6 | D149: 155.25 | E149: 153.35 | F149: 151.10 | G149: 149.20 | H149: 157.50 | I149: 159.40 | J149: 161.65 | K149: 157.15 | L149: 153 | M149: 338.64055
A150: 141 | B150: NATIONALUM | C150: 77.65 | D150: 77.97 | E150: 77.08 | F150: 76.52 | G150: 75.63 | H150: 78.53 | I150: 79.42 | J150: 79.98 | K150: 78.85 | L150: 77.4 | M150: 100.66322
A151: 142 | B151: NAVINFLUOR | C151: 4476.25 | D151: 4448.40 | E151: 4343.10 | F151: 4209.95 | G151: 4104.65 | H151: 4581.55 | I151: 4686.85 | J151: 4820.00 | K151: 4553.7 | L151: 4315.25 | M151: 5.98049
A152: 143 | B152: NESTLEIND | C152: 19921.5 | D152: 19890.18 | E152: 19760.37 | F152: 19599.23 | G152: 19469.42 | H152: 20051.32 | I152: 20181.13 | J152: 20342.27 | K152: 20020 | L152: 19729.05 | M152: 0.6256
A153: 144 | B153: NAM-INDIA | C153: 299.35 | D153: 300.30 | E153: 296.00 | F153: 292.65 | G153: 288.35 | H153: 303.65 | I153: 307.95 | J153: 311.30 | K153: 304.6 | L153: 296.95 | M153: 6.45846
A154: 145 | B154: OBEROIRLTY | C154: 896.85 | D154: 897.03 | E154: 888.82 | F154: 880.78 | G154: 872.57 | H154: 905.07 | I154: 913.28 | J154: 921.32 | K154: 905.25 | L154: 889 | M154: 4.42922
A155: 146 | B155: ONGC | C155: 136.5 | D155: 136.20 | E155: 133.90 | F155: 131.30 | G155: 129.00 | H155: 138.80 | I155: 141.10 | J155: 143.70 | K155: 138.5 | L155: 133.6 | M155: 664.80753
A156: 147 | B156: OIL | C156: 197.8 | D156: 196.43 | E156: 187.87 | F156: 177.93 | G156: 169.37 | H156: 206.37 | I156: 214.93 | J156: 224.87 | K156: 205 | L156: 186.5 | M156: 54.98033
A157: 148 | B157: PAYTM | C157: 784.3 | D157: 792.08 | E157: 767.47 | F157: 750.63 | G157: 726.02 | H157: 808.92 | I157: 833.53 | J157: 850.37 | K157: 816.7 | L157: 775.25 | M157: 35.95195
A158: 149 | B158: OFSS | C158: 3365.85 | D158: 3361.93 | E158: 3298.92 | F158: 3231.98 | G158: 3168.97 | H158: 3428.87 | I158: 3491.88 | J158: 3558.82 | K158: 3424.95 | L158: 3295 | M158: 1.9424
A159: 150 | B159: POLICYBZR | C159: 571.25 | D159: 565.57 | E159: 556.53 | F159: 541.82 | G159: 532.78 | H159: 580.28 | I159: 589.32 | J159: 604.03 | K159: 574.6 | L159: 550.85 | M159: 12.33198
A160: 151 | B160: PIIND | C160: 3245.3 | D160: 3202.83 | E160: 3141.82 | F160: 3038.33 | G160: 2977.32 | H160: 3306.32 | I160: 3367.33 | J160: 3470.82 | K160: 3263.85 | L160: 3099.35 | M160: 5.82673
A161: 152 | B161: PAGEIND | C161: 48211.6 | D161: 48486.03 | E161: 47773.57 | F161: 47335.53 | G161: 46623.07 | H161: 48924.07 | I161: 49636.53 | J161: 50074.57 | K161: 49198.5 | L161: 48048 | M161: 0.0968
A162: 153 | B162: PERSISTENT | C162: 3792.45 | D162: 3797.78 | E162: 3756.67 | F162: 3720.88 | G162: 3679.77 | H162: 3833.57 | I162: 3874.68 | J162: 3910.47 | K162: 3838.9 | L162: 3762 | M162: 3.60961
A163: 154 | B163: PETRONET | C163: 215.85 | D163: 214.97 | E163: 213.58 | F163: 211.32 | G163: 209.93 | H163: 217.23 | I163: 218.62 | J163: 220.88 | K163: 216.35 | L163: 212.7 | M163: 21.98772
A164: 155 | B164: PIDILITIND | C164: 2640.85 | D164: 2617.97 | E164: 2586.28 | F164: 2531.72 | G164: 2500.03 | H164: 2672.53 | I164: 2704.22 | J164: 2758.78 | K164: 2649.65 | L164: 2563.4 | M164: 10.26958
A165: 156 | B165: PEL | C165: 1726.1 | D165: 1736.43 | E165: 1700.87 | F165: 1675.63 | G165: 1640.07 | H165: 1761.67 | I165: 1797.23 | J165: 1822.47 | K165: 1772 | L165: 1711.2 | M165: 24.89516
A166: 157 | B166: POLYCAB | C166: 2360.65 | D166: 2372.23 | E166: 2339.47 | F166: 2318.28 | G166: 2285.52 | H166: 2393.42 | I166: 2426.18 | J166: 2447.37 | K166: 2405 | L166: 2351.05 | M166: 1.69952
A167: 158 | B167: PFC | C167: 118.75 | D167: 119.00 | E167: 118.35 | F167: 117.95 | G167: 117.30 | H167: 119.40 | I167: 120.05 | J167: 120.45 | K167: 119.65 | L167: 118.6 | M167: 24.24531
A168: 159 | B168: POWERGRID | C168: 223.65 | D168: 222.42 | E168: 220.08 | F168: 216.52 | G168: 214.18 | H168: 225.98 | I168: 228.32 | J168: 231.88 | K168: 224.75 | L168: 218.85 | M168: 105.74418
A169: 160 | B169: PRESTIGE | C169: 432.25 | D169: 432.33 | E169: 428.27 | F169: 424.28 | G169: 420.22 | H169: 436.32 | I169: 440.38 | J169: 444.37 | K169: 436.4 | L169: 428.35 | M169: 1.75366
A170: 161 | B170: PGHH | C170: 14078.25 | D170: 14292.87 | E170: 13685.38 | F170: 13292.52 | G170: 12685.03 | H170: 14685.73 | I170: 15293.22 | J170: 15686.08 | K170: 14900.35 | L170: 13900 | M170: 0.15891
A171: 162 | B171: PNB | C171: 33.55 | D171: 33.58 | E171: 33.27 | F171: 32.98 | G171: 32.67 | H171: 33.87 | I171: 34.18 | J171: 34.47 | K171: 33.9 | L171: 33.3 | M171: 305.39905
A172: 163 | B172: RECLTD | C172: 133.5 | D172: 133.52 | E172: 132.78 | F172: 132.07 | G172: 131.33 | H172: 134.23 | I172: 134.97 | J172: 135.68 | K172: 134.25 | L172: 132.8 | M172: 26.47284
A173: 164 | B173: RELIANCE | C173: 2534 | D173: 2546.58 | E173: 2514.37 | F173: 2494.73 | G173: 2462.52 | H173: 2566.22 | I173: 2598.43 | J173: 2618.07 | K173: 2578.8 | L173: 2526.95 | M173: 64.34433
A174: 165 | B174: SBICARD | C174: 935.6 | D174: 936.25 | E174: 927.50 | F174: 919.40 | G174: 910.65 | H174: 944.35 | I174: 953.10 | J174: 961.20 | K174: 945 | L174: 928.15 | M174: 4.85818
A175: 166 | B175: SBILIFE | C175: 1266.65 | D175: 1271.82 | E175: 1255.78 | F175: 1244.92 | G175: 1228.88 | H175: 1282.68 | I175: 1298.72 | J175: 1309.58 | K175: 1287.85 | L175: 1260.95 | M175: 9.22856
A176: 167 | B176: SRF | C176: 2498.55 | D176: 2482.75 | E176: 2450.80 | F176: 2403.05 | G176: 2371.10 | H176: 2530.50 | I176: 2562.45 | J176: 2610.20 | K176: 2514.7 | L176: 2435 | M176: 6.2473
A177: 168 | B177: SHREECEM | C177: 21237.4 | D177: 21071.50 | E177: 20866.00 | F177: 20494.60 | G177: 20289.10 | H177: 21442.90 | I177: 21648.40 | J177: 22019.80 | K177: 21277 | L177: 20700.1 | M177: 0.32998
A178: 169 | B178: SRTRANSFIN | C178: 1362.45 | D178: 1365.10 | E178: 1351.40 | F178: 1340.35 | G178: 1326.65 | H178: 1376.15 | I178: 1389.85 | J178: 1400.90 | K178: 1378.8 | L178: 1354.05 | M178: 6.30627
A179: 170 | B179: SIEMENS | C179: 2690.55 | D179: 2685.00 | E179: 2652.00 | F179: 2613.45 | G179: 2580.45 | H179: 2723.55 | I179: 2756.55 | J179: 2795.10 | K179: 2718 | L179: 2646.45 | M179: 5.43309
A180: 171 | B180: SONACOMS | C180: 557.65 | D180: 564.60 | E180: 547.55 | F180: 537.45 | G180: 520.40 | H180: 574.70 | I180: 591.75 | J180: 601.85 | K180: 581.65 | L180: 554.5 | M180: 8.98065
A181: 172 | B181: SBIN | C181: 531.05 | D181: 534.32 | E181: 525.73 | F181: 520.42 | G181: 511.83 | H181: 539.63 | I181: 548.22 | J181: 553.53 | K181: 542.9 | L181: 529 | M181: 211.10734
A182: 173 | B182: SAIL | C182: 77.6 | D182: 77.72 | E182: 76.98 | F182: 76.37 | G182: 75.63 | H182: 78.33 | I182: 79.07 | J182: 79.68 | K182: 78.45 | L182: 77.1 | M182: 198.9762
A183: 174 | B183: SUNPHARMA | C183: 915.95 | D183: 918.95 | E183: 908.90 | F183: 901.85 | G183: 891.80 | H183: 926.00 | I183: 936.05 | J183: 943.10 | K183: 929 | L183: 911.9 | M183: 33.17738
A184: 175 | B184: SUNTV | C184: 471.6 | D184: 472.20 | E184: 467.60 | F184: 463.60 | G184: 459.00 | H184: 476.20 | I184: 480.80 | J184: 484.80 | K184: 476.8 | L184: 468.2 | M184: 6.4932
A185: 176 | B185: SYNGENE | C185: 563.15 | D185: 565.90 | E185: 557.10 | F185: 551.05 | G185: 542.25 | H185: 571.95 | I185: 580.75 | J185: 586.80 | K185: 574.7 | L185: 559.85 | M185: 3.66837
A186: 177 | B186: TVSMOTOR | C186: 948.35 | D186: 944.85 | E186: 938.50 | F186: 928.65 | G186: 922.30 | H186: 954.70 | I186: 961.05 | J186: 970.90 | K186: 951.2 | L186: 935 | M186: 21.53657
A187: 178 | B187: TATACHEM | C187: 948.5 | D187: 949.28 | E187: 941.22 | F187: 933.93 | G187: 925.87 | H187: 956.57 | I187: 964.63 | J187: 971.92 | K187: 957.35 | L187: 942 | M187: 7.51942
A188: 179 | B188: TATACOMM | C188: 1101.35 | D188: 1086.78 | E188: 1065.57 | F188: 1029.78 | G188: 1008.57 | H188: 1122.57 | I188: 1143.78 | J188: 1179.57 | K188: 1108 | L188: 1051 | M188: 11.45421
A189: 180 | B189: TCS | C189: 3365.05 | D189: 3365.68 | E189: 3354.37 | F189: 3343.68 | G189: 3332.37 | H189: 3376.37 | I189: 3387.68 | J189: 3398.37 | K189: 3377 | L189: 3355 | M189: 11.06933
A190: 181 | B190: TATACONSUM | C190: 784.8 | D190: 786.77 | E190: 780.13 | F190: 775.47 | G190: 768.83 | H190: 791.43 | I190: 798.07 | J190: 802.73 | K190: 793.4 | L190: 782.1 | M190: 21.09882
A191: 182 | B191: TATAELXSI | C191: 9308.6 | D191: 9207.20 | E191: 8989.40 | F191: 8670.20 | G191: 8452.40 | H191: 9526.40 | I191: 9744.20 | J191: 10063.40 | K191: 9425 | L191: 8888 | M191: 11.50442
A192: 183 | B192: TATAMOTORS | C192: 465.25 | D192: 467.38 | E192: 461.87 | F192: 458.48 | G192: 452.97 | H192: 470.77 | I192: 476.28 | J192: 479.67 | K192: 472.9 | L192: 464 | M192: 119.17799
A193: 184 | B193: TATAPOWER | C193: 232.1 | D193: 231.02 | E193: 228.78 | F193: 225.47 | G193: 223.23 | H193: 234.33 | I193: 236.57 | J193: 239.88 | K193: 233.25 | L193: 227.7 | M193: 332.28441
A194: 185 | B194: TATASTEEL | C194: 107.35 | D194: 107.90 | E194: 106.55 | F194: 105.75 | G194: 104.40 | H194: 108.70 | I194: 110.05 | J194: 110.85 | K194: 109.25 | L194: 107.1 | M194: 544.69112
A195: 186 | B195: TECHM | C195: 1058.2 | D195: 1058.87 | E195: 1049.78 | F195: 1041.37 | G195: 1032.28 | H195: 1067.28 | I195: 1076.37 | J195: 1084.78 | K195: 1067.95 | L195: 1050.45 | M195: 26.41829
A196: 187 | B196: RAMCOCEM | C196: 756.8 | D196: 749.33 | E196: 738.67 | F196: 720.53 | G196: 709.87 | H196: 767.47 | I196: 778.13 | J196: 796.27 | K196: 760 | L196: 731.2 | M196: 5.63504
A197: 188 | B197: TITAN | C197: 2432.8 | D197: 2440.85 | E197: 2409.30 | F197: 2385.80 | G197: 2354.25 | H197: 2464.35 | I197: 2495.90 | J197: 2519.40 | K197: 2472.4 | L197: 2417.35 | M197: 24.43597
A198: 189 | B198: TORNTPHARM | C198: 1556.55 | D198: 1560.22 | E198: 1544.88 | F198: 1533.22 | G198: 1517.88 | H198: 1571.88 | I198: 1587.22 | J198: 1598.88 | K198: 1575.55 | L198: 1548.55 | M198: 2.13269
A199: 190 | B199: TORNTPOWER | C199: 540.85 | D199: 537.72 | E199: 531.53 | F199: 522.22 | G199: 516.03 | H199: 547.03 | I199: 553.22 | J199: 562.53 | K199: 543.9 | L199: 528.4 | M199: 3.18171
A200: 191 | B200: TRENT | C200: 1315.9 | D200: 1313.93 | E200: 1304.17 | F200: 1292.43 | G200: 1282.67 | H200: 1325.67 | I200: 1335.43 | J200: 1347.17 | K200: 1323.7 | L200: 1302.2 | M200: 2.42951
A201: 192 | B201: TRIDENT | C201: 40.25 | D201: 40.72 | E201: 39.58 | F201: 38.92 | G201: 37.78 | H201: 41.38 | I201: 42.52 | J201: 43.18 | K201: 41.85 | L201: 40.05 | M201: 132.08956
A202: 193 | B202: UPL | C202: 743.45 | D202: 741.48 | E202: 732.97 | F202: 722.48 | G202: 713.97 | H202: 751.97 | I202: 760.48 | J202: 770.97 | K202: 750 | L202: 731 | M202: 18.2849
A203: 194 | B203: ULTRACEMCO | C203: 6775.2 | D203: 6720.75 | E203: 6642.50 | F203: 6509.80 | G203: 6431.55 | H203: 6853.45 | I203: 6931.70 | J203: 7064.40 | K203: 6799 | L203: 6588.05 | M203: 7.4125
A204: 195 | B204: UNIONBANK | C204: 38.9 | D204: 39.07 | E204: 38.58 | F204: 38.27 | G204: 37.78 | H204: 39.38 | I204: 39.87 | J204: 40.18 | K204: 39.55 | L204: 38.75 | M204: 57.05713
A205: 196 | B205: UBL | C205: 1617.25 | D205: 1617.37 | E205: 1603.78 | F205: 1590.32 | G205: 1576.73 | H205: 1630.83 | I205: 1644.42 | J205: 1657.88 | K205: 1630.95 | L205: 1603.9 | M205: 1.4144
... 29 more rows

Sheet MidCap Intra
L5: Back To Main Page
A6: FOR INTRA DAY TRADING | K6: =Main!B10 -> 2022-08-08
A9: Sr.no | B9: Scrip | C9: CLOSE RATE | D9: Pivot Point | E9: Supports | H9: Resistances
E10: S1 | F10: S2 | G10: S3 | H10: R1 | I10: R2 | J10: R3 | K10: HIGH | L10: LOW | M10: Total Trade Quanity in Lakhs
A11: 1 | B11: 3MINDIA | C11: 23702.25 | D11: 23637.42 | E11: 23174.83 | F11: 22647.42 | G11: 22184.83 | H11: 24164.83 | I11: 24627.42 | J11: 25154.83 | K11: 24100 | L11: 23110 | M11: 0.03603
A12: 2 | B12: ABB | C12: 2688.2 | D12: 2701.85 | E12: 2661.70 | F12: 2635.20 | G12: 2595.05 | H12: 2728.35 | I12: 2768.50 | J12: 2795.00 | K12: 2742 | L12: 2675.35 | M12: 2.72399
A13: 3 | B13: ACC | C13: 2254.8 | D13: 2244.13 | E13: 2229.27 | F13: 2203.73 | G13: 2188.87 | H13: 2269.67 | I13: 2284.53 | J13: 2310.07 | K13: 2259 | L13: 2218.6 | M13: 2.91021
A14: 4 | B14: AIAENG | C14: 2378.9 | D14: 2395.52 | E14: 2341.38 | F14: 2303.87 | G14: 2249.73 | H14: 2433.03 | I14: 2487.17 | J14: 2524.68 | K14: 2449.65 | L14: 2358 | M14: 1.37824
A15: 5 | B15: APLAPOLLO | C15: 1029.6 | D15: 1043.50 | E15: 1012.00 | F15: 994.40 | G15: 962.90 | H15: 1061.10 | I15: 1092.60 | J15: 1110.20 | K15: 1075 | L15: 1025.9 | M15: 6.89827
A16: 6 | B16: AUBANK | C16: 648 | D16: 642.20 | E16: 634.30 | F16: 620.60 | G16: 612.70 | H16: 655.90 | I16: 663.80 | J16: 677.50 | K16: 650.1 | L16: 628.5 | M16: 18.38153
A17: 7 | B17: AARTIDRUGS | C17: 426.65 | D17: 429.55 | E17: 423.10 | F17: 419.55 | G17: 413.10 | H17: 433.10 | I17: 439.55 | J17: 443.10 | K17: 436 | L17: 426 | M17: 0.57274
A18: 8 | B18: AAVAS | C18: 2222.75 | D18: 2237.25 | E18: 2195.50 | F18: 2168.25 | G18: 2126.50 | H18: 2264.50 | I18: 2306.25 | J18: 2333.50 | K18: 2279 | L18: 2210 | M18: 0.44656
A19: 9 | B19: ABBOTINDIA | C19: 20426.25 | D19: 20426.08 | E19: 20252.17 | F19: 20078.08 | G19: 19904.17 | H19: 20600.17 | I19: 20774.08 | J19: 20948.17 | K19: 20600 | L19: 20252 | M19: 0.11848
A20: 10 | B20: ADANIENT | C20: 2698.4 | D20: 2717.02 | E20: 2666.38 | F20: 2634.37 | G20: 2583.73 | H20: 2749.03 | I20: 2799.67 | J20: 2831.68 | K20: 2767.65 | L20: 2685 | M20: 16.39981
A21: 11 | B21: ADANIGREEN | C21: 2106.2 | D21: 2128.68 | E21: 2047.52 | F21: 1988.83 | G21: 1907.67 | H21: 2187.37 | I21: 2268.53 | J21: 2327.22 | K21: 2209.85 | L21: 2070 | M21: 17.19376
A22: 12 | B22: ADANIPORTS | C22: 810.25 | D22: 811.48 | E22: 804.27 | F22: 798.28 | G22: 791.07 | H22: 817.47 | I22: 824.68 | J22: 830.67 | K22: 818.7 | L22: 805.5 | M22: 28.07602
A23: 13 | B23: ATGL | C23: 3347.4 | D23: 3342.92 | E23: 3307.03 | F23: 3266.67 | G23: 3230.78 | H23: 3383.28 | I23: 3419.17 | J23: 3459.53 | K23: 3378.8 | L23: 3302.55 | M23: 5.0262
A24: 14 | B24: ADANITRANS | C24: 3313.55 | D24: 3348.45 | E24: 3147.90 | F24: 2982.25 | G24: 2781.70 | H24: 3514.10 | I24: 3714.65 | J24: 3880.30 | K24: 3549 | L24: 3182.8 | M24: 6.95816
A25: 15 | B25: ABCAPITAL | C25: 105.15 | D25: 105.33 | E25: 104.42 | F25: 103.68 | G25: 102.77 | H25: 106.07 | I25: 106.98 | J25: 107.72 | K25: 106.25 | L25: 104.6 | M25: 21.26415
A26: 16 | B26: ABFRL | C26: 277.9 | D26: 277.55 | E26: 273.10 | F26: 268.30 | G26: 263.85 | H26: 282.35 | I26: 286.80 | J26: 291.60 | K26: 282 | L26: 272.75 | M26: 61.15112
A27: 17 | B27: ABSLAMC | C27: 431.9 | D27: 430.80 | E27: 428.60 | F27: 425.30 | G27: 423.10 | H27: 434.10 | I27: 436.30 | J27: 439.60 | K27: 433 | L27: 427.5 | M27: 1.11717
A28: 18 | B28: ADVENZYMES | C28: 292.7 | D28: 292.52 | E28: 290.33 | F28: 287.97 | G28: 285.78 | H28: 294.88 | I28: 297.07 | J28: 299.43 | K28: 294.7 | L28: 290.15 | M28: 0.50731
A29: 19 | B29: AEGISCHEM | C29: 265.05 | D29: 266.83 | E29: 261.72 | F29: 258.38 | G29: 253.27 | H29: 270.17 | I29: 275.28 | J29: 278.62 | K29: 271.95 | L29: 263.5 | M29: 4.60904
A30: 20 | B30: AFFLE | C30: 1099.25 | D30: 1107.32 | E30: 1087.23 | F30: 1075.22 | G30: 1055.13 | H30: 1119.33 | I30: 1139.42 | J30: 1151.43 | K30: 1127.4 | L30: 1095.3 | M30: 2.55845
A31: 21 | B31: AJANTPHARM | C31: 1279.8 | D31: 1278.78 | E31: 1271.02 | F31: 1262.23 | G31: 1254.47 | H31: 1287.57 | I31: 1295.33 | J31: 1304.12 | K31: 1286.55 | L31: 1270 | M31: 0.41679
A32: 22 | B32: APLLTD | C32: 672.65 | D32: 677.37 | E32: 665.38 | F32: 658.12 | G32: 646.13 | H32: 684.63 | I32: 696.62 | J32: 703.88 | K32: 689.35 | L32: 670.1 | M32: 4.29802
A33: 23 | B33: ALKEM | C33: 3112.8 | D33: 3144.27 | E33: 3063.53 | F33: 3014.27 | G33: 2933.53 | H33: 3193.53 | I33: 3274.27 | J33: 3323.53 | K33: 3225 | L33: 3095 | M33: 6.62081
A34: 24 | B34: ALKYLAMINE | C34: 3118.6 | D34: 3122.37 | E34: 3074.73 | F34: 3030.87 | G34: 2983.23 | H34: 3166.23 | I34: 3213.87 | J34: 3257.73 | K34: 3170 | L34: 3078.5 | M34: 0.58002
A35: 25 | B35: ALLCARGO | C35: 300.1 | D35: 301.33 | E35: 295.27 | F35: 290.43 | G35: 284.37 | H35: 306.17 | I35: 312.23 | J35: 317.07 | K35: 307.4 | L35: 296.5 | M35: 4.11361
A36: 26 | B36: ALOKINDS | C36: 19.5 | D36: 19.57 | E36: 19.38 | F36: 19.27 | G36: 19.08 | H36: 19.68 | I36: 19.87 | J36: 19.98 | K36: 19.75 | L36: 19.45 | M36: 13.90556
A37: 27 | B37: AMARAJABAT | C37: 504.6 | D37: 505.73 | E37: 501.97 | F37: 499.33 | G37: 495.57 | H37: 508.37 | I37: 512.13 | J37: 514.77 | K37: 509.5 | L37: 503.1 | M37: 3.1468
A38: 28 | B38: AMBER | C38: 2268 | D38: 2305.02 | E38: 2213.03 | F38: 2158.07 | G38: 2066.08 | H38: 2359.98 | I38: 2451.97 | J38: 2506.93 | K38: 2397 | L38: 2250.05 | M38: 1.97483
A39: 29 | B39: AMBUJACEM | C39: 382.65 | D39: 381.92 | E39: 380.78 | F39: 378.92 | G39: 377.78 | H39: 383.78 | I39: 384.92 | J39: 386.78 | K39: 383.05 | L39: 380.05 | M39: 50.63415
A40: 30 | B40: ANGELONE | C40: 1270.6 | D40: 1272.53 | E40: 1258.07 | F40: 1245.53 | G40: 1231.07 | H40: 1285.07 | I40: 1299.53 | J40: 1312.07 | K40: 1287 | L40: 1260 | M40: 4.27048
A41: 31 | B41: ANURAS | C41: 767.3 | D41: 767.52 | E41: 762.03 | F41: 756.77 | G41: 751.28 | H41: 772.78 | I41: 778.27 | J41: 783.53 | K41: 773 | L41: 762.25 | M41: 0.24203
A42: 32 | B42: APOLLOHOSP | C42: 4374.1 | D42: 4377.03 | E42: 4332.07 | F42: 4290.03 | G42: 4245.07 | H42: 4419.07 | I42: 4464.03 | J42: 4506.07 | K42: 4422 | L42: 4335 | M42: 2.0751
A43: 33 | B43: APOLLOTYRE | C43: 230 | D43: 230.50 | E43: 227.55 | F43: 225.10 | G43: 222.15 | H43: 232.95 | I43: 235.90 | J43: 238.35 | K43: 233.45 | L43: 228.05 | M43: 21.46494
A44: 34 | B44: APTUS | C44: 295.65 | D44: 294.65 | E44: 289.55 | F44: 283.45 | G44: 278.35 | H44: 300.75 | I44: 305.85 | J44: 311.95 | K44: 299.75 | L44: 288.55 | M44: 1.39242
A45: 35 | B45: ASAHIINDIA | C45: 571.5 | D45: 574.70 | E45: 564.90 | F45: 558.30 | G45: 548.50 | H45: 581.30 | I45: 591.10 | J45: 597.70 | K45: 584.5 | L45: 568.1 | M45: 1.15295
A46: 36 | B46: ASHOKLEY | C46: 144.95 | D46: 145.68 | E46: 143.82 | F46: 142.68 | G46: 140.82 | H46: 146.82 | I46: 148.68 | J46: 149.82 | K46: 147.55 | L46: 144.55 | M46: 88.1493
A47: 37 | B47: ASIANPAINT | C47: 3473.9 | D47: 3472.47 | E47: 3452.98 | F47: 3432.07 | G47: 3412.58 | H47: 3493.38 | I47: 3512.87 | J47: 3533.78 | K47: 3491.95 | L47: 3451.55 | M47: 7.92478
A48: 38 | B48: ASTERDM | C48: 238.15 | D48: 235.57 | E48: 230.63 | F48: 223.12 | G48: 218.18 | H48: 243.08 | I48: 248.02 | J48: 255.53 | K48: 240.5 | L48: 228.05 | M48: 5.8141
A49: 39 | B49: ASTRAZEN | C49: 3079 | D49: 3082.55 | E49: 3039.15 | F49: 2999.30 | G49: 2955.90 | H49: 3122.40 | I49: 3165.80 | J49: 3205.65 | K49: 3125.95 | L49: 3042.7 | M49: 0.07033
A50: 40 | B50: ASTRAL | C50: 1994.2 | D50: 1984.78 | E50: 1967.62 | F50: 1941.03 | G50: 1923.87 | H50: 2011.37 | I50: 2028.53 | J50: 2055.12 | K50: 2001.95 | L50: 1958.2 | M50: 3.15181
A51: 41 | B51: ATUL | C51: 9382.6 | D51: 9390.88 | E51: 9313.97 | F51: 9245.33 | G51: 9168.42 | H51: 9459.52 | I51: 9536.43 | J51: 9605.07 | K51: 9467.8 | L51: 9322.25 | M51: 0.18146
A52: 42 | B52: AUROPHARMA | C52: 568.65 | D52: 574.03 | E52: 561.12 | F52: 553.58 | G52: 540.67 | H52: 581.57 | I52: 594.48 | J52: 602.02 | K52: 586.95 | L52: 566.5 | M52: 20.86017
A53: 43 | B53: AVANTIFEED | C53: 493.15 | D53: 491.75 | E53: 486.45 | F53: 479.75 | G53: 474.45 | H53: 498.45 | I53: 503.75 | J53: 510.45 | K53: 497.05 | L53: 485.05 | M53: 1.36269
A54: 44 | B54: DMART | C54: 4232.25 | D54: 4238.13 | E54: 4181.27 | F54: 4130.28 | G54: 4073.42 | H54: 4289.12 | I54: 4345.98 | J54: 4396.97 | K54: 4295 | L54: 4187.15 | M54: 5.28876
A55: 45 | B55: AXISBANK | C55: 728.5 | D55: 726.97 | E55: 722.73 | F55: 716.97 | G55: 712.73 | H55: 732.73 | I55: 736.97 | J55: 742.73 | K55: 731.2 | L55: 721.2 | M55: 45.83196
A56: 46 | B56: BASF | C56: 2929.6 | D56: 2933.65 | E56: 2904.95 | F56: 2880.30 | G56: 2851.60 | H56: 2958.30 | I56: 2987.00 | J56: 3011.65 | K56: 2962.35 | L56: 2909 | M56: 0.31569
A57: 47 | B57: BSE | C57: 666.45 | D57: 669.28 | E57: 660.97 | F57: 655.48 | G57: 647.17 | H57: 674.77 | I57: 683.08 | J57: 688.57 | K57: 677.6 | L57: 663.8 | M57: 6.64014
A58: 48 | B58: BAJAJ-AUTO | C58: 4013.1 | D58: 4014.80 | E58: 3991.35 | F58: 3969.60 | G58: 3946.15 | H58: 4036.55 | I58: 4060.00 | J58: 4081.75 | K58: 4038.25 | L58: 3993.05 | M58: 2.87542
A59: 49 | B59: BAJAJELEC | C59: 1131.05 | D59: 1134.68 | E59: 1121.37 | F59: 1111.68 | G59: 1098.37 | H59: 1144.37 | I59: 1157.68 | J59: 1167.37 | K59: 1148 | L59: 1125 | M59: 0.21972
A60: 50 | B60: BAJFINANCE | C60: 7304.7 | D60: 7316.23 | E60: 7264.52 | F60: 7224.33 | G60: 7172.62 | H60: 7356.42 | I60: 7408.13 | J60: 7448.32 | K60: 7367.95 | L60: 7276.05 | M60: 7.58078
A61: 51 | B61: BAJAJFINSV | C61: 15085.85 | D61: 15120.08 | E61: 14989.17 | F61: 14892.48 | G61: 14761.57 | H61: 15216.77 | I61: 15347.68 | J61: 15444.37 | K61: 15251 | L61: 15023.4 | M61: 2.07847
A62: 52 | B62: BAJAJHLDNG | C62: 5257.7 | D62: 5259.88 | E62: 5128.87 | F62: 5000.03 | G62: 4869.02 | H62: 5388.72 | I62: 5519.73 | J62: 5648.57 | K62: 5390.9 | L62: 5131.05 | M62: 0.91652
A63: 53 | B63: BALAMINES | C63: 3576.45 | D63: 3603.32 | E63: 3533.03 | F63: 3489.62 | G63: 3419.33 | H63: 3646.73 | I63: 3717.02 | J63: 3760.43 | K63: 3673.6 | L63: 3559.9 | M63: 0.68978
A64: 54 | B64: BALKRISIND | C64: 2162.8 | D64: 2187.78 | E64: 2105.62 | F64: 2048.43 | G64: 1966.27 | H64: 2244.97 | I64: 2327.13 | J64: 2384.32 | K64: 2269.95 | L64: 2130.6 | M64: 25.52684
A65: 55 | B65: BALRAMCHIN | C65: 350.65 | D65: 354.98 | E65: 342.77 | F65: 334.88 | G65: 322.67 | H65: 362.87 | I65: 375.08 | J65: 382.97 | K65: 367.2 | L65: 347.1 | M65: 87.59336
A66: 56 | B66: BANDHANBNK | C66: 274.1 | D66: 276.18 | E66: 271.42 | F66: 268.73 | G66: 263.97 | H66: 278.87 | I66: 283.63 | J66: 286.32 | K66: 280.95 | L66: 273.5 | M66: 55.10679
A67: 57 | B67: BANKBARODA | C67: 117.9 | D67: 118.65 | E67: 116.80 | F67: 115.70 | G67: 113.85 | H67: 119.75 | I67: 121.60 | J67: 122.70 | K67: 120.5 | L67: 117.55 | M67: 339.06201
A68: 58 | B68: BANKINDIA | C68: 48.75 | D68: 48.85 | E68: 48.20 | F68: 47.65 | G68: 47.00 | H68: 49.40 | I68: 50.05 | J68: 50.60 | K68: 49.5 | L68: 48.3 | M68: 25.95425
A69: 59 | B69: MAHABANK | C69: 17.3 | D69: 17.35 | E69: 17.15 | F69: 17.00 | G69: 16.80 | H69: 17.50 | I69: 17.70 | J69: 17.85 | K69: 17.55 | L69: 17.2 | M69: 13.65201
A70: 60 | B70: BATAINDIA | C70: 1901.5 | D70: 1908.95 | E70: 1887.10 | F70: 1872.70 | G70: 1850.85 | H70: 1923.35 | I70: 1945.20 | J70: 1959.60 | K70: 1930.8 | L70: 1894.55 | M70: 1.76656
A71: 61 | B71: BAYERCROP | C71: 5482.05 | D71: 5538.27 | E71: 5408.78 | F71: 5335.52 | G71: 5206.03 | H71: 5611.53 | I71: 5741.02 | J71: 5814.28 | K71: 5667.75 | L71: 5465 | M71: 1.19651
A72: 62 | B72: BERGEPAINT | C72: 673.75 | D72: 673.83 | E72: 662.67 | F72: 651.58 | G72: 640.42 | H72: 684.92 | I72: 696.08 | J72: 707.17 | K72: 685 | L72: 662.75 | M72: 39.51984
A73: 63 | B73: BDL | C73: 825.3 | D73: 829.03 | E73: 815.37 | F73: 805.43 | G73: 791.77 | H73: 838.97 | I73: 852.63 | J73: 862.57 | K73: 842.7 | L73: 819.1 | M73: 5.59267
A74: 64 | B74: BEL | C74: 276.15 | D74: 276.13 | E74: 267.27 | F74: 258.38 | G74: 249.52 | H74: 285.02 | I74: 293.88 | J74: 302.77 | K74: 285 | L74: 267.25 | M74: 267.87928
A75: 65 | B75: BHARATFORG | C75: 706.4 | D75: 708.80 | E75: 701.10 | F75: 695.80 | G75: 688.10 | H75: 714.10 | I75: 721.80 | J75: 727.10 | K75: 716.5 | L75: 703.5 | M75: 9.40681
A76: 66 | B76: BHEL | C76: 51.65 | D76: 51.97 | E76: 51.18 | F76: 50.72 | G76: 49.93 | H76: 52.43 | I76: 53.22 | J76: 53.68 | K76: 52.75 | L76: 51.5 | M76: 185.74304
A77: 67 | B77: BPCL | C77: 336.4 | D77: 335.28 | E77: 333.32 | F77: 330.23 | G77: 328.27 | H77: 338.37 | I77: 340.33 | J77: 343.42 | K77: 337.25 | L77: 332.2 | M77: 25.57623
A78: 68 | B78: BHARTIARTL | C78: 703.65 | D78: 703.33 | E78: 696.67 | F78: 689.68 | G78: 683.02 | H78: 710.32 | I78: 716.98 | J78: 723.97 | K78: 710 | L78: 696.35 | M78: 58.11092
A79: 69 | B79: BIOCON | C79: 313.3 | D79: 313.80 | E79: 311.25 | F79: 309.20 | G79: 306.65 | H79: 315.85 | I79: 318.40 | J79: 320.45 | K79: 316.35 | L79: 311.75 | M79: 14.1321
A80: 70 | B80: BIRLACORPN | C80: 991.5 | D80: 994.68 | E80: 978.37 | F80: 965.23 | G80: 948.92 | H80: 1007.82 | I80: 1024.13 | J80: 1037.27 | K80: 1011 | L80: 981.55 | M80: 1.15577
A81: 71 | B81: BSOFT | C81: 345.95 | D81: 347.93 | E81: 342.62 | F81: 339.28 | G81: 333.97 | H81: 351.27 | I81: 356.58 | J81: 359.92 | K81: 353.25 | L81: 344.6 | M81: 21.7832
A82: 72 | B82: BLUEDART | C82: 8859.75 | D82: 8889.92 | E82: 8769.83 | F82: 8679.92 | G82: 8559.83 | H82: 8979.83 | I82: 9099.92 | J82: 9189.83 | K82: 9010 | L82: 8800 | M82: 0.16134
A83: 73 | B83: BLUESTARCO | C83: 990.95 | D83: 1011.65 | E83: 965.30 | F83: 939.65 | G83: 893.30 | H83: 1037.30 | I83: 1083.65 | J83: 1109.30 | K83: 1058 | L83: 986 | M83: 6.02904
A84: 74 | B84: BBTC | C84: 946.35 | D84: 950.52 | E84: 936.88 | F84: 927.42 | G84: 913.78 | H84: 959.98 | I84: 973.62 | J84: 983.08 | K84: 964.15 | L84: 941.05 | M84: 0.16719
A85: 75 | B85: BORORENEW | C85: 637.95 | D85: 638.38 | E85: 631.67 | F85: 625.38 | G85: 618.67 | H85: 644.67 | I85: 651.38 | J85: 657.67 | K85: 645.1 | L85: 632.1 | M85: 2.79
A86: 76 | B86: BOSCHLTD | C86: 17399.85 | D86: 17439.17 | E86: 17063.33 | F86: 16726.82 | G86: 16350.98 | H86: 17775.68 | I86: 18151.52 | J86: 18488.03 | K86: 17815 | L86: 17102.65 | M86: 0.70018
A87: 77 | B87: BRIGADE | C87: 514.75 | D87: 513.52 | E87: 508.43 | F87: 502.12 | G87: 497.03 | H87: 519.83 | I87: 524.92 | J87: 531.23 | K87: 518.6 | L87: 507.2 | M87: 2.58814
A88: 78 | B88: BCG | C88: 40.45 | D88: 41.38 | E88: 39.52 | F88: 38.58 | G88: 36.72 | H88: 42.32 | I88: 44.18 | J88: 45.12 | K88: 43.25 | L88: 40.45 | M88: 99.07587
A89: 79 | B89: BRITANNIA | C89: 3688.1 | D89: 3734.28 | E89: 3632.67 | F89: 3577.23 | G89: 3475.62 | H89: 3789.72 | I89: 3891.33 | J89: 3946.77 | K89: 3835.9 | L89: 3678.85 | M89: 7.9885
A90: 80 | B90: MAPMYINDIA | C90: 1305.05 | D90: 1310.05 | E90: 1291.10 | F90: 1277.15 | G90: 1258.20 | H90: 1324.00 | I90: 1342.95 | J90: 1356.90 | K90: 1329 | L90: 1296.1 | M90: 0.95597
A91: 81 | B91: CCL | C91: 442.75 | D91: 440.12 | E91: 434.23 | F91: 425.72 | G91: 419.83 | H91: 448.63 | I91: 454.52 | J91: 463.03 | K91: 446 | L91: 431.6 | M91: 1.38442
A92: 82 | B92: CESC | C92: 79.65 | D92: 79.70 | E92: 79.10 | F92: 78.55 | G92: 77.95 | H92: 80.25 | I92: 80.85 | J92: 81.40 | K92: 80.3 | L92: 79.15 | M92: 5.9638
A93: 83 | B93: CGPOWER | C93: 231.95 | D93: 230.82 | E93: 227.43 | F93: 222.92 | G93: 219.53 | H93: 235.33 | I93: 238.72 | J93: 243.23 | K93: 234.2 | L93: 226.3 | M93: 13.83182
A94: 84 | B94: CRISIL | C94: 3193.8 | D94: 3189.27 | E94: 3166.83 | F94: 3139.87 | G94: 3117.43 | H94: 3216.23 | I94: 3238.67 | J94: 3265.63 | K94: 3211.7 | L94: 3162.3 | M94: 2.81736
A95: 85 | B95: CSBBANK | C95: 207.25 | D95: 207.65 | E95: 205.30 | F95: 203.35 | G95: 201.00 | H95: 209.60 | I95: 211.95 | J95: 213.90 | K95: 210 | L95: 205.7 | M95: 1.4304
A96: 86 | B96: CANFINHOME | C96: 588.75 | D96: 588.20 | E96: 578.55 | F96: 568.35 | G96: 558.70 | H96: 598.40 | I96: 608.05 | J96: 618.25 | K96: 597.85 | L96: 578 | M96: 6.41609
A97: 87 | B97: CANBK | C97: 221.25 | D97: 223.43 | E97: 218.27 | F97: 215.28 | G97: 210.12 | H97: 226.42 | I97: 231.58 | J97: 234.57 | K97: 228.6 | L97: 220.45 | M97: 115.90985
A98: 88 | B98: CAPLIPOINT | C98: 820.15 | D98: 822.38 | E98: 802.77 | F98: 785.38 | G98: 765.77 | H98: 839.77 | I98: 859.38 | J98: 876.77 | K98: 842 | L98: 805 | M98: 2.12309
A99: 89 | B99: CGCL | C99: 694.1 | D99: 693.60 | E99: 681.50 | F99: 668.90 | G99: 656.80 | H99: 706.20 | I99: 718.30 | J99: 730.90 | K99: 705.7 | L99: 681 | M99: 0.24544
A100: 90 | B100: CARBORUNIV | C100: 844.6 | D100: 851.20 | E100: 833.70 | F100: 822.80 | G100: 805.30 | H100: 862.10 | I100: 879.60 | J100: 890.50 | K100: 868.7 | L100: 840.3 | M100: 1.22743
A101: 91 | B101: CASTROLIND | C101: 116.55 | D101: 116.18 | E101: 115.37 | F101: 114.18 | G101: 113.37 | H101: 117.37 | I101: 118.18 | J101: 119.37 | K101: 117 | L101: 115 | M101: 9.24292
A102: 92 | B102: CEATLTD | C102: 1326.45 | D102: 1325.80 | E102: 1308.65 | F102: 1290.85 | G102: 1273.70 | H102: 1343.60 | I102: 1360.75 | J102: 1378.55 | K102: 1342.95 | L102: 1308 | M102: 1.59627
A103: 93 | B103: CENTRALBK | C103: 18.3 | D103: 18.38 | E103: 18.17 | F103: 18.03 | G103: 17.82 | H103: 18.52 | I103: 18.73 | J103: 18.87 | K103: 18.6 | L103: 18.25 | M103: 16.32191
A104: 94 | B104: CDSL | C104: 1153.15 | D104: 1145.98 | E104: 1132.42 | F104: 1111.68 | G104: 1098.12 | H104: 1166.72 | I104: 1180.28 | J104: 1201.02 | K104: 1159.55 | L104: 1125.25 | M104: 5.16016
A105: 95 | B105: CENTURYPLY | C105: 634.3 | D105: 635.97 | E105: 624.48 | F105: 614.67 | G105: 603.18 | H105: 645.78 | I105: 657.27 | J105: 667.08 | K105: 647.45 | L105: 626.15 | M105: 3.2912
A106: 96 | B106: CENTURYTEX | C106: 844.35 | D106: 843.73 | E106: 835.62 | F106: 826.88 | G106: 818.77 | H106: 852.47 | I106: 860.58 | J106: 869.32 | K106: 851.85 | L106: 835 | M106: 0.80215
A107: 97 | B107: CERA | C107: 4724.7 | D107: 4743.42 | E107: 4674.28 | F107: 4623.87 | G107: 4554.73 | H107: 4793.83 | I107: 4862.97 | J107: 4913.38 | K107: 4812.55 | L107: 4693 | M107: 0.49547
A108: 98 | B108: CHALET | C108: 325.4 | D108: 321.77 | E108: 314.63 | F108: 303.87 | G108: 296.73 | H108: 332.53 | I108: 339.67 | J108: 350.43 | K108: 328.9 | L108: 311 | M108: 2.61476
A109: 99 | B109: CHAMBLFERT | C109: 321.7 | D109: 323.25 | E109: 318.50 | F109: 315.30 | G109: 310.55 | H109: 326.45 | I109: 331.20 | J109: 334.40 | K109: 328 | L109: 320.05 | M109: 19.51426
A110: 100 | B110: CHEMPLASTS | C110: 486.8 | D110: 488.00 | E110: 480.00 | F110: 473.20 | G110: 465.20 | H110: 494.80 | I110: 502.80 | J110: 509.60 | K110: 496 | L110: 481.2 | M110: 1.86247
A111: 101 | B111: CHOLAHLDNG | C111: 659 | D111: 660.18 | E111: 650.37 | F111: 641.73 | G111: 631.92 | H111: 668.82 | I111: 678.63 | J111: 687.27 | K111: 670 | L111: 651.55 | M111: 0.22953
A112: 102 | B112: CHOLAFIN | C112: 771.2 | D112: 774.23 | E112: 760.97 | F112: 750.73 | G112: 737.47 | H112: 784.47 | I112: 797.73 | J112: 807.97 | K112: 787.5 | L112: 764 | M112: 30.09385
A113: 103 | B113: CIPLA | C113: 1034.2 | D113: 1037.38 | E113: 1028.82 | F113: 1023.43 | G113: 1014.87 | H113: 1042.77 | I113: 1051.33 | J113: 1056.72 | K113: 1045.95 | L113: 1032 | M113: 15.61405
A114: 104 | B114: CUB | C114: 161.05 | D114: 161.05 | E114: 159.05 | F114: 157.05 | G114: 155.05 | H114: 163.05 | I114: 165.05 | J114: 167.05 | K114: 163.05 | L114: 159.05 | M114: 7.45927
A115: 105 | B115: CLEAN | C115: 1633.85 | D115: 1640.40 | E115: 1618.80 | F115: 1603.75 | G115: 1582.15 | H115: 1655.45 | I115: 1677.05 | J115: 1692.10 | K115: 1662 | L115: 1625.35 | M115: 0.7244
A116: 106 | B116: COALINDIA | C116: 208.45 | D116: 208.15 | E116: 206.05 | F116: 203.65 | G116: 201.55 | H116: 210.55 | I116: 212.65 | J116: 215.05 | K116: 210.25 | L116: 205.75 | M116: 319.9904
A117: 107 | B117: COCHINSHIP | C117: 341 | D117: 338.87 | E117: 332.73 | F117: 324.47 | G117: 318.33 | H117: 347.13 | I117: 353.27 | J117: 361.53 | K117: 345 | L117: 330.6 | M117: 3.8905
A118: 108 | B118: COFORGE | C118: 3934.5 | D118: 3936.08 | E118: 3893.37 | F118: 3852.23 | G118: 3809.52 | H118: 3977.22 | I118: 4019.93 | J118: 4061.07 | K118: 3978.8 | L118: 3894.95 | M118: 2.35333
A119: 109 | B119: COLPAL | C119: 1614.1 | D119: 1609.63 | E119: 1599.27 | F119: 1584.43 | G119: 1574.07 | H119: 1624.47 | I119: 1634.83 | J119: 1649.67 | K119: 1620 | L119: 1594.8 | M119: 3.11701
A120: 110 | B120: CAMS | C120: 2368.05 | D120: 2403.35 | E120: 2321.70 | F120: 2275.35 | G120: 2193.70 | H120: 2449.70 | I120: 2531.35 | J120: 2577.70 | K120: 2485 | L120: 2357 | M120: 1.57198
A121: 111 | B121: CONCOR | C121: 685.9 | D121: 690.37 | E121: 679.53 | F121: 673.17 | G121: 662.33 | H121: 696.73 | I121: 707.57 | J121: 713.93 | K121: 701.2 | L121: 684 | M121: 23.85753
A122: 112 | B122: COROMANDEL | C122: 1049.25 | D122: 1049.88 | E122: 1037.77 | F122: 1026.28 | G122: 1014.17 | H122: 1061.37 | I122: 1073.48 | J122: 1084.97 | K122: 1062 | L122: 1038.4 | M122: 6.08959
A123: 113 | B123: CREDITACC | C123: 981.3 | D123: 986.40 | E123: 969.60 | F123: 957.90 | G123: 941.10 | H123: 998.10 | I123: 1014.90 | J123: 1026.60 | K123: 1003.2 | L123: 974.7 | M123: 0.66381
A124: 114 | B124: CROMPTON | C124: 373.85 | D124: 374.58 | E124: 368.52 | F124: 363.18 | G124: 357.12 | H124: 379.92 | I124: 385.98 | J124: 391.32 | K124: 380.65 | L124: 369.25 | M124: 295.5623
A125: 115 | B125: CUMMINSIND | C125: 1172.4 | D125: 1177.98 | E125: 1162.47 | F125: 1152.53 | G125: 1137.02 | H125: 1187.92 | I125: 1203.43 | J125: 1213.37 | K125: 1193.5 | L125: 1168.05 | M125: 3.08759
A126: 116 | B126: CYIENT | C126: 820.9 | D126: 821.83 | E126: 816.07 | F126: 811.23 | G126: 805.47 | H126: 826.67 | I126: 832.43 | J126: 837.27 | K126: 827.6 | L126: 817 | M126: 0.58306
A127: 117 | B127: DCMSHRIRAM | C127: 1039.05 | D127: 1048.52 | E127: 1023.53 | F127: 1008.02 | G127: 983.03 | H127: 1064.03 | I127: 1089.02 | J127: 1104.53 | K127: 1073.5 | L127: 1033 | M127: 0.80388
A128: 118 | B128: DLF | C128: 367.8 | D128: 368.98 | E128: 365.12 | F128: 362.43 | G128: 358.57 | H128: 371.67 | I128: 375.53 | J128: 378.22 | K128: 372.85 | L128: 366.3 | M128: 41.86137
A129: 119 | B129: DABUR | C129: 579.15 | D129: 578.23 | E129: 573.92 | F129: 568.68 | G129: 564.37 | H129: 583.47 | I129: 587.78 | J129: 593.02 | K129: 582.55 | L129: 573 | M129: 14.55945
A130: 120 | B130: DALBHARAT | C130: 1616.3 | D130: 1598.18 | E130: 1568.12 | F130: 1519.93 | G130: 1489.87 | H130: 1646.37 | I130: 1676.43 | J130: 1724.62 | K130: 1628.25 | L130: 1550 | M130: 4.12824
A131: 121 | B131: DEEPAKNTR | C131: 2025.1 | D131: 2032.07 | E131: 2004.13 | F131: 1983.17 | G131: 1955.23 | H131: 2053.03 | I131: 2080.97 | J131: 2101.93 | K131: 2060 | L131: 2011.1 | M131: 15.01808
A132: 122 | B132: DELTACORP | C132: 194.55 | D132: 197.12 | E132: 191.03 | F132: 187.52 | G132: 181.43 | H132: 200.63 | I132: 206.72 | J132: 210.23 | K132: 203.2 | L132: 193.6 | M132: 55.02632
A133: 123 | B133: DEVYANI | C133: 187.3 | D133: 188.85 | E133: 182.35 | F133: 177.40 | G133: 170.90 | H133: 193.80 | I133: 200.30 | J133: 205.25 | K133: 195.35 | L133: 183.9 | M133: 77.07751
A134: 124 | B134: DHANI | C134: 48.7 | D134: 49.20 | E134: 46.95 | F134: 45.20 | G134: 42.95 | H134: 50.95 | I134: 53.20 | J134: 54.95 | K134: 51.45 | L134: 47.45 | M134: 86.3893
A135: 125 | B135: DBL | C135: 242.3 | D135: 243.42 | E135: 238.98 | F135: 235.67 | G135: 231.23 | H135: 246.73 | I135: 251.17 | J135: 254.48 | K135: 247.85 | L135: 240.1 | M135: 2.61601
A136: 126 | B136: DIVISLAB | C136: 3912.2 | D136: 3920.63 | E136: 3891.57 | F136: 3870.93 | G136: 3841.87 | H136: 3941.27 | I136: 3970.33 | J136: 3990.97 | K136: 3949.7 | L136: 3900 | M136: 3.74417
A137: 127 | B137: DIXON | C137: 3827.3 | D137: 3835.10 | E137: 3810.20 | F137: 3793.10 | G137: 3768.20 | H137: 3852.20 | I137: 3877.10 | J137: 3894.20 | K137: 3860 | L137: 3818 | M137: 2.1158
A138: 128 | B138: LALPATHLAB | C138: 2427 | D138: 2385.00 | E138: 2320.00 | F138: 2213.00 | G138: 2148.00 | H138: 2492.00 | I138: 2557.00 | J138: 2664.00 | K138: 2450 | L138: 2278 | M138: 2.08101
A139: 129 | B139: DRREDDY | C139: 4156.85 | D139: 4164.83 | E139: 4135.87 | F139: 4114.88 | G139: 4085.92 | H139: 4185.82 | I139: 4214.78 | J139: 4235.77 | K139: 4193.8 | L139: 4143.85 | M139: 4.15079
A140: 130 | B140: EIDPARRY | C140: 551.45 | D140: 552.77 | E140: 546.83 | F140: 542.22 | G140: 536.28 | H140: 557.38 | I140: 563.32 | J140: 567.93 | K140: 558.7 | L140: 548.15 | M140: 1.41367
A141: 131 | B141: EIHOTEL | C141: 156.05 | D141: 156.17 | E141: 153.33 | F141: 150.62 | G141: 147.78 | H141: 158.88 | I141: 161.72 | J141: 164.43 | K141: 159 | L141: 153.45 | M141: 13.11269
A142: 132 | B142: EPL | C142: 166.1 | D142: 166.65 | E142: 164.55 | F142: 163.00 | G142: 160.90 | H142: 168.20 | I142: 170.30 | J142: 171.85 | K142: 168.75 | L142: 165.1 | M142: 8.38775
A143: 133 | B143: EASEMYTRIP | C143: 426.95 | D143: 425.93 | E143: 417.42 | F143: 407.88 | G143: 399.37 | H143: 435.47 | I143: 443.98 | J143: 453.52 | K143: 434.45 | L143: 416.4 | M143: 44.24634
A144: 134 | B144: EDELWEISS | C144: 57.2 | D144: 57.58 | E144: 56.62 | F144: 56.03 | G144: 55.07 | H144: 58.17 | I144: 59.13 | J144: 59.72 | K144: 58.55 | L144: 57 | M144: 9.24618
A145: 135 | B145: EICHERMOT | C145: 3089.6 | D145: 3111.80 | E145: 3043.80 | F145: 2998.00 | G145: 2930.00 | H145: 3157.60 | I145: 3225.60 | J145: 3271.40 | K145: 3179.8 | L145: 3066 | M145: 5.18285
A146: 136 | B146: ELGIEQUIP | C146: 426.55 | D146: 424.82 | E146: 418.68 | F146: 410.82 | G146: 404.68 | H146: 432.68 | I146: 438.82 | J146: 446.68 | K146: 430.95 | L146: 416.95 | M146: 4.61102
A147: 137 | B147: EMAMILTD | C147: 459 | D147: 461.65 | E147: 450.55 | F147: 442.10 | G147: 431.00 | H147: 470.10 | I147: 481.20 | J147: 489.65 | K147: 472.75 | L147: 453.2 | M147: 1.83679
A148: 138 | B148: ENDURANCE | C148: 1455.75 | D148: 1459.33 | E148: 1438.02 | F148: 1420.28 | G148: 1398.97 | H148: 1477.07 | I148: 1498.38 | J148: 1516.12 | K148: 1480.65 | L148: 1441.6 | M148: 0.17796
A149: 139 | B149: ENGINERSIN | C149: 68.85 | D149: 69.12 | E149: 68.23 | F149: 67.62 | G149: 66.73 | H149: 69.73 | I149: 70.62 | J149: 71.23 | K149: 70 | L149: 68.5 | M149: 6.19434
A150: 140 | B150: EQUITAS | C150: 97.7 | D150: 97.85 | E150: 97.05 | F150: 96.40 | G150: 95.60 | H150: 98.50 | I150: 99.30 | J150: 99.95 | K150: 98.65 | L150: 97.2 | M150: 3.35044
A151: 141 | B151: EQUITASBNK | C151: 44.55 | D151: 45.00 | E151: 43.80 | F151: 43.05 | G151: 41.85 | H151: 45.75 | I151: 46.95 | J151: 47.70 | K151: 46.2 | L151: 44.25 | M151: 3.94304
A152: 142 | B152: ERIS | C152: 694.75 | D152: 694.30 | E152: 667.10 | F152: 639.45 | G152: 612.25 | H152: 721.95 | I152: 749.15 | J152: 776.80 | K152: 721.5 | L152: 666.65 | M152: 1.2044
A153: 143 | B153: ESCORTS | C153: 1642.6 | D153: 1642.50 | E153: 1632.20 | F153: 1621.80 | G153: 1611.50 | H153: 1652.90 | I153: 1663.20 | J153: 1673.60 | K153: 1652.8 | L153: 1632.1 | M153: 1.72093
A154: 144 | B154: EXIDEIND | C154: 156.4 | D154: 156.88 | E154: 155.57 | F154: 154.73 | G154: 153.42 | H154: 157.72 | I154: 159.03 | J154: 159.87 | K154: 158.2 | L154: 156.05 | M154: 13.54483
A155: 145 | B155: FDC | C155: 272.55 | D155: 268.88 | E155: 262.67 | F155: 252.78 | G155: 246.57 | H155: 278.77 | I155: 284.98 | J155: 294.87 | K155: 275.1 | L155: 259 | M155: 8.13128
A156: 146 | B156: NYKAA | C156: 1411.25 | D156: 1420.75 | E156: 1393.50 | F156: 1375.75 | G156: 1348.50 | H156: 1438.50 | I156: 1465.75 | J156: 1483.50 | K156: 1448 | L156: 1403 | M156: 4.7152
A157: 147 | B157: FEDERALBNK | C157: 108.95 | D157: 109.05 | E157: 107.45 | F157: 105.95 | G157: 104.35 | H157: 110.55 | I157: 112.15 | J157: 113.65 | K157: 110.65 | L157: 107.55 | M157: 112.9244
A158: 148 | B158: FACT | C158: 122.8 | D158: 121.52 | E158: 116.28 | F158: 109.77 | G158: 104.53 | H158: 128.03 | I158: 133.27 | J158: 139.78 | K158: 126.75 | L158: 115 | M158: 24.14442
A159: 149 | B159: FINEORG | C159: 5684.35 | D159: 5709.58 | E159: 5624.47 | F159: 5564.58 | G159: 5479.47 | H159: 5769.47 | I159: 5854.58 | J159: 5914.47 | K159: 5794.7 | L159: 5649.7 | M159: 0.3568
A160: 150 | B160: FINCABLES | C160: 429.8 | D160: 429.47 | E160: 425.93 | F160: 422.07 | G160: 418.53 | H160: 433.33 | I160: 436.87 | J160: 440.73 | K160: 433 | L160: 425.6 | M160: 1.2316
A161: 151 | B161: FINPIPE | C161: 134.6 | D161: 134.87 | E161: 131.73 | F161: 128.87 | G161: 125.73 | H161: 137.73 | I161: 140.87 | J161: 143.73 | K161: 138 | L161: 132 | M161: 5.21864
A162: 152 | B162: FSL | C162: 105.15 | D162: 105.85 | E162: 103.90 | F162: 102.65 | G162: 100.70 | H162: 107.10 | I162: 109.05 | J162: 110.30 | K162: 107.8 | L162: 104.6 | M162: 30.89832
A163: 153 | B163: FORTIS | C163: 264.4 | D163: 265.93 | E163: 261.47 | F163: 258.53 | G163: 254.07 | H163: 268.87 | I163: 273.33 | J163: 276.27 | K163: 270.4 | L163: 263 | M163: 3.0082
A164: 154 | B164: GRINFRA | C164: 1314.55 | D164: 1323.52 | E164: 1301.03 | F164: 1287.52 | G164: 1265.03 | H164: 1337.03 | I164: 1359.52 | J164: 1373.03 | K164: 1346 | L164: 1310 | M164: 0.04791
A165: 155 | B165: GAIL | C165: 132.9 | D165: 135.10 | E165: 130.30 | F165: 127.70 | G165: 122.90 | H165: 137.70 | I165: 142.50 | J165: 145.10 | K165: 139.9 | L165: 132.5 | M165: 436.86433
A166: 156 | B166: GMMPFAUDLR | C166: 1626.3 | D166: 1627.10 | E166: 1609.20 | F166: 1592.10 | G166: 1574.20 | H166: 1644.20 | I166: 1662.10 | J166: 1679.20 | K166: 1645 | L166: 1610 | M166: 1.41912
A167: 157 | B167: GMRINFRA | C167: 34.65 | D167: 34.73 | E167: 34.42 | F167: 34.18 | G167: 33.87 | H167: 34.97 | I167: 35.28 | J167: 35.52 | K167: 35.05 | L167: 34.5 | M167: 44.93985
A168: 158 | B168: GALAXYSURF | C168: 3115.65 | D168: 3121.90 | E168: 3088.80 | F168: 3061.95 | G168: 3028.85 | H168: 3148.75 | I168: 3181.85 | J168: 3208.70 | K168: 3155 | L168: 3095.05 | M168: 0.06767
A169: 159 | B169: GARFIBRES | C169: 3020.25 | D169: 3088.42 | E169: 2911.83 | F169: 2803.42 | G169: 2626.83 | H169: 3196.83 | I169: 3373.42 | J169: 3481.83 | K169: 3265 | L169: 2980 | M169: 0.33048
A170: 160 | B170: GICRE | C170: 120.65 | D170: 120.72 | E170: 119.53 | F170: 118.42 | G170: 117.23 | H170: 121.83 | I170: 123.02 | J170: 124.13 | K170: 121.9 | L170: 119.6 | M170: 1.56012
A171: 161 | B171: GLAND | C171: 2264.05 | D171: 2281.40 | E171: 2232.75 | F171: 2201.45 | G171: 2152.80 | H171: 2312.70 | I171: 2361.35 | J171: 2392.65 | K171: 2330.05 | L171: 2250.1 | M171: 3.21491
A172: 162 | B172: GLAXO | C172: 1408.5 | D172: 1408.30 | E172: 1400.20 | F172: 1391.90 | G172: 1383.80 | H172: 1416.60 | I172: 1424.70 | J172: 1433.00 | K172: 1416.4 | L172: 1400 | M172: 0.37744
A173: 163 | B173: GLS | C173: 449.25 | D173: 452.17 | E173: 444.38 | F173: 439.52 | G173: 431.73 | H173: 457.03 | I173: 464.82 | J173: 469.68 | K173: 459.95 | L173: 447.3 | M173: 0.9766
A174: 164 | B174: GLENMARK | C174: 378.25 | D174: 379.08 | E174: 374.17 | F174: 370.08 | G174: 365.17 | H174: 383.17 | I174: 388.08 | J174: 392.17 | K174: 384 | L174: 375 | M174: 11.34812
A175: 165 | B175: GOCOLORS | C175: 1116.5 | D175: 1124.57 | E175: 1097.13 | F175: 1077.77 | G175: 1050.33 | H175: 1143.93 | I175: 1171.37 | J175: 1190.73 | K175: 1152 | L175: 1105.2 | M175: 0.54686
A176: 166 | B176: GODFRYPHLP | C176: 1184.45 | D176: 1185.75 | E176: 1172.50 | F176: 1160.55 | G176: 1147.30 | H176: 1197.70 | I176: 1210.95 | J176: 1222.90 | K176: 1199 | L176: 1173.8 | M176: 0.32962
A177: 167 | B177: GODREJAGRO | C177: 489.95 | D177: 491.60 | E177: 486.45 | F177: 482.95 | G177: 477.80 | H177: 495.10 | I177: 500.25 | J177: 503.75 | K177: 496.75 | L177: 488.1 | M177: 1.53067
A178: 168 | B178: GODREJCP | C178: 873.1 | D178: 870.77 | E178: 857.53 | F178: 841.97 | G178: 828.73 | H178: 886.33 | I178: 899.57 | J178: 915.13 | K178: 884 | L178: 855.2 | M178: 17.92596
A179: 169 | B179: GODREJIND | C179: 453.15 | D179: 453.15 | E179: 449.30 | F179: 445.45 | G179: 441.60 | H179: 457.00 | I179: 460.85 | J179: 464.70 | K179: 457 | L179: 449.3 | M179: 1.29948
A180: 170 | B180: GODREJPROP | C180: 1373.85 | D180: 1382.92 | E180: 1361.48 | F180: 1349.12 | G180: 1327.68 | H180: 1395.28 | I180: 1416.72 | J180: 1429.08 | K180: 1404.35 | L180: 1370.55 | M180: 6.7106
A181: 171 | B181: GRANULES | C181: 310.95 | D181: 311.58 | E181: 308.27 | F181: 305.58 | G181: 302.27 | H181: 314.27 | I181: 317.58 | J181: 320.27 | K181: 314.9 | L181: 308.9 | M181: 6.71106
A182: 172 | B182: GRAPHITE | C182: 418.05 | D182: 425.08 | E182: 403.87 | F182: 389.68 | G182: 368.47 | H182: 439.27 | I182: 460.48 | J182: 474.67 | K182: 446.3 | L182: 410.9 | M182: 21.11273
A183: 173 | B183: GRASIM | C183: 1598.3 | D183: 1598.77 | E183: 1581.63 | F183: 1564.97 | G183: 1547.83 | H183: 1615.43 | I183: 1632.57 | J183: 1649.23 | K183: 1615.9 | L183: 1582.1 | M183: 9.47343
A184: 174 | B184: GESHIP | C184: 507.15 | D184: 509.35 | E184: 501.15 | F184: 495.15 | G184: 486.95 | H184: 515.35 | I184: 523.55 | J184: 529.55 | K184: 517.55 | L184: 503.35 | M184: 2.65385
A185: 175 | B185: GRINDWELL | C185: 1962.8 | D185: 1974.60 | E185: 1939.25 | F185: 1915.70 | G185: 1880.35 | H185: 1998.15 | I185: 2033.50 | J185: 2057.05 | K185: 2009.95 | L185: 1951.05 | M185: 0.41325
A186: 176 | B186: GUJALKALI | C186: 754.9 | D186: 773.60 | E186: 719.50 | F186: 684.10 | G186: 630.00 | H186: 809.00 | I186: 863.10 | J186: 898.50 | K186: 827.7 | L186: 738.2 | M186: 14.62262
A187: 177 | B187: GAEL | C187: 296.15 | D187: 297.25 | E187: 293.40 | F187: 290.65 | G187: 286.80 | H187: 300.00 | I187: 303.85 | J187: 306.60 | K187: 301.1 | L187: 294.5 | M187: 1.60053
A188: 178 | B188: FLUOROCHEM | C188: 3384.7 | D188: 3380.00 | E188: 3360.00 | F188: 3335.30 | G188: 3315.30 | H188: 3404.70 | I188: 3424.70 | J188: 3449.40 | K188: 3400 | L188: 3355.3 | M188: 1.26104
A189: 179 | B189: GUJGASLTD | C189: 437.75 | D189: 439.05 | E189: 428.40 | F189: 419.05 | G189: 408.40 | H189: 448.40 | I189: 459.05 | J189: 468.40 | K189: 449.7 | L189: 429.7 | M189: 14.92696
A190: 180 | B190: GNFC | C190: 771.05 | D190: 772.83 | E190: 764.02 | F190: 756.98 | G190: 748.17 | H190: 779.87 | I190: 788.68 | J190: 795.72 | K190: 781.65 | L190: 765.8 | M190: 11.06212
A191: 181 | B191: GPPL | C191: 81.9 | D191: 81.57 | E191: 80.88 | F191: 79.87 | G191: 79.18 | H191: 82.58 | I191: 83.27 | J191: 84.28 | K191: 82.25 | L191: 80.55 | M191: 7.81083
A192: 182 | B192: GSFC | C192: 158.5 | D192: 159.70 | E192: 155.80 | F192: 153.10 | G192: 149.20 | H192: 162.40 | I192: 166.30 | J192: 169.00 | K192: 163.6 | L192: 157 | M192: 21.92029
A193: 183 | B193: GSPL | C193: 235.55 | D193: 238.33 | E193: 231.17 | F193: 226.78 | G193: 219.62 | H193: 242.72 | I193: 249.88 | J193: 254.27 | K193: 245.5 | L193: 233.95 | M193: 14.50592
A194: 184 | B194: HEG | C194: 1244.6 | D194: 1257.87 | E194: 1227.73 | F194: 1210.87 | G194: 1180.73 | H194: 1274.73 | I194: 1304.87 | J194: 1321.73 | K194: 1288 | L194: 1241 | M194: 3.10878
A195: 185 | B195: HCLTECH | C195: 957.75 | D195: 959.23 | E195: 953.52 | F195: 949.28 | G195: 943.57 | H195: 963.47 | I195: 969.18 | J195: 973.42 | K195: 964.95 | L195: 955 | M195: 25.65683
A196: 186 | B196: HDFCAMC | C196: 2002.05 | D196: 1995.48 | E196: 1982.17 | F196: 1962.28 | G196: 1948.97 | H196: 2015.37 | I196: 2028.68 | J196: 2048.57 | K196: 2008.8 | L196: 1975.6 | M196: 1.9158
A197: 187 | B197: HDFCBANK | C197: 1427.05 | D197: 1428.38 | E197: 1419.82 | F197: 1412.58 | G197: 1404.02 | H197: 1435.62 | I197: 1444.18 | J197: 1451.42 | K197: 1436.95 | L197: 1421.15 | M197: 46.34491
A198: 188 | B198: HDFCLIFE | C198: 539.25 | D198: 540.45 | E198: 535.35 | F198: 531.45 | G198: 526.35 | H198: 544.35 | I198: 549.45 | J198: 553.35 | K198: 545.55 | L198: 536.55 | M198: 54.66554
A199: 189 | B199: HFCL | C199: 68.05 | D199: 67.87 | E199: 65.93 | F199: 63.82 | G199: 61.88 | H199: 69.98 | I199: 71.92 | J199: 74.03 | K199: 69.8 | L199: 65.75 | M199: 114.29048
A200: 190 | B200: HLEGLAS | C200: 3697.8 | D200: 3676.93 | E200: 3575.87 | F200: 3453.93 | G200: 3352.87 | H200: 3798.87 | I200: 3899.93 | J200: 4021.87 | K200: 3778 | L200: 3555 | M200: 2.52194
A201: 191 | B201: HAPPSTMNDS | C201: 970.5 | D201: 971.15 | E201: 964.90 | F201: 959.30 | G201: 953.05 | H201: 976.75 | I201: 983.00 | J201: 988.60 | K201: 977.4 | L201: 965.55 | M201: 2.26483
A202: 192 | B202: HATHWAY | C202: 17.05 | D202: 17.13 | E202: 16.92 | F202: 16.78 | G202: 16.57 | H202: 17.27 | I202: 17.48 | J202: 17.62 | K202: 17.35 | L202: 17 | M202: 8.07673
A203: 193 | B203: HATSUN | C203: 1014 | D203: 1011.75 | E203: 998.50 | F203: 983.00 | G203: 969.75 | H203: 1027.25 | I203: 1040.50 | J203: 1056.00 | K203: 1025 | L203: 996.25 | M203: 0.16465
A204: 194 | B204: HAVELLS | C204: 1289.4 | D204: 1297.80 | E204: 1274.60 | F204: 1259.80 | G204: 1236.60 | H204: 1312.60 | I204: 1335.80 | J204: 1350.60 | K204: 1321 | L204: 1283 | M204: 10.78846
A205: 195 | B205: HEMIPROP | C205: 101.7 | D205: 101.83 | E205: 101.02 | F205: 100.33 | G205: 99.52 | H205: 102.52 | I205: 103.33 | J205: 104.02 | K205: 102.65 | L205: 101.15 | M205: 8.89053
A206: 196 | B206: HEROMOTOCO | C206: 2770.7 | D206: 2780.53 | E206: 2751.17 | F206: 2731.63 | G206: 2702.27 | H206: 2800.07 | I206: 2829.43 | J206: 2848.97 | K206: 2809.9 | L206: 2761 | M206: 5.12072
... 320 more rows

Sheet Bulk Deals
E6: Back To Main Page
A7: Subject : | B7: BULK DEAL | D7: =Main!B10 -> 2022-08-08
A9: Date | B9: Scrip code | C9: Scrip Name | D9: Client Name | E9: Buy / Sell | F9: Quantity Traded | G9: Trade Price / Wt.Avg.trade price | H9: Exchange
A10: 2022-08-05 | B10: 509053 | C10: BANASFN | D10: MULTIPLIER SHARE & STOCK ADVISORS PRIVATE LIMITED | E10: BUY | F10: 527,907 | G10: 21.25 | H10: BSE
A11: 2022-08-05 | B11: 509053 | C11: BANASFN | D11: MULTIPLIER SHARE & STOCK ADVISORS PRIVATE LIMITED | E11: SELL | F11: 391,018 | G11: 21.31 | H11: BSE
A12: 2022-08-05 | B12: 513353 | C12: COCHINM | D12: SETU SECURITIES PVT LTD | E12: SELL | F12: 47,712 | G12: 161.28 | H12: BSE
A13: 2022-08-05 | B13: 513353 | C13: COCHINM | D13: SETU SECURITIES PVT LTD | E13: BUY | F13: 46,716 | G13: 158.06 | H13: BSE
A14: 2022-08-05 | B14: 533149 | C14: ESSARSEC | D14: ANAND MOHAN | E14: BUY | F14: 90,725 | G14: 5.38 | H14: BSE
A15: 2022-08-05 | B15: 540377 | C15: IFL | D15: HETALBEN SANDIPKUMAR SONI | E15: BUY | F15: 18,000 | G15: 118.3 | H15: BSE
A16: 2022-08-05 | B16: 540377 | C16: IFL | D16: MOHAMMED MOHSIN HAJIMOHAMMED AJMERWALA | E16: SELL | F16: 18,000 | G16: 118.3 | H16: BSE
A17: 2022-08-05 | B17: 543286 | C17: JETMALL | D17: VIJAYAKUMAR | E17: SELL | F17: 102,000 | G17: 16.81 | H17: BSE
A18: 2022-08-05 | B18: 543286 | C18: JETMALL | D18: TARUNA PANKAJ TATED | E18: BUY | F18: 30,000 | G18: 18.32 | H18: BSE
A19: 2022-08-05 | B19: 500236 | C19: KANELIND | D19: DHIREN KANAIYALAL THAKKAR | E19: SELL | F19: 116,000 | G19: 3.1 | H19: BSE
A20: 2022-08-05 | B20: 538928 | C20: KARNAVATI | D20: NITIN RAJESHBHAI BHUVA | E20: SELL | F20: 80,000 | G20: 33 | H20: BSE
A21: 2022-08-05 | B21: 538928 | C21: KARNAVATI | D21: CHETAN ANANTRAI PATEL | E21: BUY | F21: 100,700 | G21: 33.05 | H21: BSE
A22: 2022-08-05 | B22: 541161 | C22: KBCGLOBAL | D22: SATGURU CAPITAL AND FINANCE PVT LTD | E22: SELL | F22: 3,110,910 | G22: 2.33 | H22: BSE
A23: 2022-08-05 | B23: 503669 | C23: KKFIN | D23: FULIDEVI SARAF FAMILY TRUST | E23: BUY | F23: 227,099 | G23: 9.58 | H23: BSE
A24: 2022-08-05 | B24: 503669 | C24: KKFIN | D24: ACQUITOR FINANCIAL SERVICES PVT.LTD. | E24: SELL | F24: 41,595 | G24: 9.58 | H24: BSE
A25: 2022-08-05 | B25: 503669 | C25: KKFIN | D25: KHATTU CONSTRUCTIONS AND DEVELOPERS PRIVATE LIMITED | E25: SELL | F25: 189,399 | G25: 9.58 | H25: BSE
A26: 2022-08-05 | B26: 514360 | C26: KRRAIL | D26: MOHIT JAIN | E26: SELL | F26: 162,000 | G26: 24.86 | H26: BSE
A27: 2022-08-05 | B27: 511000 | C27: MADHUSE | D27: KISHIN SHEWAKRAMANI | E27: BUY | F27: 45,000 | G27: 3.08 | H27: BSE
A28: 2022-08-05 | B28: 539519 | C28: MAYUKH | D28: GAURAV CHANDRAKANT SHAH | E28: BUY | F28: 85,304 | G28: 9.62 | H28: BSE
A29: 2022-08-05 | B29: 539519 | C29: MAYUKH | D29: GAURAV CHANDRAKANT SHAH | E29: SELL | F29: 800 | G29: 9.55 | H29: BSE
A30: 2022-08-05 | B30: 538874 | C30: NEXUSSURGL | D30: KHATTU CONSTRUCTIONS AND DEVELOPERS PRIVATE LIMITED | E30: BUY | F30: 77,237 | G30: 10.5 | H30: BSE
A31: 2022-08-05 | B31: 511557 | C31: PROFINC | D31: MULTIPLIER SHARE & STOCK ADVISORS PRIVATE LIMITED | E31: SELL | F31: 1,109,048 | G31: 1.64 | H31: BSE
A32: 2022-08-05 | B32: 512115 | C32: ROSEMER | D32: SANT LAL KHANEJA AND SONS (HUF) | E32: SELL | F32: 9,006 | G32: 20.85 | H32: BSE
A33: 2022-08-05 | B33: 512115 | C33: ROSEMER | D33: GLASTON MARIO MENEZES | E33: BUY | F33: 10,000 | G33: 20.85 | H33: BSE
A34: 2022-08-05 | B34: 532972 | C34: SANKHYAIN | D34: ANILKUMARKRISHNAMURTHY | E34: SELL | F34: 74,660 | G34: 6.14 | H34: BSE
A35: 2022-08-05 | B35: 516110 | C35: SCANDENT | D35: TOPGAIN FINANCE PRIVATE LIMITED | E35: SELL | F35: 249,887 | G35: 25.26 | H35: BSE
A36: 2022-08-05 | B36: 516110 | C36: SCANDENT | D36: TOPGAIN FINANCE PRIVATE LIMITED | E36: BUY | F36: 100,000 | G36: 23.68 | H36: BSE
A37: 2022-08-05 | B37: 538875 | C37: SELLWIN | D37: MEGHSHREE CREDIT PVT LTD | E37: SELL | F37: 100,000 | G37: 23.15 | H37: BSE
A38: 2022-08-05 | B38: 542019 | C38: SHUBHAM | D38: AXITA EXPORTS PRIVATE LIMITED | E38: SELL | F38: 130,361 | G38: 269.74 | H38: BSE
A39: 2022-08-05 | B39: 539406 | C39: SWAGTAM | D39: MANSINGH HOTELS AND RESORTS LIMITED | E39: SELL | F39: 35,240 | G39: 49.39 | H39: BSE
A40: 2022-08-05 | B40: 539406 | C40: SWAGTAM | D40: HARSH KUMAR | E40: BUY | F40: 7,000 | G40: 47.3 | H40: BSE
A41: 2022-08-05 | B41: 539406 | C41: SWAGTAM | D41: GUNJAN AGARWAL | E41: BUY | F41: 35,000 | G41: 52.2 | H41: BSE
A42: 2022-08-05 | B42: 539406 | C42: SWAGTAM | D42: RAHULSINGLA | E42: BUY | F42: 6,000 | G42: 47.3 | H42: BSE
A43: 2022-08-05 | B43: 539406 | C43: SWAGTAM | D43: NEERAJ AGARWAL | E43: BUY | F43: 20,000 | G43: 52.2 | H43: BSE
A44: 2022-08-05 | B44: 539406 | C44: SWAGTAM | D44: ASHISH JAIN | E44: SELL | F44: 41,633 | G44: 52.2 | H44: BSE
A45: 2022-08-05 | B45: 538496 | C45: TARINI | D45: GLOBE STOCKS & SECURITIES LTD | E45: SELL | F45: 90,000 | G45: 4.67 | H45: BSE
A46: 2022-08-05 | B46: 538918 | C46: VANICOM | D46: NIKHIL KAKKAR | E46: SELL | F46: 22,000 | G46: 11.27 | H46: BSE
A47: 2022-08-05 | B47: 538918 | C47: VANICOM | D47: HIMANSHU MEHRA | E47: BUY | F47: 14,004 | G47: 12.13 | H47: BSE
A48: 2022-08-05 | B48: 538918 | C48: VANICOM | D48: HIMANSHU MEHRA | E48: SELL | F48: 27,001 | G48: 11.34 | H48: BSE
A49: 2022-08-05 | B49: 538918 | C49: VANICOM | D49: VEDIKA SINGHEE | E49: BUY | F49: 44,000 | G49: 11.31 | H49: BSE
A50: 2022-08-05 | B50: ARIHANTSUP | C50: Arihant Superstruct Ltd | D50: NAKSHATRA GARMENTS PRIVATE LIMITED | E50: BUY | F50: 212,290 | G50: 176.15 | H50: NSE
A51: 2022-08-05 | B51: CROMPTON | C51: Crompt Grea Con Elec Ltd | D51: COPTHALL MAURITIUS INVESTMENT LIMITED | E51: BUY | F51: 5,068,152 | G51: 370.5 | H51: NSE
A52: 2022-08-05 | B52: CROMPTON | C52: Crompt Grea Con Elec Ltd | D52: GHISALLO MASTER FUND LP | E52: BUY | F52: 3,200,000 | G52: 370.5 | H52: NSE
A53: 2022-08-05 | B53: DEVIT | C53: Dev Info Technology Ltd | D53: ERISKA INVESTMENT FUND LTD | E53: BUY | F53: 75,000 | G53: 199.95 | H53: NSE
A54: 2022-08-05 | B54: ESSENTIA | C54: Integra Essentia Limited | D54: SAMALKHA SHARES CONSULTANTS LLP | E54: BUY | F54: 2,500,000 | G54: 6.65 | H54: NSE
A55: 2022-08-05 | B55: GLOBE | C55: Globe Textiles (I) Ltd. | D55: NAKSHATRA GARMENTS PRIVATE LIMITED | E55: BUY | F55: 854,743 | G55: 8.31 | H55: NSE
A56: 2022-08-05 | B56: HSCL | C56: Himadri Speciality Chem L | D56: QE SECURITIES | E56: BUY | F56: 3,229,108 | G56: 95.46 | H56: NSE
A57: 2022-08-05 | B57: HSCL | C57: Himadri Speciality Chem L | D57: GRAVITON RESEARCH CAPITAL LLP | E57: BUY | F57: 2,891,488 | G57: 95.01 | H57: NSE
A58: 2022-08-05 | B58: INDBANK | C58: Indbank Merchant Banking | D58: SHIRISH PURUSHOTTAMRAO PANDE | E58: BUY | F58: 235,593 | G58: 23.17 | H58: NSE
A59: 2022-08-05 | B59: INDBANK | C59: Indbank Merchant Banking | D59: VEENA RAJESH SHAH | E59: BUY | F59: 551,354 | G59: 24.73 | H59: NSE
A60: 2022-08-05 | B60: INDBANK | C60: Indbank Merchant Banking | D60: COMPANY SHIVAAY TRADING | E60: BUY | F60: 255,000 | G60: 24.74 | H60: NSE
A61: 2022-08-05 | B61: KSHITIJPOL | C61: Kshitij Polyline Limited | D61: SHAIBAL GHOSH | E61: BUY | F61: 100,939 | G61: 44.41 | H61: NSE
A62: 2022-08-05 | B62: KSHITIJPOL | C62: Kshitij Polyline Limited | D62: RAKHI LOHIA | E62: BUY | F62: 60,000 | G62: 44.45 | H62: NSE
A63: 2022-08-05 | B63: NMDC | C63: NMDC Limited | D63: INTEGRATED CORE STRATEGIES (ASIA) PTE. LTD. | E63: BUY | F63: 41,060,302 | G63: 110.88 | H63: NSE
A64: 2022-08-05 | B64: ARIHANTSUP | C64: Arihant Superstruct Ltd | D64: NAKSHATRA GARMENTS PRIVATE LIMITED | E64: SELL | F64: 84,069 | G64: 172.88 | H64: NSE
A65: 2022-08-05 | B65: CROMPTON | C65: Crompt Grea Con Elec Ltd | D65: MACRITCHIE INVESTMENTS PTE LIMITED | E65: SELL | F65: 20,250,000 | G65: 370.74 | H65: NSE
A66: 2022-08-05 | B66: GLOBE | C66: Globe Textiles (I) Ltd. | D66: NAKSHATRA GARMENTS PRIVATE LIMITED | E66: SELL | F66: 1,944,487 | G66: 8.1 | H66: NSE
A67: 2022-08-05 | B67: HSCL | C67: Himadri Speciality Chem L | D67: QE SECURITIES | E67: SELL | F67: 3,241,751 | G67: 95.55 | H67: NSE
A68: 2022-08-05 | B68: HSCL | C68: Himadri Speciality Chem L | D68: GRAVITON RESEARCH CAPITAL LLP | E68: SELL | F68: 2,891,488 | G68: 95.07 | H68: NSE
A69: 2022-08-05 | B69: INDBANK | C69: Indbank Merchant Banking | D69: COMPANY SHIVAAY TRADING | E69: SELL | F69: 30,000 | G69: 24.7 | H69: NSE
A70: 2022-08-05 | B70: INDBANK | C70: Indbank Merchant Banking | D70: SHIRISH PURUSHOTTAMRAO PANDE | E70: SELL | F70: 235,593 | G70: 24.75 | H70: NSE
A71: 2022-08-05 | B71: INDBANK | C71: Indbank Merchant Banking | D71: VEENA RAJESH SHAH | E71: SELL | F71: 551,354 | G71: 24.74 | H71: NSE
A72: 2022-08-05 | B72: INDLMETER | C72: IMP Powers Ltd | D72: MANGALAM LABORATORIES PRIVATE LIMITED | E72: SELL | F72: 71,810 | G72: 8.26 | H72: NSE
A73: 2022-08-05 | B73: KSHITIJPOL | C73: Kshitij Polyline Limited | D73: SHAIBAL GHOSH | E73: SELL | F73: 62,200 | G73: 44.45 | H73: NSE
A74: 2022-08-05 | B74: NMDC | C74: NMDC Limited | D74: RELIANCE MUTUAL FUND | E74: SELL | F74: 74,681,276 | G74: 110.81 | H74: NSE

Sheet Call Tracker (Equity & F&O)
M5: Back To Main Page
A6: Retail Research Technical Calls & Fundamental Performance Report for the month of Aug-2022
M7: =Main!B10 -> 2022-08-08
B8: Positional Call
A9: Sr.no | B9: Date | D9: Company | E9: Rec | F9: Rec Price | G9: Stop Loss*** | H9: Call Closed At | I9: Target | J9: Remark | K9: Profit / Loss per Share | L9: All charges | M9: Net Gain / Loss % | N9: Status | O9: Closed Date | P9: Market Closing Price
A10: 1 | B10: 2022-05-19 | D10: BHARTIARTL | E10: Buy | F10: 678 | G10: 635 | H10: 707 | I10: 750-780 | J10: Part profit of Rs.29/- | K10: =H10-F10 -> 29 | L10: =(F10*-0.7)/100 -> -4.75 | M10: =(K10+L10)/F10 -> 3.58% | N10: Successful | O10: 2022-08-05 | P10: =VLOOKUP(D10,'MidCap Intra'!B49:C605,2,0) -> 703.65 | R10: H
A11: 2 | B11: 2022-07-06 | D11: REDINGTON | E11: Buy<> | F11: 121.4 | G11: 113.4 | H11: 128.5 | I11: 135-140 | J11: Profit of Rs.7.1/- | K11: =H11-F11 -> 7.1 | L11: =(F11*-0.7)/100 -> -0.85 | M11: =(K11+L11)/F11 -> 5.15% | N11: Successful | O11: 2022-08-01 | R11: H
A12: 3 | B12: 2022-07-13 | D12: IOC | E12: Buy | F12: 70-71 | G12: 67 | I12: 75-77 | J12: Open | P12: =VLOOKUP(D12,'MidCap Intra'!B51:C607,2,0) -> 73.1 | R12: H
A13: 4 | B13: 2022-07-26 | D13: TATACOMM | E13: Buy | F13: 1030 | G13: 970 | H13: 1094 | I13: 1100-1150 | J13: Part profit of Rs.64/- | K13: =H13-F13 -> 64 | L13: =(F13*-0.7)/100 -> -7.21 | M13: =(K13+L13)/F13 -> 5.51% | N13: Successful | O13: 2022-08-05 | R13: H
A14: 5 | B14: 2022-07-28 | D14: ZYDUSLIFE | E14: Buy | F14: 350 | G14: 329 | H14: 364 | I14: 380-390 | J14: Part profit of Rs.14/- | K14: =H14-F14 -> 14 | L14: =(F14*-0.7)/100 -> -2.45 | M14: =(K14+L14)/F14 -> 3.30% | N14: Successful | O14: 2022-08-04 | P14: =VLOOKUP(D14,'MidCap Intra'!B53:C609,2,0) -> 357.6 | R14: N
A18: CLBS = Closing Basis ***
A19: Dividend adjusted <> | F19: Reinitiated $
A20: Part book {} | D20: s | F20: Revised stoploss #
B22: Momentum Call
A23: Sr.no | B23: Date | D23: Company | E23: Rec | F23: Rec Price | G23: Stop Loss | H23: Call Closed At | I23: Target | J23: Remark | K23: Profit / Loss per Share/Lot | L23: All charges | M23: Net Gain / Loss % | N23: Status | O23: Closed Date
A24: 1 | B24: 2022-07-29 | D24: POLYCAB | E24: Buy | F24: 2305 | G24: 2240 | H24: 2368 | I24: 2380-2420 | J24: Profit of Rs.63/- | K24: =H24-F24 -> 63 | L24: =(F24*-0.7)/100 -> -16.14 | M24: =(K24+L24)/F24 -> 2.03% | N24: Successful | O24: 2022-08-02 | R24: H
A25: 2 | B25: 2022-08-02 | D25: REDINGTON | E25: Buy | F25: 128 | G25: 123 | H25: 131.25 | I25: 132-135 | J25: Profit of Rs.3.25/- | K25: =H25-F25 -> 3.25 | L25: =(F25*-0.07)/100 -> -0.09 | M25: =(K25+L25)/F25 -> 2.47% | N25: Successful | O25: 2022-08-02 | R25: H
A26: 3 | B26: 2022-08-02 | D26: BALKRISIND | E26: Buy | F26: 2405 | G26: 2330 | H26: 2330 | I26: 2480-2530 | J26: Loss of Rs.75/- | K26: =H26-F26 -> -75 | L26: =(F26*-0.07)/100 -> -1.68 | M26: =(K26+L26)/F26 -> -3.19% | N26: Unsuccessful | O26: 2022-08-04 | R26: N
A27: 4 | B27: 2022-08-02 | D27: HDFCLIFE | E27: Buy | F27: 535-538 | G27: 519 | I27: 560-570 | J27: Open | R27: H
A28: 5 | B28: 2022-08-05 | D28: BALKRISIND | E28: Buy | F28: 2140-2150 | G28: 2070 | I28: 2230-2270 | J28: Open | R28: H
A31: CLBS = Closing Basis *** | H31: *
A32: Dividend adjusted <> | F32: Reinitiated $
F33: Revised stoploss #
A35: Master Trade High Risk
A36: Sr.no | B36: Date | D36: Company | E36: Rec | F36: Rec Price | G36: Stop Loss | H36: Call Closed At | I36: Target | J36: Remark | K36: Profit / Loss per share | L36: All charges | M36: Gain / Loss per Lot | N36: Lot | O36: Status | P36: Closed Date
A37: 1 | B37: 2022-06-27 | D37: PIDILITIND JULY FUT | E37: Buy | F37: 2140 | G37: 2090 | H37: 2170 | I37: 2200-2240 | J37: Profit of Rs.30/- | K37: =H37-F37 -> 30 | L37: =(H37*N37)*0.07% -> 379.75 | M37: =(K37*N37)-L37 -> 7120.3 | N37: 250 | O37: Successful | P37: 2022-07-01 | R37: H
A38: 2 | B38: 2022-06-30 | D38: APOLLOHOSP JULY FUT | E38: Buy | F38: 3720 | G38: 3620 | H38: 3780 | I38: 3850-3900 | J38: Profit of Rs.60/- | K38: =H38-F38 -> 60 | L38: =(H38*N38)*0.07% -> 463.05 | M38: =(K38*N38)-L38 -> 10037.0 | N38: 175 | O38: Successful | P38: 2022-07-04 | R38: N
A39: 3 | B39: 2022-06-30 | D39: COLPAL JULY FUT | E39: Buy | F39: 1488 | G39: 1450 | H39: 1512 | I39: 1530-1560 | J39: Profit of Rs.24/- | K39: =H39-F39 -> 24 | L39: =(H39*N39)*0.07% -> 370.44 | M39: =(K39*N39)-L39 -> 8029.6 | N39: 350 | O39: Successful | P39: 2022-07-01 | R39: H
A40: 4 | B40: 2022-07-01 | D40: SIEMENS JULY FUT | E40: Buy | F40: 2397.5 | G40: 2355 | H40: 2437.5 | I40: 2450-2470 | J40: Profit of Rs.40/- | K40: 40 | L40: 469.22 | M40: 10530.8 | N40: 275 | O40: Successful | P40: 2022-07-04 | R40: N
A41: 5 | B41: 2022-07-05 | D41: AXISBANK JULY FUT | E41: Buy | F41: 653 | G41: 642 | H41: 663.5 | I41: 665-675 | J41: Profit of Rs.10.5/- | K41: =H41-F41 -> 10.5 | L41: =(H41*N41)*0.07% -> 557.34 | M41: =(K41*N41)-L41 -> 12042.7 | N41: 1200 | O41: Successful | P41: 2022-07-07 | R41: H
A42: 6 | B42: 2022-07-06 | D42: GRASIM JULY FUT | E42: Buy | F42: 1361.5 | G42: 1335 | H42: 1384 | I42: 1390-1410 | J42: Profit of Rs.22.5/- | K42: 22.5 | L42: 460.18 | M42: 10227.3 | N42: 475 | O42: Successful | P42: 2022-07-07 | R42: N
A43: 7 | B43: 2022-07-06 | D43: IRCTC JULY FUT | E43: Buy | F43: 576 | G43: 562 | H43: 587 | I43: 590-600 | J43: Profit of Rs.11/- | K43: 11 | L43: 359.54 | M43: 9265.5 | N43: 875 | O43: Successful | P43: 2022-07-07 | R43: H
A44: 8 | B44: 2022-07-07 | D44: ICICIBANK JULY FUT | E44: Buy | F44: 743.5 | G44: 734.5 | H44: 751.5 | I44: 755-765 | J44: Profit of Rs.8/- | K44: =H44-F44 -> 8 | L44: =(H44*N44)*0.07% -> 723.32 | M44: =(K44*N44)-L44 -> 10276.7 | N44: 1375 | O44: Successful | P44: 2022-07-08 | R44: H
A45: 9 | B45: 2022-07-08 | D45: PIIND JULY FUT | E45: Buy | F45: 2755 | G45: 2710 | H45: 2797.5 | I45: 2820-2850 | J45: Profit of Rs.42.5/- | K45: 42.5 | L45: 489.56 | M45: 10135.4 | N45: 250 | O45: Successful | P45: 2022-07-11 | R45: N
A46: 10 | B46: 2022-07-11 | D46: PIDILITIND JULY FUT | E46: Buy | F46: 2235 | G46: 2190 | H46: 2280 | I46: 2290-2310 | J46: Profit of Rs.45/- | K46: 45 | L46: 399.00 | M46: 10851.0 | N46: 250 | O46: Successful | P46: 2022-07-13 | R46: N
A47: 11 | B47: 2022-07-11 | D47: NIFTY JULY FUT | E47: Buy | F47: 16110 | G47: 15970 | H47: 16210 | I47: 16300-16400 | J47: Profit of Rs.100/- | K47: =H47-F47 -> 100 | L47: =(H47*N47)*0.07% -> 567.35 | M47: =(K47*N47)-L47 -> 4432.7 | N47: 50 | O47: Successful | P47: 2022-07-11 | R47: H
A48: 12 | B48: 2022-07-11 | D48: JSWSTEEL JULY FUT | E48: Buy | F48: 579.5 | G48: 569 | H48: 569 | I48: 590-598 | J48: Loss of Rs.10.5/- | K48: =H48-F48 -> -10.5 | L48: =(H48*N48)*0.07% -> 537.71 | M48: =(K48*N48)-L48 -> -14712.7 | N48: 1350 | O48: Unsuccessful | P48: 2022-07-12 | R48: N
A49: 13 | B49: 2022-07-12 | D49: NIFTY JULY FUT | E49: Buy | F49: 16100 | G49: 15970 | H49: 16115 | I49: 16300-16400 | J49: Profit of Rs.15/- | K49: 15 | L49: 564.03 | M49: 186.0 | N49: 50 | O49: Neutral | P49: 2022-07-13 | R49: H
A50: 14 | B50: 2022-07-12 | D50: BHARATFORG JULY FUT | E50: Buy | F50: 645 | G50: 632 | H50: 632 | I50: 660-670 | J50: Loss of Rs.13/- | K50: =H50-F50 -> -13 | L50: =(H50*N50)*0.07% -> 442.40 | M50: =(K50*N50)-L50 -> -13442.4 | N50: 1000 | O50: Unsuccessful | P50: 2022-07-12 | R50: N
A51: 15 | B51: 2022-07-13 | D51: BANKNIFTY JULY FUT | E51: Sell | F51: 35330 | G51: 35640 | H51: 35140 | I51: 35000-34700 | J51: Profit of Rs.190/- | K51: =F51-H51 -> 190 | L51: 614.95 | M51: 4135.1 | N51: 25 | O51: Successful | P51: 2022-07-13 | R51: H
A52: 16 | B52: 2022-07-14 | D52: SIEMENS JULY FUT | E52: Buy | F52: 2647.5 | G52: 2600 | H52: 2681 | I52: 2700-2740 | J52: Profit of Rs.33.5/- | K52: =H52-F52 -> 33.5 | L52: 516.09 | M52: 8696.4 | N52: 275 | O52: Successful | P52: 2022-07-15 | R52: N
A53: 17 | B53: 2022-07-14 | D53: IRCTC JULY FUT | E53: Buy | F53: 579.5 | G53: 565 | H53: 588.5 | I53: 595-610 | J53: Profit of Rs.9/- | K53: =H53-F53 -> 9 | L53: =(H53*N53)*0.07% -> 360.46 | M53: =(K53*N53)-L53 -> 7514.5 | N53: 875 | O53: Successful | P53: 2022-07-15 | R53: N
A54: 18 | B54: 2022-07-15 | D54: CONCOR JULY FUT | E54: Buy | F54: 675 | G54: 661 | H54: 684 | I54: 690-705 | J54: Profit of Rs9/- | K54: 9 | L54: 478.80 | M54: 8521.2 | N54: 1000 | O54: Successful | P54: 2022-07-15 | R54: N
A55: 19 | B55: 2022-07-15 | D55: CIPLA JULY FUT | E55: Buy | F55: 956 | G55: 935 | H55: 972 | I55: 980-990 | J55: Profit of Rs.16/- | K55: =H55-F55 -> 16 | L55: =(H55*N55)*0.07% -> 442.26 | M55: =(K55*N55)-L55 -> 9957.7 | N55: 650 | O55: Successful | P55: 2022-07-18 | R55: H
A56: 20 | B56: 2022-07-15 | D56: HDFCAMC JULY FUT | E56: Buy | F56: 1892.5 | G56: 1850 | H56: 1923 | I56: 1940-1970 | J56: Profit of Rs.30.5/- | K56: 30.5 | L56: 403.83 | M56: 8746.2 | N56: 300 | O56: Successful | P56: 2022-07-18 | R56: N
A57: 21 | B57: 2022-07-15 | D57: CROMPTON JULY FUT | E57: Buy | F57: 391.5 | G57: 382 | H57: 399 | I57: 400-410 | J57: Profit of Rs.7.5/- | K57: 7.5 | L57: 418.95 | M57: 10831.1 | N57: 1500 | O57: Successful | P57: 2022-07-19 | R57: N
A58: 22 | B58: 2022-07-18 | D58: LALPATHLAB JULY FUT | E58: Sell | F58: 1980 | G58: 2030 | H58: 2030 | I58: 1930-1880 | J58: Loss of Rs.50/- | K58: =F58-H58 -> -50 | L58: =(H58*N58)*0.07% -> 355.25 | M58: =(K58*N58)-L58 -> -12855.3 | N58: 250 | O58: Unsuccessful | P58: 2022-07-19 | R58: N
A59: 23 | B59: 2022-07-18 | D59: CONCOR JULY FUT | E59: Buy | F59: 673 | G59: 658 | H59: 681 | I59: 690-705 | J59: Profit of Rs.8/- | K59: =H59-F59 -> 8 | L59: =(H59*N59)*0.07% -> 476.70 | M59: =(K59*N59)-L59 -> 7523.3 | N59: 1000 | O59: Successful | P59: 2022-07-19 | R59: N
A60: 24 | B60: 2022-07-18 | D60: BAJFINANCE JULY FUT | E60: Buy | F60: 6060 | G60: 5950 | H60: 6145 | I60: 6200-6250 | J60: Profit of Rs.85/- | K60: =H60-F60 -> 85 | L60: =(H60*N60)*0.07% -> 537.69 | M60: =(K60*N60)-L60 -> 10087.3 | N60: 125 | O60: Successful | P60: 2022-07-20 | R60: H
A61: 25 | B61: 2022-07-18 | D61: PIDILITIND JULY FUT | E61: Buy | F61: 2280 | G61: 2230 | H61: 2300 | I61: 2340-2370 | J61: Profit of Rs.20/- | K61: =H61-F61 -> 20 | L61: =(H61*N61)*0.07% -> 402.50 | M61: =(K61*N61)-L61 -> 4597.5 | N61: 250 | O61: Successful | P61: 2022-07-20 | R61: N
A62: 26 | B62: 2022-07-18 | D62: VEDL JULY FUT | E62: Buy | F62: 237.5 | G62: 229 | H62: 248 | I62: 245-255 | J62: Profit of Rs.10.5/- | K62: =H62-F62 -> 10.5 | L62: =(H62*N62)*0.07% -> 269.08 | M62: =(K62*N62)-L62 -> 16005.9 | N62: 1550 | O62: Successful | P62: 2022-07-20 | R62: H
A63: 27 | B63: 2022-07-19 | D63: TRENT JULY FUT | E63: Buy | F63: 1217 | G63: 1200 | H63: 1201 | I63: 1240-1250 | J63: Loss of Rs.16/- | K63: =H63-F63 -> -16 | L63: =(H63*N63)*0.07% -> 609.51 | M63: =(K63*N63)-L63 -> -12209.5 | N63: 725 | O63: Unsuccessful | P63: 2022-07-19 | R63: N
A64: 28 | B64: 2022-07-20 | D64: SIEMENS AUG FUT | E64: Sell | F64: 2705 | G64: 2750 | H64: 2750 | I64: 2640-2600 | J64: Loss of Rs.45/- | K64: =F64-H64 -> -45 | L64: 529.38 | M64: -12904.4 | N64: 275 | O64: Unsuccessful | P64: 2022-07-21 | R64: H
A65: 29 | B65: 2022-07-20 | D65: BATAINDIA JULY FUT | E65: Buy | F65: 1855 | G65: 1810 | H65: 1812 | I65: 1900-1930 | J65: Loss of Rs.13/- | K65: =H65-F65 -> -43 | L65: 348.81 | M65: -12173.8 | N65: 275 | O65: Unsuccessful | P65: 2022-07-21 | R65: N
A66: 30 | B66: 2022-07-21 | D66: CIPLA JULY FUT | E66: Buy | F66: 973 | G66: 953 | H66: 974 | I66: 1000-1020 | J66: Profit of Rs.1/- | K66: 1 | L66: 443.17 | M66: 206.8 | N66: 650 | O66: Neutral | P66: 2022-07-25 | R66: H
A67: 31 | B67: 2022-07-25 | D67: PIDILITIND AUG FUT | E67: Buy | F67: 2320 | G67: 2270 | H67: 2349 | I67: 2380-2400 | J67: Profit of Rs.29/- | K67: 29 | L67: 411.08 | M67: 6838.9 | N67: 250 | O67: Successful | P67: 2022-07-27 | R67: H
A68: 32 | B68: 2022-07-26 | D68: AARTIIND AUG FUT | E68: Buy | F68: 773.5 | G68: 758 | H68: 761 | I68: 790-800 | J68: Loss of Rs.12.5/- | K68: =H68-F68 -> -12.5 | L68: =(H68*N68)*0.07% -> 452.80 | M68: =(K68*N68)-L68 -> -11077.8 | N68: 850 | O68: Unsuccessful | P68: 2022-07-26 | R68: N
A69: 33 | B69: 2022-07-28 | D69: MPHASIS AUG FUT | E69: Buy | F69: 2240 | G69: 2170 | H69: 2290 | I69: 2320-2360 | J69: Profit of Rs.50/- | K69: 50 | L69: 280.53 | M69: 8469.5 | N69: 175 | O69: Successful | P69: 2022-07-29 | R69: N
A70: 34 | B70: 2022-07-28 | D70: TATACOMM AUG FUT | E70: Buy | F70: 1031 | G70: 1005 | H70: 1049 | I70: 1060-1080 | J70: Profit of Rs.18/- | K70: 18 | L70: 367.15 | M70: 8632.9 | N70: 500 | O70: Successful | P70: 2022-07-29 | R70: H
A71: 35 | B71: 2022-07-28 | D71: PIDILITIND AUG FUT | E71: Buy | F71: 2400 | G71: 2349 | H71: 2435 | I71: 2460-2500 | J71: Profit of Rs.35/- | K71: 35 | L71: 426.13 | M71: 8323.9 | N71: 250 | O71: Successful | P71: 2022-07-29 | R71: N
A72: 36 | B72: 2022-07-29 | D72: SBIN AUG FUT | E72: Sell | F72: 535 | G72: 544 | H72: 529.5 | I72: 520-515 | J72: Profit of Rs.5.5/- | K72: =F72-H72 -> 5.5 | L72: =(H72*N72)*0.07% -> 555.98 | M72: =(K72*N72)-L72 -> 7694.0 | N72: 1500 | O72: Successful | P72: 2022-07-29 | R72: H
A73: 1 | B73: 2022-07-29 | D73: IEX AUG FUT | E73: Buy | F73: 159.35 | G73: 155 | H73: 162.3 | I73: 164-166 | J73: Profit of Rs.2.95/- | K73: =H73-F73 -> 2.95 | L73: 426.04 | M73: 10636.5 | N73: 3750 | O73: Successful | P73: 2022-08-01 | R73: H
A74: 2 | B74: 2022-07-29 | D74: NIFTY AUG FUT | E74: Sell | F74: 17130 | G74: 17350 | H74: 17350 | I74: 16900 | J74: Loss of Rs.171.5/- | K74: =F74-H74 -> -220 | L74: =(H74*N74)*0.07% -> 607.25 | M74: =(-171.5*N74)-707 -> -9282 | N74: 50 | O74: Unsuccessful | P74: 2022-08-01 | R74: H
D75: NIFTY 16950 PE 4 AUG | E75: Sell | F75: 67.5 | H75: 19 | K75: =F75-H75 -> 48.5 | L75: 100
A76: 3 | B76: 2022-08-01 | D76: COLPAL AUG FUT | E76: Buy | F76: 1581.5 | G76: 1535 | H76: 1605 | I76: 1630-1660 | J76: Profit of Rs.23.5/- | K76: =H76-F76 -> 23.5 | L76: =(H76*N76)*0.07% -> 393.23 | M76: =(K76*N76)-L76 -> 7831.8 | N76: 350 | O76: Successful | P76: 2022-08-05 | R76: N
A77: 4 | B77: 2022-08-02 | D77: PIIND AUG FUT | E77: Buy | F77: 3050 | G77: 2995 | H77: 3080 | I77: 3150-3200 | J77: Profit of Rs.30/- | K77: =H77-F77 -> 30 | L77: =(H77*N77)*0.07% -> 539.00 | M77: =(K77*N77)-L77 -> 6961.0 | N77: 250 | O77: Successful | P77: 2022-08-03 | R77: H
A78: 5 | B78: 2022-08-03 | D78: NIFTY AUG FUT | E78: Sell | F78: 17370 | G78: 17530 | H78: 17270 | I78: 17000 | J78: Profit of Rs.100/- | K78: =F78-H78 -> 100 | L78: =(H78*N78)*0.07% -> 604.45 | M78: =(K78*N78)-L78 -> 4395.6 | N78: 50 | O78: Successful | P78: 2022-08-03 | R78: H
A79: 6 | B79: 2022-08-03 | D79: LT AUG FUT | E79: Sell | F79: 1800 | G79: 1840 | H79: 1787.5 | I79: 1750-1730 | J79: Profit of Rs.12.50- | K79: =F79-H79 -> 12.5 | L79: 375.38 | M79: 3374.6 | N79: 300 | O79: Successful | P79: 2022-08-04 | R79: H
A80: 7 | B80: 2022-08-03 | D80: NIFTY AUG FUT | E80: Sell | F80: 17340 | G80: 17510 | H80: 17210 | I80: 17000 | J80: Profit of Rs.130/- | K80: =F80-H80 -> 130 | L80: =(H80*N80)*0.07% -> 602.35 | M80: =(K80*N80)-L80 -> 5897.7 | N80: 50 | O80: Successful | P80: 2022-08-04 | R80: H
A81: 8 | B81: 2022-08-03 | D81: INTELLECT AUG FUT | E81: Buy | F81: 630 | G81: 615 | H81: 616 | I81: 650-660 | J81: Loss of Rs.14/- | K81: =H81-F81 -> -14 | L81: 323.40 | M81: -10823.4 | N81: 750 | O81: Unsuccessful | P81: 2022-08-04 | R81: N
A82: 9 | B82: 2022-08-03 | D82: BALKRISIND AUG FUT | E82: Buy | F82: 2380 | G82: 2340 | H82: 2415 | I82: 2440-2480 | J82: Profit of Rs.35/- | K82: =H82-F82 -> 35 | L82: =(H82*N82)*0.07% -> 507.15 | M82: =(K82*N82)-L82 -> 9992.9 | N82: 300 | O82: Successful | P82: 2022-08-04 | R82: H
A83: 10 | B83: 2022-08-04 | D83: NIFTY AUG FUT | E83: Sell | F83: 17365-17385 | G83: 17530 | I83: 17000 | J83: Open | R83: H
A91: Master Trade Medium Risk
A92: Sr.no | B92: Date | D92: Company | E92: Rec | F92: Rec Price | G92: Stop Loss | H92: Call Closed At | I92: Target | J92: Remark | K92: Profit/ Loss per lot | L92: All charges | M92: Gain / Loss per Lot | N92: Lot | O92: Status | P92: Closed Date
A93: 1 | B93: 2022-07-29 | D93: BHARTIARTL 700 CE AUG | E93: Buy | F93: 11 | G93: 6 | H93: 13.5 | I93: 17-22 | J93: Profit of Rs.2.5/- | K93: =H93-F93 -> 2.5 | L93: 100.00 | M93: =(K93*N93)-L93 -> 2275.0 | N93: 950 | O93: Successful | P93: 2022-08-01 | R93: N
A94: 2 | B94: 2022-08-03 | D94: M&MFIN 205 CE AUG | E94: Sell | F94: 3.6 | G94: 5.25 | H94: 5.1 | I94: 1.5-0.5 | J94: Loss of Rs.1.5/- | K94: =F94-H94 -> -1.5 | L94: 100.00 | M94: =(K94*N94)-L94 -> -6100.0 | N94: 4000 | O94: Unsuccessful | P94: 2022-08-05 | R94: H
A95: 3 | B95: 2022-08-04 | D95: NIFTY 17800 CE 25 AUG | E95: Sell | F95: 110 | G95: 155 | H95: 88 | I95: 50-10 | J95: Profit of Rs.22/- | K95: =F95-H95 -> 22 | L95: 100.00 | M95: =(K95*N95)-L95 -> 1000.0 | N95: 50 | O95: Unsuccessful | P95: 2022-08-05 | R95: H
A96: 4 | B96: 2022-08-05 | D96: BANKNIFTY 37500 PE 11 AUG | E96: Buy | F96: 270 | G96: 120 | H96: 175 | I96: 500-600 | J96: Loss of Rs.95/- | K96: =H96-F96 -> -95 | L96: 100.00 | M96: -2475.0 | N96: 25 | O96: Successful | P96: 2022-08-05 | R96: H
A99: Techno -Funda (positional)
A100: Sr.no | B100: Date | D100: Company | E100: Rec | F100: Rec Price | G100: Stop Loss*** | H100: Call Closed At | I100: Target | J100: Remark | K100: Profit / Loss per Share/Lot | L100: All charges | M100: Net Gain / Loss % | N100: Status | O100: Closed Date | P100: Market Closing Price
R101: H
A104: CLBS = Closing Basis *** | F104: Reinitiated $
A105: Dividend adjusted <> | F105: Revised stoploss # | H105: .................
B109: Investment Idea
A110: Sr.no | B110: Date | D110: Company | E110: Rec | F110: Rec Price | G110: Point of Review | H110: Close Rate | I110: Target | J110: Remark | K110: Profit / Loss per Share | L110: Gain / Loss % | M110: Status | N110: Closed Date
A111: 1 | B111: 2013-11-01 | D111: L&T Finance Holding | E111: Accu | F111: 82.00 | G111: - | H111: 100 | I111: 100.00 | J111: Target Achieved | K111: =H111-F111 -> 18.00 | L111: =K111/F111 -> 21.95% | M111: Successful | N111: 2016-10-14
A112: 2 | B112: 2014-06-04 | D112: Finolex Inds | E112: Buy | F112: 257.00 | G112: - | H112: 300 | I112: 300.00 | J112: Target Achieved | K112: 43.00 | L112: 16.73% | M112: Successful | N112: 2014-07-02
A113: 3 | B113: 2014-07-08 | D113: JK Cement | E113: Buy | F113: 393.00 | G113: - | H113: 468 | I113: 468.00 | J113: Target Achieved | K113: 75.00 | L113: 19.08% | M113: Successful | N113: 2014-08-12
A114: 4 | B114: 2014-08-06 | D114: Finolex Cables | E114: Buy | F114: 205.00 | G114: - | H114: 275 | I114: 250.00 | J114: Target Achieved | K114: 70.00 | L114: 34.15% | M114: Successful | N114: 2014-11-19
A115: 5 | B115: 2014-09-04 | D115: Exide Inds | E115: Buy | F115: 162.00 | G115: - | H115: 190 | I115: 190.00 | J115: Target Achieved | K115: 28.00 | L115: 17.28% | M115: Successful | N115: 2015-01-02
A116: 6 | B116: 2014-09-04 | D116: Deepak Nitrite | E116: Buy | F116: 75.00 | G116: - | H116: 91.5 | I116: 95-100 | J116: Profit of Rs.16.50/- | K116: 16.50 | L116: 22.00% | M116: Successful | N116: 2014-11-11
A117: 7 | B117: 2014-10-01 | D117: Mercks | E117: Buy | F117: 850.00 | G117: - | H117: 982.5 | I117: 1050.00 | J117: Profit of Rs.132.50/- | K117: 132.50 | L117: 15.59% | M117: Successful | N117: 2015-02-04
A118: 8 | B118: 2014-10-01 | D118: Grindwell Norton | E118: Buy | F118: 475.00 | G118: - | H118: 515 | I118: 600.00 | J118: Profit of Rs.40/- | K118: 40.00 | L118: 8.42% | M118: Successful | N118: 2014-10-27
A119: 9 | B119: 2014-10-01 | D119: Snowman Logistics | E119: Buy | F119: 86.00 | G119: - | H119: 99 | I119: 140.00 | J119: Profit of Rs.13.00/- | K119: 13.00 | L119: 15.12% | M119: Successful | N119: 2014-10-27
A120: 10 | B120: 2014-10-14 | D120: Birla Corp | E120: Buy | F120: 496.60 | G120: - | H120: 621 | I120: 580.00 | J120: Target Achieved | K120: 124.40 | L120: 25.05% | M120: Successful | N120: 2016-08-23
A121: 11 | B121: 2014-10-14 | D121: Ultratech Cem | E121: Buy | F121: 2481.90 | G121: - | H121: 2840 | I121: 2870.00 | J121: Profit of Rs.358.10/- | K121: 358.10 | L121: 14.43% | M121: Successful | N121: 2015-01-13
A122: 12 | B122: 2014-10-16 | D122: Sintex Inds | E122: Buy | F122: 84.50 | G122: - | H122: 93 | I122: 110.00 | J122: Profit of Rs.8.50/- | K122: 8.50 | L122: 10.06% | M122: Successful | N122: 2014-10-27
A123: 13 | B123: 2014-10-16 | D123: HSIL | E123: Buy | F123: 401.00 | G123: - | H123: 428 | I123: 450.00 | J123: Profit of Rs.27.00/- | K123: 27.00 | L123: 6.73% | M123: Successful | N123: 2015-01-16
A124: 14 | B124: 2014-10-16 | D124: Eveready Inds | E124: Buy | F124: 101.00 | G124: - | H124: 112 | I124: 120.00 | J124: Profit of Rs.11.00/- | K124: 11.00 | L124: 10.89% | M124: Successful | N124: 2014-10-27
A125: 15 | B125: 2014-11-11 | D125: Pennar Inds | E125: Buy | F125: 59.00 | G125: - | H125: 76 | I125: 76.00 | J125: Target Achieved | K125: 17.00 | L125: 28.81% | M125: Successful | N125: 2017-10-24
A126: 16 | B126: 2014-11-11 | D126: Snowman Logistics | E126: Buy | F126: 99.00 | G126: - | H126: 120 | I126: 120.00 | J126: Profit of Rs.21/- | K126: 21.00 | L126: 21.21% | M126: Successful | N126: 2014-11-17
A127: 17 | B127: 2014-11-13 | D127: Dharamsi Morarji Chem | E127: Buy | F127: 22.00 | G127: - | H127: 33.55 | I127: 32.00 | J127: Profit of Rs 11.55/- | K127: 11.55 | L127: 52.50% | M127: Successful | N127: 2015-07-03
A128: 18 | B128: 2014-12-03 | D128: Tatachem | E128: Buy | F128: 440.00 | G128: - | H128: 520 | I128: 520.00 | J128: Profit of Rs 80.00/- | K128: 80.00 | L128: 18.18% | M128: Successful | N128: 2015-07-23
A129: 19 | B129: 2014-12-03 | D129: Advanta | E129: Buy | F129: 360.00 | G129: - | H129: 427 | I129: 425.00 | J129: Profit of Rs.67.00/- | K129: 67.00 | L129: 18.61% | M129: Successful | N129: 2015-02-23
A130: 20 | B130: 2015-01-08 | D130: GDL | E130: Buy | F130: 360.00 | G130: - | H130: 455 | I130: 420.00 | J130: Profit of Rs.95.00/- | K130: 95.00 | L130: 26.39% | M130: Successful | N130: 2015-01-20
A131: 21 | B131: 2015-01-08 | D131: NRB Bearing | E131: Buy | F131: 130.00 | H131: 175.5 | I131: 165.00 | J131: Profit of Rs 45.50/- | K131: 45.50 | L131: 35.00% | M131: Successful | N131: 2017-12-19
A132: 22 | B132: 2015-02-05 | D132: GSFC | E132: Accu | F132: 98.00 | H132: 120 | I132: 120.00 | J132: Target Achieved | K132: 22.00 | L132: 22.45% | M132: Successful | N132: 2017-01-18
A133: 23 | B133: 2015-02-05 | D133: Sundrmfast | E133: Accu | F133: 196.00 | H133: 262 | I133: 255.00 | J133: Target Achieved | K133: 66.00 | L133: 33.67% | M133: Successful | N133: 2016-08-17
A134: 24 | B134: 2015-03-04 | D134: GPPL | E134: Accu | F134: 235 | H134: 77.00 | I134: 280-285 | J134: Loss of Rs.158/- | K134: -158.00 | L134: -67.23% | M134: Unsuccessful | N134: 2019-02-26
A135: 25 | B135: 2015-03-04 | D135: ORIENTCEM | E135: Accu | F135: 185.00 | H135: 224 | I135: 220-225 | J135: Target Achieved | K135: 39.00 | L135: 21.08% | M135: Successful | N135: 2016-10-04
A136: 26 | B136: 2015-03-27 | D136: PFS | E136: Accu | F136: 49.5 | H136: 15.85 | I136: 67.00 | J136: Loss of Rs.33.65/- | K136: -33.65 | L136: -68% | M136: Unsuccessful | N136: 2019-06-11
A137: 27 | B137: 2015-03-30 | D137: Walchandnagar Ind Ltd | E137: Accu | F137: 183.50 | H137: 219 | I137: 218.00 | J137: Profit of Rs.35.50/- | K137: 35.50 | L137: 19.35% | M137: Successful | N137: 2015-04-09
A138: 28 | B138: 2015-04-20 | D138: Kalpataru Power Transmission Ltd | E138: Accu | F138: =(227+237)/2 -> 232.00 | H138: 298 | I138: 298.00 | J138: Target Achieved | K138: 66.00 | L138: 28.45% | M138: Successful | N138: 2017-03-29
A139: 29 | B139: 2015-05-04 | D139: Mastek Ltd | E139: Buy | F139: 385.00 | H139: =212.5+331 -> 543.5 | I139: 510.00 | J139: Profit of Rs 158.50/- | K139: 158.50 | L139: 41.17% | M139: Successful | N139: 2015-08-19
A140: 30 | B140: 2015-05-04 | D140: Suprajit Eng | E140: Buy | F140: 115.50 | H140: 146 | I140: 142.00 | J140: Profit of Rs 30.50/- | K140: 30.50 | L140: 26.41% | M140: Successful | N140: 2015-07-17
A141: 31 | B141: 2015-05-27 | D141: TCI | E141: Buy | F141: 237.50 | H141: 279.5 | I141: 278.00 | J141: Target Achieved | K141: 42.00 | L141: 17.68% | M141: Successful | N141: 2015-08-06
A142: 32 | B142: 2015-06-19 | D142: HSIL | E142: Accu | F142: 340.00 | H142: 448 | I142: 448.00 | J142: Target Achieved | K142: 108.00 | L142: 31.76% | M142: Successful | N142: 2017-10-10
A143: 33 | B143: 2015-07-06 | D143: Capital First | E143: Accu | F143: 390.00 | H143: 460 | I143: 460.00 | J143: Target Achieved | K143: 70.00 | L143: 17.95% | M143: Successful | N143: 2016-04-18
A144: 34 | B144: 2015-07-10 | D144: Dolphin OffShore | E144: Accu | F144: 122.5 | H144: 61.00 | I144: 172.00 | J144: Loss of Rs.61.50/- | K144: -61.50 | L144: -50.20% | M144: Unsuccessful | N144: 2018-08-21
A145: 35 | B145: 2015-08-03 | D145: Allcargo logistics | E145: Accu | F145: 297.50 | H145: 350 | I145: 360.00 | J145: Profit of Rs 52.50/- | K145: 52.50 | L145: 17.65% | M145: Successful | N145: 2015-08-16
A146: 36 | B146: 2015-08-03 | D146: Camline Fine | E146: Accu | F146: 115.50 | H146: 149 | I146: 140.00 | J146: Profit of Rs 33.50/- | K146: 33.50 | L146: 29.00% | M146: Successful | N146: 2017-01-05
A147: 37 | B147: 2015-09-04 | D147: TCI | E147: Accu | F147: 226.00 | H147: 292 | I147: 292.00 | J147: Target Achieved | K147: 66.00 | L147: 29.20% | M147: Successful | N147: 2015-10-09
A148: 38 | B148: 2015-09-07 | D148: Kalpataru Power Transmission Ltd | E148: Accu | F148: 232.50 | H148: 312.5 | I148: 310.00 | J148: Target Achieved | K148: 80.00 | L148: 34.41% | M148: Successful | N148: 2017-03-29
A149: 39 | B149: 2015-09-21 | D149: LLOYD ELECTRIC & ENG LTD | E149: Accu | F149: 196.50 | H149: 238 | I149: 238.00 | J149: Target Achieved | K149: 41.50 | L149: 21.12% | M149: Successful | N149: 2015-10-14
A150: 40 | B150: 2015-09-24 | D150: L&T Finance Holding | E150: Accu | F150: 65.00 | H150: 82 | I150: 82.00 | J150: Target Achieved | K150: 17.00 | L150: 26.15% | M150: Successful | N150: 2016-07-27
A151: 41 | B151: 2015-10-14 | D151: KEC International ltd | E151: Accu | F151: 144.00 | H151: 182.5 | I151: 181.00 | J151: Target Achieved | K151: 38.50 | L151: 26.74% | M151: Successful | N151: 2017-03-23
A152: 42 | B152: 2015-10-14 | D152: Gruh Finance | E152: Accu | F152: 264.00 | H152: 311 | I152: 311.00 | J152: Target Achieved | K152: 47.00 | L152: 17.80% | M152: Successful | N152: 2016-08-22
A153: 43 | B153: 2015-11-10 | D153: Pidilitind | E153: Buy | F153: 549.50 | H153: 630 | I153: 630.00 | J153: Target Achieved | K153: 80.50 | L153: 14.65% | M153: Successful | N153: 2016-02-19
A154: 44 | B154: 2015-12-04 | D154: Zensar Technology | E154: Accu | F154: 1027.50 | H154: 1315 | I154: 1250.00 | J154: Target Achieved | K154: 287.50 | L154: 27.98% | M154: Successful | N154: 2018-05-24
A155: 45 | B155: 2015-12-29 | D155: Vinati Organics Ltd | E155: Accu | F155: 465.00 | H155: 540 | I155: 540.00 | J155: Target Achieved | K155: 75.00 | L155: 16.13% | M155: Successful | N155: 2016-06-09
A156: 46 | B156: 2016-01-11 | D156: GSFC | E156: Buy | F156: 81.00 | H156: 110 | I156: 110.00 | J156: Target Achieved | K156: 29.00 | L156: 35.80% | M156: Successful | N156: 2017-01-10
A157: 47 | B157: 2016-01-13 | D157: SSWL | E157: Buy | F157: 417.50 | H157: 547 | I157: 535.00 | J157: Target Achieved | K157: 129.50 | L157: 31.02% | M157: Successful | N157: 2016-07-27
A158: 48 | B158: 2016-02-08 | D158: Persistent System Ltd | E158: Accu | F158: 650.00 | H158: 800 | I158: 800.00 | J158: Target Achieved | K158: 150.00 | L158: 23.08% | M158: Successful | N158: 2018-02-23
A159: 49 | B159: 2016-03-04 | D159: UPL | E159: Accu | F159: 437.50 | H159: 504.5 | I159: 522.00 | J159: Profit of Rs.67/- | K159: 67.00 | L159: 15.31% | M159: Successful | N159: 2016-04-20
A160: 50 | B160: 2016-03-09 | D160: Ashoka Buildcon Ltd | E160: Accu | F160: 189.50 | H160: 218 | I160: 218.00 | J160: Target Achieved | K160: 28.50 | L160: 15.04% | M160: Successful | N160: 2017-10-26
A161: 51 | B161: 2016-04-11 | D161: PTC INDIA FIN SERV LTD | E161: Accu | F161: 36.5 | H161: 15.85 | I161: 60.00 | J161: Loss of Rs.20.65/- | K161: -20.65 | L161: -56.58% | M161: Unsuccessful | N161: 2019-06-11
A162: 52 | B162: 2016-04-12 | D162: CAMLINFINE $ | E162: Accu | F162: 93.00 | H162: 149 | I162: 140.00 | J162: Profit of Rs 56/- | K162: 56.00 | L162: 60.22% | M162: Successful | N162: 2017-01-05
A163: 53 | B163: 2016-04-12 | D163: Greaves Cotton Ltd. | E163: Accu | F163: 130.00 | H163: 150 | I163: 150-155 | J163: Target Achieved | K163: 20.00 | L163: 15.38% | M163: Successful | N163: 2016-07-13
A164: 54 | B164: 2016-04-13 | D164: DHFL | E164: Accu | F164: 196.00 | H164: 299 | I164: 299.00 | J164: Target Achieved | K164: 103.00 | L164: 52.55% | M164: Successful | N164: 2016-09-07
A165: 55 | B165: 2016-04-13 | D165: Magma | E165: Accu | F165: 88.00 | H165: 103 | I165: 103.00 | J165: Target Achieved | K165: 15.00 | L165: 17.05% | M165: Successful | N165: 2016-06-09
A166: 56 | B166: 2016-05-02 | D166: KEC International ltd $ | E166: Accu | F166: 127.50 | H166: 148 | I166: 148-150 | J166: Target Achieved | K166: =H166-F166 -> 20.50 | L166: =K166/F166 -> 16.08% | M166: Successful | N166: 2016-07-13
A167: 57 | B167: 2016-05-03 | D167: Mindtree | E167: Accu | F167: 675.00 | H167: 815 | I167: 790-800 | J167: Target Achieved | K167: =H167-F167 -> 140.00 | L167: =K167/F167 -> 20.74% | M167: Successful | N167: 2018-02-23
A168: 58 | B168: 2016-06-01 | D168: Atulauto | E168: Accu | F168: 500 | H168: 232.50 | I168: 565-570 | J168: Loss of Rs.267.50 /- | K168: =H168-F168 -> -267.50 | L168: =K168/F168 -> -53.50% | M168: Unsuccessful | N168: 2019-09-27
A169: 59 | B169: 2016-06-06 | D169: TRITURBINE | E169: Accu | F169: 110.00 | H169: 126.5 | I169: 125.00 | J169: Profit of Rs.16.50/- | K169: =H169-F169 -> 16.50 | L169: =K169/F169 -> 15.00% | M169: Successful | N169: 2016-07-01
A170: 60 | B170: 2016-06-17 | D170: Pennar Industries Ltd | E170: Accu | F170: 44.00 | H170: 69.5 | I170: 69.50 | J170: Profit of Rs.25.50/- | K170: =H170-F170 -> 25.50 | L170: =K170/F170 -> 57.95% | M170: Successful | N170: 2017-08-30
A171: 61 | B171: 2016-06-28 | D171: EVEREADY | E171: Accu | F171: 262.50 | H171: 340 | I171: 333.00 | J171: Profit of Rs.77.50/- | K171: 77.50 | L171: 29.52% | M171: Successful | N171: 2017-10-09
A172: 62 | B172: 2016-06-28 | D172: FIEMIND | E172: Accu | F172: 840.00 | H172: 1230 | I172: 1230.00 | J172: Target Achieved | K172: 390.00 | L172: 46.43% | M172: Successful | N172: 2016-10-06
A173: 63 | B173: 2016-07-05 | D173: Bajaj Corp Ltd | E173: Accu | F173: 395 | H173: =(468.5+342.5)/2 -> 405.50 | I173: 510.00 | J173: Profit of Rs.10.50/- | K173: =H173-F173 -> 10.50 | L173: =K173/F173 -> 3% | M173: Neutral | N173: 2019-05-21
A174: 64 | B174: 2016-08-02 | D174: GPPL $ | E174: Buy | F174: =169.5-12.8 -> 156.7 | H174: 77.00 | I174: 198-200 | J174: Loss of Rs.79.7/- | K174: -79.70 | L174: -50.86% | M174: Unsuccessful | N174: 2019-02-26
A175: 65 | B175: 2016-08-04 | D175: WONDERLA HOLIDAYS LTD | E175: Accu | F175: 400 | H175: 305.00 | I175: 475.00 | J175: Loss of Rs.95/- | K175: -95.00 | L175: -23.75% | M175: Unsuccessful | N175: 2019-05-21
A176: 66 | B176: 2016-08-11 | D176: CAMLINFINE | E176: Accu | F176: 86.50 | H176: 130 | I176: 130.00 | J176: Profit of Rs.43.50/- | K176: 43.50 | L176: 50.29% | M176: Successful | N176: 2017-12-22
A177: 67 | B177: 2016-08-18 | D177: GRANULES | E177: Accu | F177: 133.5 | H177: 126.50 | I177: 178.00 | J177: Exit | K177: -7.00 | L177: -5.24% | M177: Unsuccessful | N177: 2016-09-02
A178: 68 | B178: 2016-08-31 | D178: VA TECH WABAG | E178: Accu | F178: 560.00 | H178: 725 | I178: 725.00 | J178: Target Achieved | K178: 165.00 | L178: 29.46% | M178: Successful | N178: 2016-03-27
A179: 69 | B179: 2016-09-01 | D179: SKIPPER LIMITED | E179: Accu | F179: 160.50 | H179: 210 | I179: 210.00 | J179: Target Achieved | K179: 49.50 | L179: 30.84% | M179: Successful | N179: 2017-05-16
A180: 70 | B180: 2016-10-03 | D180: IFBIND | E180: Accu | F180: 430.00 | H180: 596 | I180: 575.00 | J180: Profit of Rs.166/- | K180: 166.00 | L180: 38.60% | M180: Successful | N180: 2017-02-03
A181: 71 | B181: 2016-10-14 | D181: ASIANTILES | E181: Accu | F181: 280.00 | H181: 345 | I181: 345.00 | J181: Target Achieved | K181: =H181-F181 -> 65.00 | L181: =K181/F181 -> 23.21% | M181: Successful | N181: 2017-03-20
A182: 72 | B182: 2016-10-14 | D182: DEEPIND | E182: Accu | F182: 245.00 | H182: 325.5 | I182: 330.00 | J182: Profit of Rs.80.5/- | K182: 80.50 | L182: =K182/F182 -> 32.86% | M182: Successful | N182: 2017-02-03
A183: 73 | B183: 2016-10-17 | D183: DCBBANK | E183: Accu | F183: 125.00 | H183: 160 | I183: 160.00 | J183: Target Achieved | K183: 35.00 | L183: 28.00% | M183: Successful | N183: 2017-03-09
A184: 74 | B184: 2016-10-17 | D184: ORIENTREF | E184: Accu | F184: 114.00 | H184: 145 | I184: 145.00 | J184: Target Achieved | K184: 31.00 | L184: =K184/F184 -> 27.19% | M184: Successful | N184: 2017-05-04
A185: 75 | B185: 2016-10-17 | D185: GANECOS | E185: Accu | F185: 212.00 | H185: 280 | I185: 276.00 | J185: Profit of Rs.68/- | K185: 68.00 | L185: =K185/F185 -> 32.08% | M185: Successful | N185: 2017-05-03
A186: 76 | B186: 2016-11-04 | D186: NBCC | E186: Accu | F186: 155.00 | H186: 210 | I186: 210.00 | J186: Profit of Rs.55/- | K186: 55.00 | L186: =K186/F186 -> 35.48% | M186: Successful | N186: 2017-07-28
A187: 77 | B187: 2016-12-06 | D187: PRECAM | E187: Accu | F187: 150.5 | H187: 72.50 | I187: 174.00 | J187: Loss of Rs.78/- | K187: -78.00 | L187: -51.83% | M187: Unsuccessful | N187: 2018-08-21
A188: 78 | B188: 2016-12-08 | D188: INFRATEL | E188: Accu | F188: 380.00 | H188: 478 | I188: 468.00 | J188: Target Achieved | K188: =H188-F188 -> 98.00 | L188: =K188/F188 -> 25.79% | M188: Successful | N188: 2017-10-17
A189: 79 | B189: 2016-12-30 | D189: GODREJPROP | E189: Accu | F189: 305.00 | H189: 375 | I189: 375.00 | J189: Target Achieved | K189: =H189-F189 -> 70.00 | L189: =K189/F189 -> 22.95% | M189: Successful | N189: 2017-02-02
A190: 80 | B190: 2017-01-04 | D190: DEEPAKNTR | E190: Accu | F190: 99.50 | H190: 158 | I190: 158.00 | J190: Target Achieved | K190: =H190-F190 -> 58.50 | L190: =K190/F190 -> 58.79% | M190: Successful | N190: 2017-06-12
A191: 81 | B191: 2017-01-04 | D191: DEEPAKNTR | E191: Accu | F191: 99.50 | H191: 158 | I191: 158.00 | J191: Target Achieved | K191: 58.50 | L191: 58.79% | M191: Successful | N191: 2017-06-12
A192: 82 | B192: 2017-02-20 | D192: RECLTD | E192: Accu | F192: 140.50 | H192: 220 | I192: 220.00 | J192: Target Achieved | K192: =H192-F192 -> 79.50 | L192: =K192/F192 -> 56.58% | M192: Successful | N192: 2017-05-09
A193: 83 | B193: 2017-02-20 | D193: SUBROS | E193: Accu | F193: 202.50 | H193: 234 | I193: 234.00 | J193: Target Achieved | K193: 31.50 | L193: 15.56% | M193: Successful | N193: 2017-04-11
A194: 84 | B194: 2017-03-24 | D194: VRLLOG | E194: Accu | F194: 300.50 | H194: 417.5 | I194: 420.00 | J194: Profit of Rs.117/- | K194: =H194-F194 -> 117.00 | L194: =K194/F194 -> 38.94% | M194: Successful | N194: 2017-12-01
A195: 85 | B195: 2017-03-24 | D195: FIEMIND | E195: Accu | F195: 850.00 | H195: 1042.5 | I195: 1023.00 | J195: Profit of Rs 192.50/- | K195: 192.50 | L195: 22.65% | M195: Successful | N195: 2017-04-05
A196: 86 | B196: 2017-04-05 | D196: RATNAMANI | E196: Accu | F196: 785.00 | H196: 930 | I196: 920.00 | J196: Profit of Rs.145/- | K196: =H196-F196 -> 145.00 | L196: =K196/F196 -> 18.47% | M196: Successful | N196: 2017-08-29
A197: 87 | B197: 2017-04-06 | D197: ZEEMEDIA | E197: Accu | F197: 40 | H197: 13.10 | I197: 60.00 | J197: Loss of Rs.26.9/- | K197: -26.90 | L197: -67.25% | M197: Unsuccessful | N197: 2018-02-07
A198: 88 | B198: 2017-04-12 | D198: DABUR | E198: Accu | F198: 289.50 | H198: 354 | I198: 360.00 | J198: Profit of Rs.64.5/- | K198: =H198-F198 -> 64.50 | L198: =K198/F198 -> 22.28% | M198: Successful | N198: 2017-11-01
A199: 89 | B199: 2017-04-20 | D199: KPRMILL | E199: Accu | F199: 700.00 | H199: 840 | I199: 840.00 | J199: Profit of Rs.140/- | K199: 140.00 | L199: 20.00% | M199: Successful | N199: 2017-06-07
A200: 90 | B200: 2017-06-01 | D200: ESSELPACK | E200: Accu | F200: 130.00 | H200: 144.25 | I200: 170.00 | J200: Profit of Rs.14.25/- | K200: 14.25 | L200: 10.96% | M200: Successful | N200: 2019-07-29
A201: 91 | B201: 2017-06-15 | D201: KEI | E201: Accu | F201: 214.50 | H201: 262 | I201: 262.00 | J201: Profit of Rs.47.5/- | K201: 47.50 | L201: 22.14% | M201: Successful | N201: 2017-08-30
A202: 92 | B202: 2017-07-17 | D202: MAYURUNIQ | E202: Accu | F202: 370.00 | H202: 447.5 | I202: 450.00 | J202: Target Achieved | K202: 77.50 | L202: 20.95% | M202: Successful | N202: 2017-10-27
A203: 93 | B203: 2017-07-27 | D203: RAMCOCEM | E203: Accu | F203: 657.50 | H203: 825 | I203: 820.00 | J203: Target Achieved | K203: 167.50 | L203: 25.48% | M203: Successful | N203: 2017-12-21
A204: 94 | B204: 2017-08-17 | D204: FINPIPE | E204: Accu | F204: 605.00 | H204: 750 | I204: 750.00 | J204: Profit of Rs.145/- | K204: 145.00 | L204: 23.97% | M204: Successful | N204: 2017-10-19
A205: 95 | B205: 2017-09-01 | D205: SHK | E205: Accu | F205: 255 | H205: 217.25 | I205: 320.00 | J205: Loss of Rs.37.75/- | K205: -37.75 | L205: -15% | M205: Unsuccessful | N205: 2019-07-15
A206: 96 | B206: 2017-09-19 | D206: SKIPPER | E206: Accu | F206: 215.00 | H206: 258 | I206: 258.00 | J206: Target Achieved | K206: 43.00 | L206: 20.00% | M206: Successful | N206: 2017-11-01
A207: 97 | B207: 2017-09-19 | D207: SKIPPER | E207: Accu | F207: 215.00 | H207: 258 | I207: 258.00 | J207: Target Achieved | K207: 43.00 | L207: 20.00% | M207: Successful | N207: 2017-11-01
A208: 98 | B208: 2017-09-20 | D208: CAMLINFINE$ | E208: Accu | F208: 75.00 | H208: 90 | I208: 90.00 | J208: Profit of Rs.15.00/- | K208: =H208-F208 -> 15.00 | L208: =K208/F208 -> 20.00% | M208: Successful | N208: 2017-10-11
A209: 99 | B209: 2017-10-03 | D209: GNA | E209: Accu | F209: 315.00 | H209: 392 | I209: 384.00 | J209: Profit of Rs.77/- | K209: 77.00 | L209: 24.44% | M209: Successful | N209: 2017-10-09
A210: 100 | B210: 2017-10-05 | D210: NOCIL | E210: Accu | F210: 145.00 | H210: 179 | I210: 180.00 | J210: Profit of Rs.34/- | K210: 34.00 | L210: 23.45% | M210: Successful | N210: 2017-10-17
A211: 101 | B211: 2017-10-06 | D211: CENTURYPLY | E211: Accu | F211: 256.00 | H211: 323 | I211: 320.00 | J211: Target Achieved | K211: 67.00 | L211: 26.17% | M211: Successful | N211: 2017-11-28
A212: 102 | B212: 2017-10-09 | D212: EIHOTEL | E212: Accu | F212: 137.50 | H212: 184 | I212: 183.00 | J212: Profit of Rs.46.5/- | K212: 46.50 | L212: 33.82% | M212: Successful | N212: 2018-01-08
A213: 103 | B213: 2017-10-10 | D213: NRBBEARING | E213: Accu | F213: 125.50 | H213: 158 | I213: 155.00 | J213: Profit of Rs.32.5/- | K213: 32.50 | L213: 25.90% | M213: Successful | N213: 2017-11-28
A214: 104 | B214: 2017-10-10 | D214: BOROSIL | E214: Accu | F214: 895.00 | H214: 1122.5 | I214: 1078.00 | J214: Profit of Rs.227.5/- | K214: 227.50 | L214: 25.42% | M214: Successful | N214: 2018-01-17
A215: 105 | B215: 2017-10-12 | D215: CYIENT | E215: Accu | F215: 525.00 | H215: 629 | I215: 629.00 | J215: Target Achieved | K215: 104.00 | L215: 19.81% | M215: Successful | N215: 2018-01-19
A216: 106 | B216: 2017-11-07 | D216: HATSUN | E216: Accu | F216: 740.00 | H216: 892.5 | I216: 900.00 | J216: Profit of Rs.152.5/- | K216: =H216-F216 -> 152.50 | L216: =K216/F216 -> 20.61% | M216: Successful | N216: 2017-11-13
A217: 107 | B217: 2017-12-04 | D217: SANGHIIND | E217: Accu | F217: 118.50 | H217: 143.5 | I217: 145.00 | J217: Profit of Rs.25/- | K217: =H217-F217 -> 25.00 | L217: =K217/F217 -> 21.10% | M217: Successful | N217: 2017-12-28
A218: 108 | B218: 2017-12-21 | D218: KAJARIACER | E218: Accu | F218: 715 | H218: 500.00 | I218: 872.00 | J218: Loss of Rs.215/- | K218: =H218-F218 -> -215.00 | L218: =K218/F218 -> -30.07% | M218: Unsuccessful | N218: 2019-07-24
A219: 109 | B219: 2017-12-29 | D219: GNA | E219: Accu | F219: 435.00 | H219: 542.5 | I219: 539.00 | J219: Target Achieved | K219: 107.50 | L219: 24.71% | M219: Successful | N219: 2018-04-16
A220: 110 | B220: 2017-12-29 | D220: ZENSARTECH | E220: Accu | F220: 885.00 | H220: 1090 | I220: 1084.00 | J220: Target Achieved | K220: 205.00 | L220: 23.16% | M220: Successful | N220: 2018-04-23
A221: 111 | B221: 2018-04-02 | D221: EVERESTIND | E221: Accu | F221: 478.50 | H221: 442 | I221: 613.00 | J221: Loss of Rs.36.50 /- | K221: =H221-F221 -> -36.50 | L221: =K221/F221 -> -7.63% | M221: Unsuccessful | N221: 2019-10-24
A222: 112 | B222: 2018-04-04 | D222: GPPL$ | E222: Accu | F222: =141.5-7.3 -> 134.2 | H222: 77.00 | I222: 180.00 | J222: Loss of Rs.57.2/- | K222: =H222-F222 -> -57.20 | L222: =K222/F222 -> -42.62% | M222: Unsuccessful | N222: 2019-02-26
A223: 113 | B223: 2018-04-19 | D223: MANPASAND | E223: Accu | F223: 430 | H223: 220.00 | I223: 537.00 | J223: Loss of Rs.210/- | K223: =H223-F223 -> -210.00 | L223: =K223/F223 -> -48.84% | M223: Unsuccessful | N223: 2018-06-01
A224: 114 | B224: 2018-04-30 | D224: HEIDELBERG | E224: Accu | F224: 153.5 | H224: 196 | I224: 196.00 | J224: Profit of Rs.42.50/- | K224: =H224-F224 -> 42.50 | L224: =K224/F224 -> 27.69% | M224: Successful | N224: 2019-05-20
A225: 115 | B225: 2018-07-25 | D225: ZEEMEDIA | E225: Accu | F225: 27.5 | H225: 13.10 | I225: 60.00 | J225: Loss of Rs.14.40/- | K225: -14.40 | L225: -52.36% | M225: Unsuccessful | N225: 2018-02-07
... 64 more rows
